{"text_format":"1","workbook":"xlsx","n_sheets":9,"sheets":["1.Sample_Info","2.LVS_Calculator","3.LVS_TAXA","4.RPS","5.HA_Stream_River","6.PhysChem","7.ExtenalBioFormat","Version Log","M code"],"not_rendered":{"charts":0,"images":0,"macros":1,"external_links":0,"defined_names":2,"comments":0,"pivot_tables":0},"unopened":[],"bounds":{"document_bytes":16777216,"sheet_cells":100000,"rows_first":2000,"rows_last":500,"rows_between":2000,"halvings":0,"cell_chars":16384,"cell_head_chars":4096},"cells_cut":0,"cells_raw":0,"read":"whole","date_system":"1900"}

{"sheet":"1.Sample_Info","index":0,"n_rows":24,"n_cols":15,"rows_kept":24,"cut":false,"hidden":false,"merged":[[0,0,0,1],[0,4,0,5],[8,4,9,4],[8,5,9,13],[10,4,11,4],[10,5,11,13],[0,9,0,15],[7,4,7,13],[8,14,9,14],[10,14,11,14],[20,1,24,1],[20,0,24,0],[12,14,13,14],[12,4,13,4],[17,4,17,10],[15,4,16,13],[14,5,14,13],[12,5,13,13]]}
["Site, Sample Information",null,null,null,"Results",null,null,null,null,"Geographic Coordinate Converter"]
["Sampling Entity",null,null,null,"LVS",{"$f":"IF('2.LVS_Calculator'!AB1=\"See Cell B5\",\"No Observations\",'2.LVS_Calculator'!AB1)","v":"No Observations"},"Auto Populated",null,null,"x/y","Degrees","Minutes","Seconds",null,"Decimal Degrees"]
["WIN Organization ID",null,null,null,"LVS Mean CofC",{"$f":"IF('2.LVS_Calculator'!AB3=\"No Observations\",\"No Observations\",IF('2.LVS_Calculator'!AB3=\"See Cell B5\",\"No Observations\",'2.LVS_Calculator'!AA3))","v":"No Observations"},"Auto Populated",null,null,"LATITUDE",null,null,null,null,{"$f":"K3+(L3/60)+(M3/3600)","v":0}]
["Sampler 1 Name",null,null,null,"LVS %FLEPPC",{"$f":"IF('2.LVS_Calculator'!AB3=\"No Observations\",\"No Observations\",IF('2.LVS_Calculator'!AB3=\"See Cell B5\",\"No Observations\",'2.LVS_Calculator'!AA4))","v":"No Observations"},"Auto Populated",null,null,"LONGITUDE",null,null,null,null,{"$f":"IF(K4<0,(K4-(L4/60)-(M4/3600)),(-1*(K4+(L4/60)+(M4/3600))))","v":0}]
["Sampler 2 Name",null,null,null,"HA",{"$f":"'5.HA_Stream_River'!B41","v":93},"Auto Populated"]
["List All Samplers Proficient* in the HA Method",null,null,null,"RPS",{"$f":"'4.RPS'!N12","v":"No Observations"},"Auto Populated"]
["Sample Date"]
["Waterbody Name",null,null,null,"Metric Comments From Metric Tabs"]
["WIN Sampling Location Description",null,null,null,"LVS",{"$f":"IF('2.LVS_Calculator'!B72=\"\",\"\",'2.LVS_Calculator'!B72)","v":""},null,null,null,null,null,null,null,null,"Auto Populated"]
["WIN Station ID"]
["Latitude (Decimal Degrees)",null,null,null,"HA",{"$f":"IF('5.HA_Stream_River'!B5=\"\",\"\",'5.HA_Stream_River'!B5)","v":""},null,null,null,null,null,null,null,null,"Auto Populated"]
["Longitude (Decimal Degrees)"]
["County",null,null,null,"RPS",{"$f":"IF('4.RPS'!L36=\"\",\"\",'4.RPS'!L36)","v":""},null,null,null,null,null,null,null,null,"Auto Populated"]
["Receiving Body Of Water:"]
["LVS Completed by",null,null,null,"PhysChem",{"$f":"IF('6.PhysChem'!CD99=0,\"\",'6.PhysChem'!CD99)","v":""},null,null,null,null,null,null,null,null,"Auto Populated"]
["HA Completed by",null,null,null,"*Proficient: An individual that is in pass status with DEP for the Stream Habitat Assessment method.  \nPass status requires passing  3 out of 5 Habitat Assessment proficiency testing benchmark sites every two years."]
["RPS Completed by"]
["Water Sample Collected",null,"Dropdown ",null,"Check Proficiency status at the FDP Bioassessment Proficiency Registry Page."]
["Algal Sample Collected",null,"Dropdown ",null,"Per DEP-SOP-001/01, FS 7300. Macrophyte Sampling  Effective date 4/16/2018"]
["SCI/BioRecon Collected",null,"Dropdown ",null,"Per DEP-SOP-001/01, FS 7200. Periphyton Sampling  Effective date 4/16/2018"]
["Site Visits Comments",null,null,null,"Per DEP-SOP-001/01, FT 3100. Aquatic Habitat Characterization  Effective date 4/16/2018"]
[null,null,null,null,"Per DEP-SOP-001/01, FT 3001. Physical/Chemical Characterization Effective date 4/16/2018"]
[null,null,null,null,"Written by Curtis Musson"]
[null,null,null,null,"Property of Florida Department of Environmental Protection, Division of Environmental Assessment and Restoration"]

{"sheet":"2.LVS_Calculator","index":1,"n_rows":72,"n_cols":44,"rows_kept":72,"cut":false,"hidden":false,"merged":[[5,24,7,28],[4,24,4,28],[71,0,73,0],[71,1,73,17],[4,22,4,23],[4,18,4,21],[5,13,5,17],[4,13,4,17],[4,10,4,12],[5,10,5,12],[7,0,7,17],[6,1,6,17],[70,0,70,5],[4,0,5,0],[4,2,4,3],[5,2,5,3],[2,14,2,17],[3,14,3,17],[3,1,3,4],[2,1,2,11],[2,12,2,13],[3,12,3,13],[3,6,3,11],[4,1,5,1],[4,4,4,9],[5,4,5,9],[0,24,1,26],[0,27,1,28],[2,24,2,25],[2,27,2,28],[3,24,3,25],[3,27,3,28],[0,22,1,23],[2,18,2,20],[3,18,3,20],[2,22,2,23],[3,22,3,23],[0,0,1,17],[0,18,1,21]]}
[" Linear Vegetation Survey Calculator \nVersion 2.0, June 2023",null,null,null,null,null,null,null,null,null,null,null,null,null,null,null,null,null,"LVS Summary",null,null,null,{"$f":"IF(B5=\"No\",\"Pass\",IF(B5=\"Required\",\"See Cell B5\",IF(SUM(Q10:Q68)<1,\"No Observations\",IF(OR(W3=\"Inconclusive\",W4=\"Inconclusive\"),\"Inconclusive\",IF(AND(W3=\"Pass\",W4=\"Pass\"),\"Pass\",IF(AND(W3=\"fail\",W4=\"fail\"),\"Fail\",\"Inconclusive\"))))))","v":"See Cell B5"},null," LVS Sample Result",null,null,{"$f":"IF(OR(V3=\">2 Dominant\",V4=\">2 Dominant\"),\"Error\",W1)","v":"See Cell B5"}]
[]
["Waterbody:",{"$f":"IF('1.Sample_Info'!B9=\"\",\"\",'1.Sample_Info'!B9)","v":""},null,null,null,null,null,null,null,null,null,null," Sample Date:",null,{"$f":"IF('1.Sample_Info'!B7=\"\",\"\",'1.Sample_Info'!B7)","v":""},null,null,null,"Mean CofC:",null,null,{"$f":"IFERROR(IF(AR70=1,\">2 Dominant\",SUMIFS(X10:X68,S10:S68,\"x\")/SUMIFS(R10:R68,S10:S68,\"x\")),\"No Data\")","v":"No Data"},{"$f":"IF(B5=\"No\",\"Pass\",IF(B5=\"Required\",\"See Cell B5\",IF(SUM(Q10:Q68)<1,\"No Observations\",IF(V3=\"-\",\"Inconclusive\",IF(AND(V3=\"No Data\",SUM(Q10:Q68)>0),\"Inconclusive\",IF(V3<2.5,\"Fail\",\"Pass\"))))))","v":"See Cell B5"},null," Mean CofC:",null,{"$f":"IF(B5=\"-\",\"See Cell B5\",IF(B5=\"No\",\"LVS < 2 SQM\",IFERROR(ROUND(IF(B5=\"-\",\"No Data\",IF(B5=\"no\",\"LVS < 2 SQM\",V3)),2),\"-\")))","v":"-"},{"$f":"IF(V3=\">2 Dominant\",\"Error\",W3)","v":"See Cell B5"}]
["WIN/STORET ID:",{"$f":"IF('1.Sample_Info'!B9=\"\",\"\",'1.Sample_Info'!B10)","v":""},null,null,null,"County:",{"$f":"IF('1.Sample_Info'!B9=\"\",\"\",'1.Sample_Info'!B13)","v":""},null,null,null,null,null,"Analyst Name:",null,{"$f":"IF('1.Sample_Info'!B9=\"\",\"\",'1.Sample_Info'!B15)","v":""},null,null,null,"%FLEPPC:",null,null,{"$f":"IFERROR(IF(AR70=1,\">2 Dominant\",(SUMIFS(R10:R68,D10:D68,\"Category*\"))/(SUMIFS(R10:R68,U10:U68,1)+SUMIFS(R10:R68,U10:U68,2)+SUMIFS(R10:R68,U10:U68,3)+SUMIFS(R10:R68,U10:U68,-9)+SUMIFS(R10:R68,U10:U68,\"null\"))),\"No Data\")","v":"No Data"},{"$f":"IF(B5=\"No\",\"Pass\",IF(B5=\"Required\",\"See Cell B5\",IF(SUM(Q10:Q68)<1,\"No Observations\",IF(V4=\"-\",\"Inconclusive\",IF(V4>0.254444444444444,\"Fail\",\"Pass\")))))","v":"See Cell B5"},null," %FLEPPC:",null,{"$f":"IF(B5=\"-\",\"See Cell B5\",IF(B5=\"No\",\"LVS < 2 SQM\",IFERROR(ROUND(IF(B5=\"-\",\"No Data\",IF(B5=\"no\",\"LVS < 2 SQM\",V4)),3),\"-\")))","v":"-"},{"$f":"IF(V4=\">2 Dominant\",\"Error\",W4)","v":"See Cell B5"}]
["Greater Than 2 Square Meters of Herbaceous Aquatic Vegetation?","Required","Data Entered By:",null,null,null,null,null,null,null," Data Reviewed By:",null,null,null,null,null,null,null,"Date Data Entered:",null,null,null,null,null,{"$f":"IF(AR70=1,\"Too Many Dominant Taxa Documented\",\"\")","v":""}]
[null,null,"Date Data Entered:",null,null,null,null,null,null,null," Date Reviewed:",null,null,null,null,null,null,null,null,null,null,null,null,null,{"$f":"IFERROR(\n_xlfn.IFS(AG70>2,\"Review Section 0-10\",\nAH70>2,\"Review Section 10-20\",\nAI70>2,\"Review Section 20-30\",\nAJ70>2,\"Review Section 30-40\",\nAK70>2,\"Review Section 40-50\",\nAL70>2,\"Review Section 50-60\",\nAM70>2,\"Review Section 60-70\",\nAN70>2,\"Review Section 70-80\",\nAO70>2,\"Review Section 80-90\",\nAP70>2,\"Review Section 90-100\"),\"\")","v":""}]
["Notes:"]
["Use \"P\" to denote taxa presence, \"D\" to denote dominant taxa, or \"C\" to denote co-dominant taxa."]
["Taxon","Synonym(s)","CofC Score","FLEPPC Status","Wetland Status","Nativity"," 0-10"," 10-20"," 20-30"," 30-40"," 40-50"," 50-60"," 60-70"," 70-80"," 80-90"," 90-100","Occurrence ","Occurrence of Herbaceous Wetland Taxon","Taxa has CofC","PK$TAXAID","PK$FLEPPC","WETLANDSTATUS","HERBWOOD","CofC x Occurrence Herbaceous Wetlands Taxa","Quality Check (QC) Performed By"]
["Alternanthera philoxeroides",null,0,"Category 2","OBL","Exotic",null,null,null,null,null,null,null,null,null,null,{"$f":"COUNTIF(G10:P10,\"P\")+COUNTIF(G10:P10,\"C\")+COUNTIF(G10:P10,\"D\")","v":0},{"$f":"IF(AND(W10<>2,(OR(V10=3,V10=4,V10=5,V10=8,V10=9))),Q10,0)","v":0},{"$f":"IF(C10<>\"\",\"x\",\"-\")","v":"x"},"20770",2,5,1,{"$f":"IFERROR(R10*C10,\"0\")","v":0}]
["Bacopa caroliniana",null,4.5,"-","OBL","Native",null,null,null,null,null,null,null,null,null,null,0,0,"x",33039,3,5,1,0]
["Bacopa monnieri",null,3.5,"-","OBL","Native",null,null,null,null,null,null,null,null,null,null,0,0,"x",33038,3,5,1,0]
["Bidens mitis",null,4.5,"-","OBL","Native",null,null,null,null,null,null,null,null,null,null,0,0,"x",35729,3,5,1,0]
["Boehmeria cylindrica",null,5,"-","OBL","Native",null,null,null,null,null,null,null,null,null,null,0,0,"x",19121,3,5,1,0]
["Centella asiatica","Centella erecta",1.92,"-","FACW","Native",null,null,null,null,null,null,null,null,null,null,0,0,"x",29612,3,4,1,0]
["Ceratophyllum demersum",null,4.16,"-","OBL","Native",null,null,null,null,null,null,null,null,null,null,0,0,"x",18403,3,5,1,0]
["Chara",null,3.9,"-","OBL","Native",null,null,null,null,null,null,null,null,null,null,0,0,"x",9421,3,5,1,0]
["Cicuta maculata","Cicuta mexicana",4.54,"-","OBL","Native",null,null,null,null,null,null,null,null,null,null,0,0,"x",29456,3,5,1,0]
["Cladium jamaicense",null,8,"-","OBL","Native",null,null,null,null,null,null,null,null,null,null,0,0,"x",39878,3,5,1,0]
["Colocasia esculenta",null,0,"Category 1","OBL","Exotic",null,null,null,null,null,null,null,null,null,null,0,0,"x",42549,1,5,1,0]
["Commelina",null,2,"-","-","-",null,null,null,null,null,null,null,null,null,null,0,0,"x",39126,3,9,1,0]
["Commelina diffusa",null,2.02,"-","FACW","Exotic",null,null,null,null,null,null,null,null,null,null,0,0,"x",39131,3,4,1,0]
["Commelina virginica",null,4.67,"-","FACW","Native",null,null,null,null,null,null,null,null,null,null,0,0,"x",39128,3,4,1,0]
["Crinum americanum",null,9,"-","OBL","Native",null,null,null,null,null,null,null,null,null,null,0,0,"x",10007712,3,5,1,0]
["Diodia virginiana",null,3,"-","FACW","Native",null,null,null,null,null,null,null,null,null,null,0,0,"x",34790,3,4,1,0]
["Eichhornia crassipes",null,0,"Category 1","OBL","Exotic",null,null,null,null,null,null,null,null,null,null,0,0,"x",42623,1,5,1,0]
["Eleocharis",null,null,"-","OBL","Native",null,null,null,null,null,null,null,null,null,null,0,0,"-",40010,3,5,1,0]
["Hydrilla verticillata",null,0,"Category 1","OBL","Exotic",null,null,null,null,null,null,null,null,null,null,0,0,"x",38974,1,5,1,0]
["Hydrocotyle",null,2,"-","FACW","Native",null,null,null,null,null,null,null,null,null,null,0,0,"x",29512,3,4,1,0]
["Hygrophila",null,null,"-","OBL","-",null,null,null,null,null,null,null,null,null,null,0,0,"-",34419,4,5,1,0]
["Hygrophila polysperma",null,0,"Category 1","OBL","Exotic",null,null,null,null,null,null,null,null,null,null,0,0,"x",10007752,1,5,1,0]
["Hymenocallis",null,null,"-","OBL","Native",null,null,null,null,null,null,null,null,null,null,0,0,"-",10015356,3,5,1,0]
["Lachnanthes caroliniana",null,3.76,"-","FAC","Native",null,null,null,null,null,null,null,null,null,null,0,0,"x",43329,3,3,1,0]
["Landoltia punctata","Spirodela oligorrhiza, Spirodela punctata",0,"Category 2","UPL","Exotic",null,null,null,null,null,null,null,null,null,null,0,0,"x",10014991,2,2,1,0]
["Lemna",null,1,"-","OBL","Native",null,null,null,null,null,null,null,null,null,null,0,0,"x",42588,3,5,1,0]
["Limnophila sessiliflora",null,0,"Category 2","OBL","Exotic",null,null,null,null,null,null,null,null,null,null,0,0,"x",33635,2,5,1,0]
["Ludwigia leptocarpa",null,3,"-","OBL","Native",null,null,null,null,null,null,null,null,null,null,0,0,"x",27349,3,5,1,0]
["Ludwigia palustris",null,4.7699999999999996,"-","OBL","Native",null,null,null,null,null,null,null,null,null,null,0,0,"x",27336,3,5,1,0]
["Ludwigia peruviana",null,0,"Category 1","OBL","Exotic",null,null,null,null,null,null,null,null,null,null,0,0,"x",27359,1,5,1,0]
["Ludwigia repens",null,3.2,"-","OBL","Native",null,null,null,null,null,null,null,null,null,null,0,0,"x",27362,3,5,1,0]
["Luziola fluitans","Hydrochloa caroliniensis",4,"-","OBL","Native",null,null,null,null,null,null,null,null,null,null,0,0,"x",10008952,3,5,1,0]
["Micranthemum glomeratum",null,5.85,"-","OBL","Native",null,null,null,null,null,null,null,null,null,null,{"$f":"COUNTIF(G42:P42,\"P\")+COUNTIF(G42:P42,\"C\")+COUNTIF(G42:P42,\"D\")","v":0},{"$f":"IF(AND(W42<>2,(OR(V42=3,V42=4,V42=5,V42=8,V42=9))),Q42,0)","v":0},{"$f":"IF(C42<>\"\",\"x\",\"-\")","v":"x"},33230,3,5,1,{"$f":"IFERROR(R42*C42,\"0\")","v":0}]
["Micranthemum umbrosum",null,5.66,"-","OBL","Native",null,null,null,null,null,null,null,null,null,null,0,0,"x",33231,3,5,1,0]
["Myriophyllum aquaticum",null,0.98,"-","OBL","Exotic",null,null,null,null,null,null,null,null,null,null,0,0,"x",10007685,3,5,1,0]
["Najas guadalupensis",null,5.07,"-","OBL","Native",null,null,null,null,null,null,null,null,null,null,0,0,"x",38998,3,5,1,0]
["Nuphar",null,3.5,"-","OBL","Native",null,null,null,null,null,null,null,null,null,null,0,0,"x",18371,3,5,1,0]
["Nuphar luteum","Nuphar advena",3.5,"-","OBL","Native",null,null,null,null,null,null,null,null,null,null,0,0,"x",18372,3,5,1,0]
["Orontium aquaticum",null,8.39,"-","OBL","Native",null,null,null,null,null,null,null,null,null,null,0,0,"x",42532,3,5,1,0]
["Panicum hemitomon",null,5.82,"-","OBL","Native",null,null,null,null,null,null,null,null,null,null,0,0,"x",40909,3,5,1,0]
["Panicum repens",null,0,"Category 1","FACW","Exotic",null,null,null,null,null,null,null,null,null,null,0,0,"x",10007692,1,4,1,0]
["Panicum rigidulum",null,5.47,"-","FACW","Native",null,null,null,null,null,null,null,null,null,null,0,0,"x",40956,3,4,1,0]
["Persicaria glabra",null,4.5,"-","OBL","Native",null,null,null,null,null,null,null,null,null,null,0,0,"x",10016068,3,5,1,0]
["Persicaria hydropiperoides","Polygonum hydropiperoides",2.5,"-","OBL","Native",null,null,null,null,null,null,null,null,null,null,0,0,"x",10016070,3,5,1,0]
["Persicaria punctata","Polygonum punctatum",3,"-","OBL","Native",null,null,null,null,null,null,null,null,null,null,0,0,"x",10016074,3,5,1,0]
["Pistia stratiotes",null,0,"Category 1","OBL","Exotic",null,null,null,null,null,null,null,null,null,null,0,0,"x",42542,1,5,1,0]
["Pontederia cordata",null,5.38,"-","OBL","Native",null,null,null,null,null,null,null,null,null,null,0,0,"x",42620,3,5,1,0]
["Potamogeton illinoensis",null,6.64,"-","OBL","Native",null,null,null,null,null,null,null,null,null,null,0,0,"x",39035,3,5,1,0]
["Ruellia simplex","Ruellia brittoniana, Ruellia tweediana",0,"Category 1","FAC","Exotic",null,null,null,null,null,null,null,null,null,null,0,0,"x",10015686,1,3,1,0]
["Sacciolepis striata",null,5.35,"-","OBL","Native",null,null,null,null,null,null,null,null,null,null,0,0,"x",41227,3,5,1,0]
["Sagittaria kurziana",null,9.75,"-","OBL","Native",null,null,null,null,null,null,null,null,null,null,0,0,"x",38922,3,5,1,0]
["Sagittaria lancifolia",null,3,"-","OBL","Native",null,null,null,null,null,null,null,null,null,null,0,0,"x",38923,3,5,1,0]
["Sagittaria latifolia",null,3.5,"-","OBL","Native",null,null,null,null,null,null,null,null,null,null,0,0,"x",38908,3,5,1,0]
["Salvinia minima",null,0,"Category 1","OBL","Exotic",null,null,null,null,null,null,null,null,null,null,0,0,"x",10007730,1,5,1,0]
["Saururus cernuus",null,6.5,"-","OBL","Native",null,null,null,null,null,null,null,null,null,null,0,0,"x",18221,3,5,1,0]
["Sparganium americanum",null,6.5,"-","OBL","Native",null,null,null,null,null,null,null,null,null,null,0,0,"x",42313,3,5,1,0]
["Typha",null,1,"-","OBL","Native",null,null,null,null,null,null,null,null,null,null,0,0,"x",42324,3,5,1,0]
["Vallisneria americana",null,7,"-","OBL","Native",null,null,null,null,null,null,null,null,null,null,0,0,"x",38951,3,5,1,0]
["Zizania aquatica",null,7.5,"-","OBL","Native",null,null,null,null,null,null,null,null,null,null,0,0,"x",41319,3,5,1,0]
[null,null,null,null,null,null,null,null,null,null,null,null,null,null,null,null,null,null,null,null,null,null,null,null,null,null,null,null,null,null,null,null," 0-10"," 10-20"," 20-30"," 30-40"," 40-50"," 50-60"," 60-70"," 70-80"," 80-90"," 90-100"]
[null,null,null,null,null,null,null,null,null,null,null,null,null,null,null,null,null,null,null,null,null,null,null,null,null,null,null,null,null,null,null,null,{"$f":"COUNTIFS(G10:G68,\"D\")+COUNTIFS(G10:G68,\"C\")","v":0},0,0,0,0,0,0,0,0,0,null,{"$f":"IF(OR(AG70>2,AH70>2,AI70>2,AJ70>2,AK70>2,AL70>2,AM70>2,AN70>2,AO70>2,AP70>2),1,0)","v":0}]
["% Cover Macrophytes Per 10m Section "]
["Notes:"]

{"sheet":"3.LVS_TAXA","index":2,"n_rows":1239,"n_cols":29,"rows_kept":1239,"cut":false,"hidden":false,"merged":[[0,1,3,5]]}
[null,"To Add Taxon to Calculator:  \nSelect taxon under column A on THIS Sheet, \nThen click Add Taxon Button",null,null,null,null,null,null,null,null,null,null,null,null,null,null,null,null,null,null,null,null,null,null,null,null,null,"If a taxon is not in the table Ashley O'Neal. \n"]
[null,null,null,null,null,null,null,null,null,null,null,null,null,null,null,null,null,null,null,null,null,null,null,null,null,null,null,"The table will be updated with the new taxon and an updated version of the calculator issued."]
[]
[null,null,null,null,null,null,null,null,null,null,null,null,null,null,null,null,null,null,null,null,null,null,null,null,null,null,null,"Ashley O'Neal","Ashley.ONeal@FloridaDEP.gov"]
["Taxon","Synonym(s)","CofC Score","FLEPPC Status","Wetland Status","Nativity"," 0-10"," 10-20"," 20-30"," 30-40"," 40-50"," 50-60"," 60-70"," 70-80"," 80-90"," 90-100","Occurrence","Occurrence of Herbaceous Wetland Taxon","Taxa has \nCofC","PK$TAXAID","PK$FLEPPC","WETLANDSTATUS","HERBWOOD","CofC x Occurrence Herbaceous Wetland Taxa","Quality Check (QC) Preformed By"]
["Abildgaardia",null,null,"-","-","-",null,null,null,null,null,null,null,null,null,null,{"$f":"COUNTIF(G6:P6,\"P\")+COUNTIF(G6:P6,\"C\")+COUNTIF(G6:P6,\"D\")","v":0},{"$f":"IF(AND(W6<>2,(OR(V6=3,V6=4,V6=5,V6=8,V6=9))),Q6,0)","v":0},{"$f":"IF(C6<>\"\",\"x\",\"-\")","v":"-"},"40282",-9,-9,-9,{"$f":"IFERROR(R6*C6,\"0\")","v":0}]
["Abildgaardia ovata",null,null,"-","FACW","Native",null,null,null,null,null,null,null,null,null,null,{"$f":"COUNTIF(G7:P7,\"P\")+COUNTIF(G7:P7,\"C\")+COUNTIF(G7:P7,\"D\")","v":0},{"$f":"IF(AND(W7<>2,(OR(V7=3,V7=4,V7=5,V7=8,V7=9))),Q7,0)","v":0},{"$f":"IF(C7<>\"\",\"x\",\"-\")","v":"-"},40283,3,4,1,0]
["Acer",null,null,"-","-","Native",null,null,null,null,null,null,null,null,null,null,0,0,"-",28727,3,1,2,0]
["Acer barbatum",null,7.7,"-","-","Native",null,null,null,null,null,null,null,null,null,null,0,0,"x",28759,3,1,2,0]
["Acer rubrum",null,4.6500000000000004,"-","FACW","Native",null,null,null,null,null,null,null,null,null,null,0,0,"x",28728,3,4,2,0]
["Acer saccharinum",null,6.89,"-","OBL","Native",null,null,null,null,null,null,null,null,null,null,0,0,"x",28757,3,5,2,0]
["Acmella",null,null,"-","-","-",null,null,null,null,null,null,null,null,null,null,0,0,"-",10010771,3,9,1,0]
["Acmella oppositifolia repens","Acmella oppositifolia, Spilanthes americana",3,"-","FAC","Native",null,null,null,null,null,null,null,null,null,null,0,0,"x",10016088,3,3,1,0]
["Acrostichum",null,null,"-","-","-",null,null,null,null,null,null,null,null,null,null,0,0,"-",17304,-9,-9,-9,0]
["Acrostichum danaeifolium",null,5.79,"-","OBL","Native",null,null,null,null,null,null,null,null,null,null,0,0,"x",17306,3,5,1,0]
["Aeschynomene",null,null,"-","-","-",null,null,null,null,null,null,null,null,null,null,0,0,"-",25358,-9,-9,-9,0]
["Aeschynomene americana",null,2.4700000000000002,"-","-","Native",null,null,null,null,null,null,null,null,null,null,0,0,"x",25360,3,1,1,0]
["Aeschynomene fluitans",null,null,"-","OBL","Exotic",null,null,null,null,null,null,null,null,null,null,0,0,"-",10015748,3,8,1,0]
["Aeschynomene indica",null,0.49,"-","FACW","Exotic",null,null,null,null,null,null,null,null,null,null,0,0,"x",25362,3,4,1,0]
["Agalinis",null,null,"-","-","Native",null,null,null,null,null,null,null,null,null,null,0,0,"-",33006,3,1,1,0]
["Agalinis fasciculata",null,4.17,"-","FACW","Native",null,null,null,null,null,null,null,null,null,null,0,0,"x",33021,3,4,1,0]
["Agalinis filifolia",null,6.69,"-","UPL","Native",null,null,null,null,null,null,null,null,null,null,0,0,"x",33023,3,2,1,0]
["Agalinis linifolia",null,7.04,"-","OBL","Native",null,null,null,null,null,null,null,null,null,null,0,0,"x",33028,3,5,1,0]
["Agarista",null,null,"-","-","-",null,null,null,null,null,null,null,null,null,null,0,0,"-",23623,-9,-9,-9,0]
["Agarista populifolia",null,7.7,"-","FACW","Native",null,null,null,null,null,null,null,null,null,null,0,0,"x",23624,3,4,2,0]
["Albizia",null,null,"-","-","-",null,null,null,null,null,null,null,null,null,null,0,0,"-",26448,4,1,2,0]
["Albizia julibrissin",null,0,"Category 1","UPL","Exotic",null,null,null,null,null,null,null,null,null,null,0,0,"x",26449,1,2,2,0]
["Aleurites",null,null,"-","-","-",null,null,null,null,null,null,null,null,null,null,0,0,"-",28206,4,1,2,0]
["Aleurites fordii",null,0,"Category 2","-","Exotic",null,null,null,null,null,null,null,null,null,null,0,0,"x",28207,2,1,2,0]
["Alnus",null,null,"-","-","-",null,null,null,null,null,null,null,null,null,null,0,0,"-",19466,-9,-9,-9,0]
["Alnus serrulata",null,5.5,"-","OBL","Native",null,null,null,null,null,null,null,null,null,null,0,0,"x",19468,3,5,2,0]
["Alocasia",null,null,"-","-","-",null,null,null,null,null,null,null,null,null,null,0,0,"-",42556,3,1,1,0]
["Alternanthera",null,null,"-","-","-",null,null,null,null,null,null,null,null,null,null,0,0,"-",20763,-9,-9,-9,0]
["Alternanthera philoxeroides",null,0,"Category 2","OBL","Exotic",null,null,null,null,null,null,null,null,null,null,0,0,"x",20770,2,5,1,0]
["Alternanthera sessilis","Alternanthera tenella",0.11,"-","OBL","Exotic",null,null,null,null,null,null,null,null,null,null,0,0,"x",20773,3,5,1,0]
["Amaranthus",null,null,"-","-","-",null,null,null,null,null,null,null,null,null,null,0,0,"-",20715,3,-9,1,0]
["Amaranthus australis",null,1,"-","OBL","Native",null,null,null,null,null,null,null,null,null,null,0,0,"x",20721,3,5,1,0]
["Amaranthus spinosus",null,0.04,"-","-","Exotic",null,null,null,null,null,null,null,null,null,null,0,0,"x",20748,3,1,1,0]
["Amaroucium","Aplidium (part)",null,"-","-","-",null,null,null,null,null,null,null,null,null,null,0,0,"-",158939,-9,-9,-9,0]
["Ambrosia",null,null,"-","-","-",null,null,null,null,null,null,null,null,null,null,0,0,"-",36495,-9,-9,-9,0]
["Ambrosia artemisiifolia",null,0.95,"-","-","Native",null,null,null,null,null,null,null,null,null,null,0,0,"x",36496,3,1,1,0]
["Ammannia",null,null,"-","OBL","Native",null,null,null,null,null,null,null,null,null,null,0,0,"-",27090,3,5,1,0]
["Ammannia coccinea",null,5.0599999999999996,"-","OBL","Native",null,null,null,null,null,null,null,null,null,null,0,0,"x",27091,3,5,1,0]
["Ammannia latifolia",null,4.55,"-","OBL","Native",null,null,null,null,null,null,null,null,null,null,0,0,"x",27092,3,5,1,0]
["Amorpha",null,null,"-","-","-",null,null,null,null,null,null,null,null,null,null,0,0,"-",25367,3,9,3,0]
["Amorpha fruticosa",null,4.3099999999999996,"-","FACW","Native",null,null,null,null,null,null,null,null,null,null,0,0,"x",25368,3,4,2,0]
["Ampelopsis",null,null,"-","-","-",null,null,null,null,null,null,null,null,null,null,0,0,"-",28630,-9,-9,-9,0]
["Ampelopsis arborea",null,3.25,"-","-","Native",null,null,null,null,null,null,null,null,null,null,0,0,"x",28631,3,1,2,0]
["Amphicarpum",null,null,"-","-","-",null,null,null,null,null,null,null,null,null,null,0,0,"-",41383,-9,-9,-9,0]
["Amphicarpum muhlenbergianum","Amphicarpum floridanum",5.7,"-","FACW","Native",null,null,null,null,null,null,null,null,null,null,0,0,"x",41386,3,4,1,0]
["Andropogon",null,null,"-","-","Native",null,null,null,null,null,null,null,null,null,null,0,0,"-",40450,3,9,1,0]
["Andropogon glomeratus",null,3,"-","FACW","Native",null,null,null,null,null,null,null,null,null,null,0,0,"x",40454,3,4,1,0]
["Andropogon gyrans",null,6.07,"-","FAC","Native",null,null,null,null,null,null,null,null,null,null,0,0,"x",10008711,3,3,1,0]
["Andropogon mohrii","Andropogon liebmanii",7,"-","FACW","Native",null,null,null,null,null,null,null,null,null,null,0,0,"x",40464,3,4,1,0]
["Andropogon virginicus",null,3,"-","FAC","Native",null,null,null,null,null,null,null,null,null,null,0,0,"x",40456,3,3,1,0]
["Annona",null,null,"-","-","-",null,null,null,null,null,null,null,null,null,null,0,0,"-",18095,-9,-9,-9,0]
["Annona glabra",null,7,"-","OBL","Native",null,null,null,null,null,null,null,null,null,null,0,0,"x",18101,3,5,2,0]
["Apios",null,null,"-","-","-",null,null,null,null,null,null,null,null,null,null,0,0,"-",25389,-9,-9,-9,0]
["Apios americana",null,3.85,"-","-","Native",null,null,null,null,null,null,null,null,null,null,0,0,"x",25390,3,1,1,0]
["Ardisia",null,null,"-","FAC","-",null,null,null,null,null,null,null,null,null,null,0,0,"-",23888,4,3,2,0]
["Ardisia escallonioides",null,4.17,"-","FAC","Native",null,null,null,null,null,null,null,null,null,null,0,0,"x",23889,3,3,2,0]
["Aristida",null,null,"-","-","Native",null,null,null,null,null,null,null,null,null,null,0,0,"-",41400,3,9,1,0]
["Aristida palustris","Aristida affinis",8.23,"-","OBL","Native",null,null,null,null,null,null,null,null,null,null,0,0,"x",10007674,3,8,1,0]
["Aristida stricta",null,8.67,"-","FAC","Native",null,null,null,null,null,null,null,null,null,null,0,0,"x",41433,3,3,1,0]
["Arnoglossum",null,null,"-","-","-",null,null,null,null,null,null,null,null,null,null,0,0,"-",36582,3,9,1,0]
["Arnoglossum ovatum",null,null,"-","FAC","Native",null,null,null,null,null,null,null,null,null,null,0,0,"-",36586,3,3,1,0]
["Arnoglossum sulcatum",null,7.13,"-","OBL","Native",null,null,null,null,null,null,null,null,null,null,0,0,"x",36589,3,5,1,0]
["Arundinaria",null,null,"-","FACW","Native",null,null,null,null,null,null,null,null,null,null,0,0,"-",40476,3,4,1,0]
["Arundinaria gigantea",null,5.25,"-","FACW","Native",null,null,null,null,null,null,null,null,null,null,0,0,"x",40477,3,4,1,0]
["Arundo",null,null,"-","FAC","-",null,null,null,null,null,null,null,null,null,null,0,0,"-",41449,3,3,1,{"$f":"IFERROR(R70*C70,\"0\")","v":0}]
["Arundo donax",null,0,"-","FAC","Exotic",null,null,null,null,null,null,null,null,null,null,{"$f":"COUNTIF(G71:P71,\"P\")+COUNTIF(G71:P71,\"C\")+COUNTIF(G71:P71,\"D\")","v":0},{"$f":"IF(AND(W71<>2,(OR(V71=3,V71=4,V71=5,V71=8,V71=9))),Q71,0)","v":0},{"$f":"IF(C71<>\"\",\"x\",\"-\")","v":"x"},41450,3,3,1,0]
["Asclepias",null,null,"-","-","-",null,null,null,null,null,null,null,null,null,null,0,0,"-",30240,-9,-9,-9,0]
["Asclepias incarnata",null,null,"-","OBL","Native",null,null,null,null,null,null,null,null,null,null,0,0,"-",30241,3,5,1,0]
["Asclepias perennis",null,null,"-","OBL","Native",null,null,null,null,null,null,null,null,null,null,0,0,"-",10015848,3,5,1,0]
["Aster",null,null,"-","-","Native",null,null,null,null,null,null,null,null,null,null,0,0,"-",35510,3,9,3,0]
["Aster tortifolius",null,4.62,"-","-","Native",null,null,null,null,null,null,null,null,null,null,0,0,"x",35667,3,1,1,0]
["Avicennia",null,null,"-","-","-",null,null,null,null,null,null,null,null,null,null,0,0,"-",32136,-9,-9,-9,0]
["Avicennia germinans",null,4.5,"-","OBL","Native",null,null,null,null,null,null,null,null,null,null,0,0,"x",32137,3,5,2,0]
["Axonopus",null,null,"-","FAC","-",null,null,null,null,null,null,null,null,null,null,0,0,"-",41463,3,3,1,0]
["Axonopus affinis",null,1.89,"-","FAC","Native",null,null,null,null,null,null,null,null,null,null,0,0,"x",41464,3,3,1,0]
["Axonopus furcatus",null,2.12,"-","FAC","Native",null,null,null,null,null,null,null,null,null,null,0,0,"x",41466,3,3,1,0]
["Azolla",null,null,"-","OBL","-",null,null,null,null,null,null,null,null,null,null,0,0,"-",18006,3,8,1,0]
["Azolla filiculoides","Azolla caroliniana",1.81,"-","OBL","Native",null,null,null,null,null,null,null,null,null,null,0,0,"x",18007,3,8,1,0]
["Azolla pinnata",null,0,"-","OBL","Exotic",null,null,null,null,null,null,null,null,null,null,0,0,"x",10016083,3,8,1,0]
["Baccharis",null,null,"-","-","Native",null,null,null,null,null,null,null,null,null,null,0,0,"-",35681,3,9,2,0]
["Baccharis angustifolia",null,4.2,"-","OBL","Native",null,null,null,null,null,null,null,null,null,null,0,0,"x",35683,3,5,-9,0]
["Baccharis glomeruliflora",null,3,"-","FAC","Native",null,null,null,null,null,null,null,null,null,null,0,0,"x",35689,3,3,2,0]
["Baccharis halimifolia",null,2.5299999999999998,"-","FAC","Native",null,null,null,null,null,null,null,null,null,null,0,0,"x",35682,3,3,2,0]
["Bacopa",null,null,"-","OBL","Native",null,null,null,null,null,null,null,null,null,null,0,0,"-",33037,3,5,1,0]
["Bacopa caroliniana",null,4.5,"-","OBL","Native",null,null,null,null,null,null,null,null,null,null,0,0,"x",33039,3,5,1,0]
["Bacopa monnieri",null,3.5,"-","OBL","Native",null,null,null,null,null,null,null,null,null,null,0,0,"x",33038,3,5,1,0]
["Bambusa",null,null,"-","-","-",null,null,null,null,null,null,null,null,null,null,0,0,"-",10009233,3,1,1,0]
["Begonia",null,null,"-","-","-",null,null,null,null,null,null,null,null,null,null,0,0,"-",22327,4,1,1,0]
["Betula",null,null,"-","-","-",null,null,null,null,null,null,null,null,null,null,0,0,"-",19478,-9,-9,-9,0]
["Betula nigra",null,null,"-","OBL","Native",null,null,null,null,null,null,null,null,null,null,0,0,"-",19480,3,5,2,0]
["Bidens",null,null,"-","-","Native",null,null,null,null,null,null,null,null,null,null,0,0,"-",35705,3,9,1,0]
["Bidens alba",null,1,"-","FAC","Native",null,null,null,null,null,null,null,null,null,null,0,0,"x",10008614,3,3,1,0]
["Bidens discoidea",null,4.5,"-","OBL","Native",null,null,null,null,null,null,null,null,null,null,0,0,"x",35719,3,5,1,0]
["Bidens laevis",null,5.5,"-","OBL","Native",null,null,null,null,null,null,null,null,null,null,0,0,"x",35711,3,5,1,0]
["Bidens mitis",null,4.5,"-","OBL","Native",null,null,null,null,null,null,null,null,null,null,0,0,"x",35729,3,5,1,0]
["Bidens pilosa",null,1.64,"-","FAC","Exotic",null,null,null,null,null,null,null,null,null,null,0,0,"x",35731,3,3,1,0]
["Bigelowia",null,null,"-","-","-",null,null,null,null,null,null,null,null,null,null,0,0,"-",36836,-9,-9,-9,0]
["Bigelowia nudata",null,7.59,"-","FACW","Native",null,null,null,null,null,null,null,null,null,null,0,0,"x",36837,3,4,1,0]
["Blechnum",null,null,"-","-","Native",null,null,null,null,null,null,null,null,null,null,0,0,"-",17862,3,1,1,0]
["Blechnum serrulatum",null,5.5,"-","FACW","Native",null,null,null,null,null,null,null,null,null,null,0,0,"x",17864,3,4,1,0]
["Boehmeria",null,null,"-","-","-",null,null,null,null,null,null,null,null,null,null,0,0,"-",19120,-9,-9,-9,0]
["Boehmeria cylindrica",null,5,"-","OBL","Native",null,null,null,null,null,null,null,null,null,null,0,0,"x",19121,3,5,1,0]
["Bolboschoenus",null,null,"-","UPL","Native",null,null,null,null,null,null,null,null,null,null,0,0,"-",100106090,3,2,1,0]
["Bolboschoenus robustus","Schoenoplectus robustus, Scirpus robustus",5,"-","OBL","Native",null,null,null,null,null,null,null,null,null,null,0,0,"x",100106091,3,5,1,0]
["Boltonia",null,null,"-","-","-",null,null,null,null,null,null,null,null,null,null,0,0,"-",36852,-9,-9,-9,0]
["Boltonia apalachicolensis",null,7.17,"-","FACW","Native",null,null,null,null,null,null,null,null,null,null,0,0,"x",10015478,3,4,1,0]
["Boltonia diffusa",null,4.96,"-","FACW","Native",null,null,null,null,null,null,null,null,null,null,0,0,"x",36855,3,4,1,0]
["Brachiaria",null,null,"-","-","-",null,null,null,null,null,null,null,null,null,null,0,0,"-",41512,4,9,1,0]
["Brasenia",null,null,"-","-","-",null,null,null,null,null,null,null,null,null,null,0,0,"-",18369,-9,-9,-9,0]
["Brasenia schreberi",null,8.7899999999999991,"-","OBL","Native",null,null,null,null,null,null,null,null,null,null,0,0,"x",18370,3,5,1,0]
["Cabomba",null,null,"-","-","-",null,null,null,null,null,null,null,null,null,null,0,0,"-",18407,-9,-9,-9,0]
["Cabomba caroliniana",null,5.5,"-","OBL","Native",null,null,null,null,null,null,null,null,null,null,0,0,"x",18408,3,5,1,0]
["Callicarpa","Callicarpa (magnoliophyta)",null,"-","-","-",null,null,null,null,null,null,null,null,null,null,0,0,"-",32142,-9,-9,-9,0]
["Callicarpa americana",null,3.2,"-","UPL","Native",null,null,null,null,null,null,null,null,null,null,0,0,"x",32144,3,2,2,0]
["Callistemon",null,null,"-","-","-",null,null,null,null,null,null,null,null,null,null,0,0,"-",27173,-9,-9,-9,0]
["Callistemon viminalis",null,0,"Category 2","-","Exotic",null,null,null,null,null,null,null,null,null,null,0,0,"x",10008851,2,1,2,0]
["Callitriche","Callitriche(plant)",null,"-","OBL","-",null,null,null,null,null,null,null,null,null,null,0,0,"-",32050,3,5,1,0]
["Campsis",null,null,"-","-","-",null,null,null,null,null,null,null,null,null,null,0,0,"-",34308,-9,-9,-9,0]
["Campsis radicans",null,2.5299999999999998,"-","-","Native",null,null,null,null,null,null,null,null,null,null,0,0,"x",34309,3,1,2,0]
["Canna",null,null,"-","OBL","Native",null,null,null,null,null,null,null,null,null,null,0,0,"-",42409,3,5,1,0]
["Canna flaccida",null,5.5,"-","OBL","Native",null,null,null,null,null,null,null,null,null,null,0,0,"x",42410,3,5,1,0]
["Canna indica",null,null,"-","OBL","Exotic",null,null,null,null,null,null,null,null,null,null,0,0,"-",42413,3,5,1,0]
["Canna x generalis",null,null,"-","FAC","Exotic",null,null,null,null,null,null,null,null,null,null,0,0,"-",10015736,3,3,1,0]
["Caperonia",null,null,"-","FACW","-",null,null,null,null,null,null,null,null,null,null,0,0,"-",28242,3,4,1,0]
["Caperonia castaneifolia",null,4.9400000000000004,"-","FACW","Native",null,null,null,null,null,null,null,null,null,null,0,0,"x",10007679,3,4,1,0]
["Cardamine",null,null,"-","-","-",null,null,null,null,null,null,null,null,null,null,0,0,"-",22768,-9,-9,-9,0]
["Cardamine pensylvanica",null,4.42,"-","OBL","Native",null,null,null,null,null,null,null,null,null,null,0,0,"x",22772,3,5,1,0]
["Carex",null,null,"-","-","-",null,null,null,null,null,null,null,null,null,null,0,0,"-",39369,3,9,1,0]
["Carex albolutescens","Carex longi",3.47,"-","FACW","Native",null,null,null,null,null,null,null,null,null,null,0,0,"x",39371,3,4,1,{"$f":"IFERROR(R134*C134,\"0\")","v":0}]
["Carex comosa",null,1.5,"-","OBL","Native",null,null,null,null,null,null,null,null,null,null,{"$f":"COUNTIF(G135:P135,\"P\")+COUNTIF(G135:P135,\"C\")+COUNTIF(G135:P135,\"D\")","v":0},{"$f":"IF(AND(W135<>2,(OR(V135=3,V135=4,V135=5,V135=8,V135=9))),Q135,0)","v":0},{"$f":"IF(C135<>\"\",\"x\",\"-\")","v":"x"},39384,3,5,1,0]
["Carex decomposita",null,null,"-","OBL","Native",null,null,null,null,null,null,null,null,null,null,0,0,"-",39389,3,5,1,0]
["Carex elliottii",null,null,"-","OBL","Native",null,null,null,null,null,null,null,null,null,null,0,0,"-",39588,3,5,1,0]
["Carex fissa",null,3.9,"-","FACW","Native",null,null,null,null,null,null,null,null,null,null,0,0,"x",39601,3,4,1,0]
["Carex gigantea",null,5.07,"-","OBL","Native",null,null,null,null,null,null,null,null,null,null,0,0,"x",39394,3,5,1,0]
["Carex glaucescens",null,4.7,"-","FACW","Native",null,null,null,null,null,null,null,null,null,null,0,0,"x",39396,3,4,1,0]
["Carex joorii",null,0,"-","FACW","Native",null,null,null,null,null,null,null,null,null,null,0,0,"x",10015972,3,4,1,0]
["Carex longii",null,2.25,"-","FACW","Native",null,null,null,null,null,null,null,null,null,null,0,0,"x",10010633,3,4,1,0]
["Carex lupuliformis",null,5.5,"-","OBL","Native",null,null,null,null,null,null,null,null,null,null,0,0,"x",39412,3,5,1,0]
["Carex lupulina",null,5.5,"-","OBL","Native",null,null,null,null,null,null,null,null,null,null,0,0,"x",39413,3,5,1,0]
["Carex lurida","Carex rostrata",4.29,"-","OBL","Native",null,null,null,null,null,null,null,null,null,null,0,0,"x",39414,3,5,1,0]
["Carex stipata",null,4.46,"-","OBL","Native",null,null,null,null,null,null,null,null,null,null,0,0,"x",39434,3,5,1,0]
["Carex verrucosa",null,9.1,"-","FACW","Native",null,null,null,null,null,null,null,null,null,null,0,0,"x",39862,3,4,1,0]
["Carphephorus",null,null,"-","-","-",null,null,null,null,null,null,null,null,null,null,0,0,"-",36939,3,9,1,0]
["Carpinus",null,null,"-","-","-",null,null,null,null,null,null,null,null,null,null,0,0,"-",19503,-9,-9,-9,0]
["Carpinus caroliniana",null,6.5,"-","FACW","Native",null,null,null,null,null,null,null,null,null,null,0,0,"x",19504,3,4,2,0]
["Cartrema",null,0,"-","-","Native",null,null,null,null,null,null,null,null,null,null,0,0,"x",10016058,3,9,2,0]
["Cartrema americanus",null,0,"-","FAC","Native",null,null,null,null,null,null,null,null,null,null,0,0,"x",10016059,3,3,2,0]
["Carya",null,null,"-","-","Native",null,null,null,null,null,null,null,null,null,null,0,0,"-",19223,3,9,2,0]
["Carya aquatica",null,7,"-","OBL","Native",null,null,null,null,null,null,null,null,null,null,0,0,"x",19224,3,5,2,0]
["Cassia",null,1.46,"-","-","Exotic",null,null,null,null,null,null,null,null,null,null,0,0,"x",25735,3,1,1,0]
["Cassytha",null,null,"-","-","-",null,null,null,null,null,null,null,null,null,null,0,0,"-",18172,-9,-9,-9,0]
["Cassytha filiformis",null,3.34,"-","-","Native",null,null,null,null,null,null,null,null,null,null,0,0,"x",18173,3,1,1,0]
["Casuarina",null,0,"-","FAC","Exotic",null,null,null,null,null,null,null,null,null,null,0,0,"x",19514,4,3,2,0]
["Casuarina equisetifolia",null,0,"Category 1","FAC","Exotic",null,null,null,null,null,null,null,null,null,null,0,0,"x",19516,1,3,2,0]
["Catalpa",null,null,"-","-","Native",null,null,null,null,null,null,null,null,null,null,0,0,"-",34312,3,1,2,0]
["Catalpa bignonioides",null,3.27,"-","-","Native",null,null,null,null,null,null,null,null,null,null,0,0,"x",34313,3,1,2,0]
["Celtis",null,null,"-","-","-",null,null,null,null,null,null,null,null,null,null,0,0,"-",19039,-9,-9,-9,0]
["Celtis laevigata",null,5.08,"-","FACW","Native",null,null,null,null,null,null,null,null,null,null,0,0,"x",19042,3,4,2,0]
["Cenchrus",null,null,"-","-","-",null,null,null,null,null,null,null,null,null,null,0,0,"-",40569,-9,-9,-9,0]
["Centella",null,null,"-","FACW","Native",null,null,null,null,null,null,null,null,null,null,0,0,"-",29611,3,4,1,0]
["Centella asiatica","Centella erecta",1.92,"-","FACW","Native",null,null,null,null,null,null,null,null,null,null,0,0,"x",29612,3,4,1,0]
["Cephalanthus",null,null,"-","OBL","Native",null,null,null,null,null,null,null,null,null,null,0,0,"-",34785,3,5,2,0]
["Cephalanthus occidentalis",null,5,"-","OBL","Native",null,null,null,null,null,null,null,null,null,null,0,0,"x",34786,3,5,2,0]
["Ceratophyllum",null,null,"-","OBL","Native",null,null,null,null,null,null,null,null,null,null,0,0,"-",18402,3,5,-9,0]
["Ceratophyllum demersum",null,4.16,"-","OBL","Native",null,null,null,null,null,null,null,null,null,null,0,0,"x",18403,3,5,1,0]
["Ceratopteris",null,null,"-","OBL","-",null,null,null,null,null,null,null,null,null,null,0,0,"-",17955,3,5,1,0]
["Ceratopteris pteridoides",null,2.67,"-","OBL","Native",null,null,null,null,null,null,null,null,null,null,0,0,"x",17956,3,5,1,0]
["Ceratopteris thalictroides",null,2.93,"-","OBL","Exotic",null,null,null,null,null,null,null,null,null,null,0,0,"x",17958,3,5,1,0]
["Cestrum diurnum",null,0,"Category 2","FAC","Exotic",null,null,null,null,null,null,null,null,null,null,0,0,"x",30496,2,3,-9,0]
["Chamaecyparis",null,null,"-","OBL","-",null,null,null,null,null,null,null,null,null,null,0,0,"-",18045,3,5,2,0]
["Chamaecyparis thyoides",null,7.09,"-","OBL","Native",null,null,null,null,null,null,null,null,null,null,0,0,"x",18046,3,5,2,0]
["Chara",null,3.9,"-","OBL","Native",null,null,null,null,null,null,null,null,null,null,0,0,"x",9421,3,5,1,0]
["Chasmanthium",null,null,"-","-","-",null,null,null,null,null,null,null,null,null,null,0,0,"-",41546,-9,-9,-9,0]
["Chasmanthium laxum",null,7.37,"-","FACW","Native",null,null,null,null,null,null,null,null,null,null,0,0,"x",41548,3,4,1,0]
["Chasmanthium nitidum",null,5.67,"-","FACW","Native",null,null,null,null,null,null,null,null,null,null,0,0,"x",41549,3,4,1,0]
["Chenopodium",null,null,"-","-","-",null,null,null,null,null,null,null,null,null,null,0,0,"-",20589,3,-9,1,0]
["Chrysobalanus",null,null,"-","-","-",null,null,null,null,null,null,null,null,null,null,0,0,"-",25147,-9,-9,-9,0]
["Chrysobalanus icaco",null,5.63,"-","FACW","Native",null,null,null,null,null,null,null,null,null,null,0,0,"x",25148,3,4,2,0]
["Chrysoma",null,null,"-","-","-",null,null,null,null,null,null,null,null,null,null,0,0,"-",37046,-9,-9,-9,0]
["Chrysoma pauciflosculosa",null,4.4000000000000004,"-","-","Native",null,null,null,null,null,null,null,null,null,null,0,0,"x",37047,3,1,2,0]
["Chrysopsis",null,null,"-","-","-",null,null,null,null,null,null,null,null,null,null,0,0,"-",10010558,3,1,1,0]
["Chrysopsis lanuginosa",null,null,"-","-","Native",null,null,null,null,null,null,null,null,null,null,0,0,"-",10015828,3,1,1,0]
["Chrysopsis mariana",null,3.7,"-","UPL","Native",null,null,null,null,null,null,null,null,null,null,0,0,"x",10010513,3,2,1,0]
["Cicuta",null,null,"-","OBL","Native",null,null,null,null,null,null,null,null,null,null,0,0,"-",29455,3,5,1,0]
["Cicuta maculata","Cicuta mexicana",4.54,"-","OBL","Native",null,null,null,null,null,null,null,null,null,null,0,0,"x",29456,3,5,1,0]
["Cinnamomum",null,null,"-","-","-",null,null,null,null,null,null,null,null,null,null,0,0,"-",18174,-9,-9,-9,0]
["Cinnamomum camphora",null,0,"Category 1","UPL","Exotic",null,null,null,null,null,null,null,null,null,null,0,0,"x",18175,1,2,2,0]
["Cirsium",null,null,"-","-","-",null,null,null,null,null,null,null,null,null,null,0,0,"-",36334,-9,-9,-9,0]
["Cirsium nuttallii",null,3.08,"-","FACW","Native",null,null,null,null,null,null,null,null,null,null,0,0,"x",36390,3,4,1,0]
["Cladium",null,null,"-","-","-",null,null,null,null,null,null,null,null,null,null,0,0,"-",39877,-9,-9,-9,0]
["Cladium jamaicense",null,8,"-","OBL","Native",null,null,null,null,null,null,null,null,null,null,0,0,"x",39878,3,5,1,0]
["Clethra",null,null,"-","-","-",null,null,null,null,null,null,null,null,null,null,0,0,"-",23453,-9,-9,-9,0]
["Clethra alnifolia",null,5.63,"-","FACW","Native",null,null,null,null,null,null,null,null,null,null,0,0,"x",23454,3,4,2,{"$f":"IFERROR(R198*C198,\"0\")","v":0}]
["Cliftonia",null,null,"-","-","-",null,null,null,null,null,null,null,null,null,null,{"$f":"COUNTIF(G199:P199,\"P\")+COUNTIF(G199:P199,\"C\")+COUNTIF(G199:P199,\"D\")","v":0},{"$f":"IF(AND(W199<>2,(OR(V199=3,V199=4,V199=5,V199=8,V199=9))),Q199,0)","v":0},{"$f":"IF(C199<>\"\",\"x\",\"-\")","v":"-"},23445,-9,-9,-9,0]
["Cliftonia monophylla",null,5.63,"-","FACW","Native",null,null,null,null,null,null,null,null,null,null,0,0,"x",23446,3,4,2,0]
["Clinopodium",null,null,"-","-","-",null,null,null,null,null,null,null,null,null,null,0,0,"-",10015827,3,9,1,0]
["Clinopodium brownei","Micromeria brownei",6.34,"-","OBL","Native",null,null,null,null,null,null,null,null,null,null,0,0,"x",10015824,3,5,1,0]
["Coccoloba",null,null,"-","-","-",null,null,null,null,null,null,null,null,null,null,0,0,"-",21037,-9,-9,-9,0]
["Coccoloba uvifera",null,null,"-","-","Native",null,null,null,null,null,null,null,null,null,null,0,0,"-",21039,3,1,2,0]
["Cocos",null,0,"Category 2","OBL","Exotic",null,null,null,null,null,null,null,null,null,null,0,0,"x",42450,2,5,2,0]
["Cocos nucifera",null,0,"Category 2","OBL","Exotic",null,null,null,null,null,null,null,null,null,null,0,0,"x",42451,2,5,2,0]
["Coelorachis",null,null,"-","-","-",null,null,null,null,null,null,null,null,null,null,0,0,"-",41580,3,9,1,0]
["Coelorachis cylindrica",null,7,"-","FAC","Native",null,null,null,null,null,null,null,null,null,null,0,0,"x",41581,3,3,1,0]
["Coelorachis rugosa",null,8.91,"-","FACW","Native",null,null,null,null,null,null,null,null,null,null,0,0,"x",41582,3,4,1,0]
["Coelorachis tuberculosa",null,9.0299999999999994,"-","FACW","Native",null,null,null,null,null,null,null,null,null,null,0,0,"x",10007671,3,4,1,0]
["Colocasia",null,null,"-","-","-",null,null,null,null,null,null,null,null,null,null,0,0,"-",42547,-9,-9,-9,0]
["Colocasia esculenta",null,0,"Category 1","OBL","Exotic",null,null,null,null,null,null,null,null,null,null,0,0,"x",42549,1,5,1,0]
["Commelina",null,2,"-","-","-",null,null,null,null,null,null,null,null,null,null,0,0,"x",39126,3,9,1,0]
["Commelina diffusa",null,2.02,"-","FACW","Exotic",null,null,null,null,null,null,null,null,null,null,0,0,"x",39131,3,4,1,0]
["Commelina erecta",null,2,"-","UPL","Native",null,null,null,null,null,null,null,null,null,null,0,0,"x",39132,3,2,1,0]
["Commelina virginica",null,4.67,"-","FACW","Native",null,null,null,null,null,null,null,null,null,null,0,0,"x",39128,3,4,1,0]
["Conoclinium",null,null,"-","FAC","-",null,null,null,null,null,null,null,null,null,null,0,0,"-",37104,3,3,1,0]
["Conoclinium coelestinum",null,4.37,"-","FAC","Native",null,null,null,null,null,null,null,null,null,null,0,0,"x",10007672,3,3,1,0]
["Conyza",null,null,"-","-","-",null,null,null,null,null,null,null,null,null,null,0,0,"-",37108,-9,-9,1,0]
["Conyza canadensis",null,1.01,"-","-","Native",null,null,null,null,null,null,null,null,null,null,0,0,"x",37113,3,1,1,0]
["Coreopsis",null,null,"-","-","-",null,null,null,null,null,null,null,null,null,null,0,0,"-",37123,3,9,1,0]
["Coreopsis gladiata",null,4,"-","FACW","Native",null,null,null,null,null,null,null,null,null,null,0,0,"x",37134,3,4,1,0]
["Coreopsis leavenworthii",null,3.43,"-","FACW","Native",null,null,null,null,null,null,null,null,null,null,0,0,"x",37141,3,4,1,0]
["Coreopsis nudata",null,null,"-","OBL","Native",null,null,null,null,null,null,null,null,null,null,0,0,"-",37145,3,5,1,0]
["Coreopsis tinctoria",null,0.9,"-","-","Native",null,null,null,null,null,null,null,null,null,null,0,0,"x",10011071,3,1,1,0]
["Cornus",null,null,"-","-","Native",null,null,null,null,null,null,null,null,null,null,0,0,"-",27798,3,9,2,0]
["Cornus foemina",null,5.91,"-","FAC","Native",null,null,null,null,null,null,null,null,null,null,0,0,"x",27802,3,3,2,0]
["Cortaderia",null,null,"-","-","-",null,null,null,null,null,null,null,null,null,null,0,0,"-",41594,3,1,1,0]
["Cortaderia selloana",null,0,"-","-","Exotic",null,null,null,null,null,null,null,null,null,null,0,0,"x",41597,3,1,1,0]
["Crinum",null,null,"-","OBL","Native",null,null,null,null,null,null,null,null,null,null,0,0,"-",10007711,3,5,1,0]
["Crinum americanum",null,9,"-","OBL","Native",null,null,null,null,null,null,null,null,null,null,0,0,"x",10007712,3,5,1,0]
["Crotalaria",null,null,"-","-","-",null,null,null,null,null,null,null,null,null,null,0,0,"-",26569,3,1,3,0]
["Crotalaria pallida",null,0,"-","-","Exotic",null,null,null,null,null,null,null,null,null,null,0,0,"x",26574,3,1,3,0]
["Crotalaria spectabilis",null,0,"-","-","Exotic",null,null,null,null,null,null,null,null,null,null,0,0,"x",26580,3,1,1,0]
["Ctenitis",null,null,"-","-","Native",null,null,null,null,null,null,null,null,null,null,0,0,"-",17464,3,9,1,0]
["Ctenitis submarginalis",null,null,"-","FACW","Native",null,null,null,null,null,null,null,null,null,null,0,0,"-",17466,3,4,1,0]
["Cucurbita",null,null,"-","-","-",null,null,null,null,null,null,null,null,null,null,0,0,"-",22365,-9,-9,-9,0]
["Cucurbita okeechobeensis",null,null,"-","-","Native",null,null,null,null,null,null,null,null,null,null,0,0,"-",22371,3,1,1,0]
["Cupaniopsis",null,null,"-","-","-",null,null,null,null,null,null,null,null,null,null,0,0,"-",10015575,-9,0,2,0]
["Cupaniopsis anacardioides",null,0,"Category 1","FAC","Exotic",null,null,null,null,null,null,null,null,null,null,0,0,"x",10015571,1,3,2,0]
["Cuphea",null,null,"-","-","-",null,null,null,null,null,null,null,null,null,null,0,0,"-",27094,-9,-9,-9,0]
["Cuphea carthagenensis",null,1.92,"-","FAC","Exotic",null,null,null,null,null,null,null,null,null,null,0,0,"x",27103,3,3,1,0]
["Cynodon",null,null,"-","-","-",null,null,null,null,null,null,null,null,null,null,0,0,"-",41616,-9,-9,-9,0]
["Cynodon dactylon",null,0.28999999999999998,"-","-","Exotic",null,null,null,null,null,null,null,null,null,null,0,0,"x",41619,3,1,1,0]
["Cyperus",null,null,"-","-","-",null,null,null,null,null,null,null,null,null,null,0,0,"-",39882,4,9,1,0]
["Cyperus alopecuroides",null,0,"-","FACW","Exotic",null,null,null,null,null,null,null,null,null,null,0,0,"x",10015351,3,4,1,0]
["Cyperus alternifolius",null,0,"Category 2","OBL","Exotic",null,null,null,null,null,null,null,null,null,null,0,0,"x",39904,2,5,1,0]
["Cyperus articulatus",null,6.64,"-","OBL","Native",null,null,null,null,null,null,null,null,null,null,0,0,"x",39908,3,5,1,0]
["Cyperus blepharoleptos","Oxycaryum cubense, Scirpus cubensis",0,"-","OBL","Exotic",null,null,null,null,null,null,null,null,null,null,0,0,"x",10016052,3,5,1,0]
["Cyperus brevifolius",null,1.42,"-","FACW","Native",null,null,null,null,null,null,null,null,null,null,0,0,"x",39910,3,4,1,0]
["Cyperus compressus",null,2.74,"-","FACW","Native",null,null,null,null,null,null,null,null,null,null,0,0,"x",39913,3,4,1,0]
["Cyperus croceus","Cyperus globulosus",1.3,"-","FAC","Native",null,null,null,null,null,null,null,null,null,null,0,0,"x",10007727,3,3,1,0]
["Cyperus difformis",null,0,"-","OBL","Exotic",null,null,null,null,null,null,null,null,null,null,0,0,"x",39915,3,5,1,0]
["Cyperus distinctus",null,5,"-","OBL","Native",null,null,null,null,null,null,null,null,null,null,0,0,"x",39918,3,5,1,0]
["Cyperus drummondii",null,4.67,"-","OBL","Native",null,null,null,null,null,null,null,null,null,null,0,0,"x",10015401,3,5,1,0]
["Cyperus entrerianus",null,1.5,"-","OBL","Exotic",null,null,null,null,null,null,null,null,null,null,0,0,"x",10013731,3,5,1,0]
["Cyperus erythrorhizos",null,2.89,"-","OBL","Native",null,null,null,null,null,null,null,null,null,null,0,0,"x",39887,3,5,1,0]
["Cyperus esculentus",null,0,"-","FAC","Exotic",null,null,null,null,null,null,null,null,null,null,0,0,"x",39888,3,3,1,0]
["Cyperus flavescens",null,2.17,"-","OBL","Native",null,null,null,null,null,null,null,null,null,null,0,0,"x",39891,3,5,1,0]
["Cyperus haspan",null,4,"-","OBL","Native",null,null,null,null,null,null,null,null,null,null,0,0,"x",39930,3,5,1,0]
["Cyperus involucratus",null,0,"Category 2","FACW","Exotic",null,null,null,null,null,null,null,null,null,null,0,0,"x",10013491,2,4,1,0]
["Cyperus iria",null,1.69,"-","FACW","Exotic",null,null,null,null,null,null,null,null,null,null,0,0,"x",39934,3,4,1,{"$f":"IFERROR(R262*C262,\"0\")","v":0}]
["Cyperus lanceolatus",null,2.04,"-","OBL","Exotic",null,null,null,null,null,null,null,null,null,null,{"$f":"COUNTIF(G263:P263,\"P\")+COUNTIF(G263:P263,\"C\")+COUNTIF(G263:P263,\"D\")","v":0},{"$f":"IF(AND(W263<>2,(OR(V263=3,V263=4,V263=5,V263=8,V263=9))),Q263,0)","v":0},{"$f":"IF(C263<>\"\",\"x\",\"-\")","v":"x"},39936,3,5,1,0]
["Cyperus lecontei",null,2.33,"-","FACW","Native",null,null,null,null,null,null,null,null,null,null,0,0,"x",39937,3,4,1,0]
["Cyperus ligularis",null,1.55,"-","FACW","Native",null,null,null,null,null,null,null,null,null,null,0,0,"x",39938,3,4,1,0]
["Cyperus odoratus",null,3,"-","FACW","Native",null,null,null,null,null,null,null,null,null,null,0,0,"x",39894,3,4,1,0]
["Cyperus ovatus",null,null,"-","FAC","Native",null,null,null,null,null,null,null,null,null,null,0,0,"-",10015823,3,3,1,0]
["Cyperus papyrus",null,0.31,"-","OBL","Exotic",null,null,null,null,null,null,null,null,null,null,0,0,"x",39950,3,5,1,0]
["Cyperus polystachyos",null,1.56,"-","FACW","Native",null,null,null,null,null,null,null,null,null,null,0,0,"x",39957,3,4,1,0]
["Cyperus prolifer",null,0,"Category 2","FACW","Exotic",null,null,null,null,null,null,null,null,null,null,0,0,"x",10007729,2,4,1,0]
["Cyperus retrorsus",null,1.79,"-","FAC","Native",null,null,null,null,null,null,null,null,null,null,0,0,"x",39898,3,3,1,0]
["Cyperus rotundus",null,0,"-","FAC","Exotic",null,null,null,null,null,null,null,null,null,null,0,0,"x",39900,3,3,1,0]
["Cyperus sphacelatus",null,0.43,"-","FACW","Exotic",null,null,null,null,null,null,null,null,null,null,0,0,"x",40000,3,4,1,0]
["Cyperus strigosus",null,4.49,"-","FACW","Native",null,null,null,null,null,null,null,null,null,null,0,0,"x",39901,3,4,1,0]
["Cyperus surinamensis",null,2.0299999999999998,"-","FACW","Native",null,null,null,null,null,null,null,null,null,null,0,0,"x",39970,3,4,1,0]
["Cyperus tetragonus",null,null,"-","FAC","Native",null,null,null,null,null,null,null,null,null,null,0,0,"-",39972,3,3,1,0]
["Cyperus virens",null,5.7,"-","FACW","Native",null,null,null,null,null,null,null,null,null,null,0,0,"x",39975,3,4,1,0]
["Cyrilla",null,null,"-","-","-",null,null,null,null,null,null,null,null,null,null,0,0,"-",23448,-9,-9,-9,0]
["Cyrilla racemiflora",null,5,"-","FAC","Native",null,null,null,null,null,null,null,null,null,null,0,0,"x",23449,3,3,2,0]
["Dactyloctenium",null,null,"-","-","-",null,null,null,null,null,null,null,null,null,null,0,0,"-",41629,-9,-9,-9,0]
["Dactyloctenium aegyptium",null,0.67,"-","-","Exotic",null,null,null,null,null,null,null,null,null,null,0,0,"x",41630,3,1,1,0]
["Dalbergia",null,null,"-","-","-",null,null,null,null,null,null,null,null,null,null,0,0,"-",26593,-9,-9,-9,0]
["Dalbergia ecastaphyllum",null,null,"-","FAC","Native",null,null,null,null,null,null,null,null,null,null,0,0,"-",26595,3,3,2,0]
["Decodon (plant)",null,null,"-","OBL","-",null,null,null,null,null,null,null,null,null,null,0,0,"-",27075,3,5,-9,0]
["Decodon verticillatus",null,6,"-","OBL","Native",null,null,null,null,null,null,null,null,null,null,0,0,"x",27076,3,5,2,0]
["Desmodium",null,null,"-","-","-",null,null,null,null,null,null,null,null,null,null,0,0,"-",25784,-9,-9,-9,0]
["Desmodium incanum",null,null,"-","-","Native",null,null,null,null,null,null,null,null,null,null,0,0,"-",25804,3,1,3,0]
["Dichanthelium",null,null,"-","-","-",null,null,null,null,null,null,null,null,null,null,0,0,"-",41645,3,9,1,0]
["Dichanthelium commutatum",null,6,"-","FAC","Native",null,null,null,null,null,null,null,null,null,null,0,0,"x",41647,3,3,1,0]
["Dichanthelium dichotomom","Panicum dichotomum",5.61,"-","FACW","Native",null,null,null,null,null,null,null,null,null,null,0,0,"x",10016054,3,4,1,0]
["Dichanthelium ensifolium","Panicum chamaelonche, Panicum ensifolium",6.5,"-","OBL","Native",null,null,null,null,null,null,null,null,null,null,0,0,"x",10015717,3,5,1,0]
["Dichanthelium erectifolium","Panicum erectifolium",6,"-","OBL","Native",null,null,null,null,null,null,null,null,null,null,0,0,"x",41660,3,5,1,0]
["Dichanthelium leucothrix",null,0,"-","-","Native",null,null,null,null,null,null,null,null,null,null,0,0,"x",10016055,3,1,1,0]
["Dichanthelium nudicaule",null,0,"-","-","Native",null,null,null,null,null,null,null,null,null,null,0,0,"x",10016056,3,1,1,0]
["Dichanthelium scabriusculum","Panicum scabriusculum",5.5,"-","OBL","Native",null,null,null,null,null,null,null,null,null,null,0,0,"x",41670,3,5,1,0]
["Dichanthelium scoparium",null,null,"-","FACW","Native",null,null,null,null,null,null,null,null,null,null,0,0,"-",10015744,3,4,1,0]
["Dichanthelium strigosum",null,0,"-","FAC","Native",null,null,null,null,null,null,null,null,null,null,0,0,"x",10016057,3,3,1,0]
["Dichondra",null,null,"-","-","-",null,null,null,null,null,null,null,null,null,null,0,0,"-",30833,-9,-9,-9,0]
["Dichondra carolinensis","Dichondra repens",1.75,"-","FAC","Native",null,null,null,null,null,null,null,null,null,null,0,0,"x",30834,3,3,1,0]
["Dichromena colorata",null,6.18,"-","FACW","Native",null,null,null,null,null,null,null,null,null,null,0,0,"x",40004,3,4,1,0]
["Dicliptera",null,null,"-","-","-",null,null,null,null,null,null,null,null,null,null,0,0,"-",34415,-9,-9,-9,0]
["Dicliptera sexangularis",null,null,"-","FAC","Native",null,null,null,null,null,null,null,null,null,null,0,0,"-",10015905,3,3,1,0]
["Didemnum",null,null,"-","-","-",null,null,null,null,null,null,null,null,null,null,0,0,"-",159048,-9,-9,-9,0]
["Digitaria",null,null,"-","-","-",null,null,null,null,null,null,null,null,null,null,0,0,"-",40603,-9,-9,-9,0]
["Digitaria bicornis",null,0,"-","-","Exotic",null,null,null,null,null,null,null,null,null,null,0,0,"x",40616,3,1,1,0]
["Digitaria ciliaris",null,1.3,"-","-","Native",null,null,null,null,null,null,null,null,null,null,0,0,"x",40619,3,1,1,0]
["Digitaria serotina",null,1.39,"-","FAC","Native",null,null,null,null,null,null,null,null,null,null,0,0,"x",40612,3,3,1,0]
["Diodia",null,null,"-","-","-",null,null,null,null,null,null,null,null,null,null,0,0,"-",10009491,3,1,1,0]
["Diodia virginiana",null,3,"-","FACW","Native",null,null,null,null,null,null,null,null,null,null,0,0,"x",34790,3,4,1,0]
["Dioscorea",null,null,"-","-","-",null,null,null,null,null,null,null,null,null,null,0,0,"-",43366,4,1,1,0]
["Dioscorea bulbifera",null,0,"Category 1","-","Exotic",null,null,null,null,null,null,null,null,null,null,0,0,"x",43369,1,1,3,0]
["Diospyros",null,null,"-","-","-",null,null,null,null,null,null,null,null,null,null,0,0,"-",23853,-9,-9,-9,0]
["Diospyros virginiana",null,3,"-","FAC","Native",null,null,null,null,null,null,null,null,null,null,0,0,"x",23855,3,3,2,0]
["Drosera",null,null,"-","-","Native",null,null,null,null,null,null,null,null,null,null,0,0,"-",22009,3,9,1,0]
["Drosera capillaris",null,3,"-","FACW","Native",null,null,null,null,null,null,null,null,null,null,0,0,"x",22011,3,4,1,0]
["Drosera filiformis",null,7,"-","OBL","Native",null,null,null,null,null,null,null,null,null,null,0,0,"x",22012,3,5,1,0]
["Drosera intermedia",null,8.23,"-","OBL","Native",null,null,null,null,null,null,null,null,null,null,0,0,"x",22013,3,5,1,0]
["Drymaria",null,null,"-","-","-",null,null,null,null,null,null,null,null,null,null,0,0,"-",20281,-9,-9,-9,0]
["Drymaria cordata",null,2.72,"-","FAC","Native",null,null,null,null,null,null,null,null,null,null,0,0,"x",20282,3,3,1,0]
["Dryopteris",null,null,"-","FACW","-",null,null,null,null,null,null,null,null,null,null,0,0,"-",17519,3,4,1,0]
["Dryopteris ludoviciana",null,7,"-","FACW","Native",null,null,null,null,null,null,null,null,null,null,0,0,"x",17540,3,4,1,0]
["Dryopteris thelypteris",null,null,"-","-","-",null,null,null,null,null,null,null,null,null,null,0,0,"-",17252,-9,-9,-9,0]
["Dulichium",null,null,"-","-","-",null,null,null,null,null,null,null,null,null,null,0,0,"-",40008,-9,-9,-9,0]
["Dulichium arundinaceum",null,7.31,"-","OBL","Native",null,null,null,null,null,null,null,null,null,null,0,0,"x",40009,3,5,1,0]
["Echinochloa",null,null,"-","FACW","-",null,null,null,null,null,null,null,null,null,null,0,0,"-",40667,3,4,1,0]
["Echinochloa colona",null,0.24,"-","FACW","Exotic",null,null,null,null,null,null,null,null,null,null,0,0,"x",40670,3,4,1,{"$f":"IFERROR(R326*C326,\"0\")","v":0}]
["Echinochloa crusgalli",null,0.22,"-","FACW","Exotic",null,null,null,null,null,null,null,null,null,null,{"$f":"COUNTIF(G327:P327,\"P\")+COUNTIF(G327:P327,\"C\")+COUNTIF(G327:P327,\"D\")","v":0},{"$f":"IF(AND(W327<>2,(OR(V327=3,V327=4,V327=5,V327=8,V327=9))),Q327,0)","v":0},{"$f":"IF(C327<>\"\",\"x\",\"-\")","v":"x"},40668,3,4,1,0]
["Echinochloa muricata",null,6.01,"-","FACW","Native",null,null,null,null,null,null,null,null,null,null,0,0,"x",40672,3,4,1,0]
["Echinochloa walteri",null,2.5,"-","FACW","Native",null,null,null,null,null,null,null,null,null,null,0,0,"x",40669,3,4,1,0]
["Echinodorus",null,null,"-","OBL","-",null,null,null,null,null,null,null,null,null,null,0,0,"-",38898,3,5,1,0]
["Echinodorus cordifolius",null,null,"-","OBL","Native",null,null,null,null,null,null,null,null,null,null,0,0,"-",38900,3,5,1,0]
["Eclipta",null,null,"-","FACW","Native",null,null,null,null,null,null,null,null,null,null,0,0,"-",35801,3,4,1,0]
["Eclipta prostrata","Eclipta alba",2,"-","FACW","Native",null,null,null,null,null,null,null,null,null,null,0,0,"x",10007735,3,4,1,0]
["Egeria",null,null,"-","-","-",null,null,null,null,null,null,null,null,null,null,0,0,"-",38971,-9,-9,-9,0]
["Egeria densa",null,0.49,"-","OBL","Exotic",null,null,null,null,null,null,null,null,null,null,0,0,"x",38972,3,5,1,0]
["Eichhornia",null,null,"-","OBL","Exotic",null,null,null,null,null,null,null,null,null,null,0,0,"-",10015797,-9,5,1,0]
["Eichhornia crassipes",null,0,"Category 1","OBL","Exotic",null,null,null,null,null,null,null,null,null,null,0,0,"x",42623,1,5,1,0]
["Eleocharis",null,null,"-","OBL","Native",null,null,null,null,null,null,null,null,null,null,0,0,"-",40010,3,5,1,0]
["Eleocharis acicularis",null,3.4,"-","OBL","Native",null,null,null,null,null,null,null,null,null,null,0,0,"x",40025,3,5,1,0]
["Eleocharis atropurpurea",null,5.69,"-","OBL","Native",null,null,null,null,null,null,null,null,null,null,0,0,"x",40027,3,5,1,0]
["Eleocharis baldwinii",null,2.82,"-","OBL","Native",null,null,null,null,null,null,null,null,null,null,0,0,"x",40029,3,5,1,0]
["Eleocharis cellulosa",null,7.8,"-","OBL","Native",null,null,null,null,null,null,null,null,null,null,0,0,"x",40036,3,5,1,0]
["Eleocharis elongata",null,6.97,"-","OBL","Native",null,null,null,null,null,null,null,null,null,null,0,0,"x",40041,3,5,1,0]
["Eleocharis equisetoides",null,8,"-","OBL","Native",null,null,null,null,null,null,null,null,null,null,0,0,"x",40042,3,5,1,0]
["Eleocharis flavescens",null,2.1,"-","OBL","Native",null,null,null,null,null,null,null,null,null,null,0,0,"x",40045,3,5,1,0]
["Eleocharis geniculata",null,2.5,"-","OBL","Native",null,null,null,null,null,null,null,null,null,null,0,0,"x",40046,3,5,1,0]
["Eleocharis interstincta",null,7.8,"-","OBL","Native",null,null,null,null,null,null,null,null,null,null,0,0,"x",40048,3,5,1,0]
["Eleocharis melanocarpa",null,1.83,"-","OBL","Native",null,null,null,null,null,null,null,null,null,null,0,0,"x",40053,3,5,1,0]
["Eleocharis montana",null,3.17,"-","OBL","Native",null,null,null,null,null,null,null,null,null,null,0,0,"x",40056,3,5,1,0]
["Eleocharis obtusa",null,3.36,"-","OBL","Native",null,null,null,null,null,null,null,null,null,null,0,0,"x",40017,3,5,1,0]
["Eleocharis olivacea",null,1.4,"-","OBL","Native",null,null,null,null,null,null,null,null,null,null,0,0,"x",40018,3,5,1,0]
["Eleocharis quadrangulata",null,2.5,"-","OBL","Native",null,null,null,null,null,null,null,null,null,null,0,0,"x",40021,3,5,1,0]
["Eleocharis robbinsii",null,8,"-","OBL","Native",null,null,null,null,null,null,null,null,null,null,0,0,"x",40068,3,5,1,0]
["Eleocharis submersed viviparous (species unknown)",null,3,"-","OBL","Native",null,null,null,null,null,null,null,null,null,null,0,0,"x",10015743,3,5,1,0]
["Eleocharis tuberculosa",null,null,"-","OBL","Native",null,null,null,null,null,null,null,null,null,null,0,0,"-",40024,3,5,1,0]
["Eleocharis vivipara",null,3,"-","OBL","Native",null,null,null,null,null,null,null,null,null,null,0,0,"x",40073,3,5,1,0]
["Eleusine",null,null,"-","-","-",null,null,null,null,null,null,null,null,null,null,0,0,"-",41690,-9,-9,-9,0]
["Eleusine indica",null,0,"-","-","Exotic",null,null,null,null,null,null,null,null,null,null,0,0,"x",41692,3,1,1,0]
["Elodea",null,null,"-","-","-",null,null,null,null,null,null,null,null,null,null,0,0,"-",38936,-9,-9,-9,0]
["Elodea canadensis",null,null,"-","OBL","Native",null,null,null,null,null,null,null,null,null,null,0,0,"-",38937,3,5,1,0]
["Emilia",null,null,"-","-","-",null,null,null,null,null,null,null,null,null,null,0,0,"-",37302,-9,-9,-9,0]
["Emilia fosbergii",null,null,"-","UPL","Exotic",null,null,null,null,null,null,null,null,null,null,0,0,"-",37304,3,2,1,0]
["Equisetum hyemale affine","Equisetum hyemale",null,"-","FAC","Native",null,null,null,null,null,null,null,null,null,null,0,0,"-",100106089,3,3,1,0]
["Eragrostis",null,null,"-","FAC","-",null,null,null,null,null,null,null,null,null,null,0,0,"-",40716,3,3,1,0]
["Eragrostis elliottii",null,4.1399999999999997,"-","FAC","Native",null,null,null,null,null,null,null,null,null,null,0,0,"x",40720,3,3,1,0]
["Eragrostis gangetica",null,null,"-","FAC","Exotic",null,null,null,null,null,null,null,null,null,null,0,0,"-",40742,3,3,1,0]
["Eragrostis spectabilis",null,3.44,"-","FAC","Native",null,null,null,null,null,null,null,null,null,null,0,0,"x",40717,3,3,1,0]
["Eragrostis virginica",null,null,"-","FAC","Native",null,null,null,null,null,null,null,null,null,null,0,0,"-",10015837,3,3,1,0]
["Erechtites",null,null,"-","FAC","-",null,null,null,null,null,null,null,null,null,null,0,0,"-",37318,3,3,1,0]
["Erechtites hieraciifolius","Erechtites hieraciifolia",1,"-","FAC","Native",null,null,null,null,null,null,null,null,null,null,0,0,"x",10008019,3,3,1,0]
["Erigeron",null,null,"-","-","-",null,null,null,null,null,null,null,null,null,null,0,0,"-",35803,4,-9,1,0]
["Erigeron quercifolius",null,3.31,"-","FAC","Native",null,null,null,null,null,null,null,null,null,null,0,0,"x",35940,3,3,1,0]
["Eriocaulon",null,null,"-","OBL","Native",null,null,null,null,null,null,null,null,null,null,0,0,"-",39194,3,5,1,0]
["Eriocaulon compressum",null,7.5,"-","OBL","Native",null,null,null,null,null,null,null,null,null,null,0,0,"x",39198,3,5,1,0]
["Eriocaulon decangulare",null,8.31,"-","OBL","Native",null,null,null,null,null,null,null,null,null,null,0,0,"x",39195,3,5,1,0]
["Eriocaulon lineare",null,6,"-","OBL","Native",null,null,null,null,null,null,null,null,null,null,0,0,"x",39200,3,5,1,0]
["Eriocaulon ravenelii",null,5.9,"-","OBL","Native",null,null,null,null,null,null,null,null,null,null,0,0,"x",39201,3,5,1,0]
["Eriocaulon texense",null,8,"-","OBL","Native",null,null,null,null,null,null,null,null,null,null,0,0,"x",39203,3,5,1,0]
["Eriochloa",null,null,"-","FACW","-",null,null,null,null,null,null,null,null,null,null,0,0,"-",41718,3,4,1,0]
["Eriochloa michauxii",null,null,"-","FACW","Native",null,null,null,null,null,null,null,null,null,null,0,0,"-",41726,3,4,1,0]
["Eryngium",null,null,"-","FACW","Native",null,null,null,null,null,null,null,null,null,null,0,0,"-",29479,3,4,1,0]
["Eryngium prostratum",null,null,"-","FACW","Native",null,null,null,null,null,null,null,null,null,null,0,0,"-",29502,3,4,1,0]
["Eupatorium",null,null,"-","-","Native",null,null,null,null,null,null,null,null,null,null,0,0,"-",35977,3,9,1,0]
["Eupatorium capillifolium",null,0.83,"-","FAC","Native",null,null,null,null,null,null,null,null,null,null,0,0,"x",35978,3,3,1,0]
["Eupatorium compositifolium",null,2.72,"-","FAC","Native",null,null,null,null,null,null,null,null,null,null,0,0,"x",35985,3,3,1,0]
["Eupatorium fistulosum",null,5,"-","FACW","Native",null,null,null,null,null,null,null,null,null,null,0,0,"x",10013311,3,4,1,0]
["Eupatorium leptophyllum",null,3.5,"-","OBL","Native",null,null,null,null,null,null,null,null,null,null,0,0,"x",35991,3,5,1,0]
["Eupatorium mikanioides",null,5.08,"-","FACW","Native",null,null,null,null,null,null,null,null,null,null,0,0,"x",35994,3,4,1,0]
["Eupatorium mohrii","Eupatorium recurvans",6.87,"-","FAC","Native",null,null,null,null,null,null,null,null,null,null,0,0,"x",10007741,3,3,1,0]
["Eupatorium perfoliatum",null,5.85,"-","FACW","Native",null,null,null,null,null,null,null,null,null,null,0,0,"x",35980,3,4,1,{"$f":"IFERROR(R390*C390,\"0\")","v":0}]
["Eupatorium serotinum",null,3.43,"-","FAC","Native",null,null,null,null,null,null,null,null,null,null,{"$f":"COUNTIF(G391:P391,\"P\")+COUNTIF(G391:P391,\"C\")+COUNTIF(G391:P391,\"D\")","v":0},{"$f":"IF(AND(W391<>2,(OR(V391=3,V391=4,V391=5,V391=8,V391=9))),Q391,0)","v":0},{"$f":"IF(C391<>\"\",\"x\",\"-\")","v":"x"},35981,3,3,1,0]
["Euphorbia",null,null,"-","-","-",null,null,null,null,null,null,null,null,null,null,0,0,"-",28032,3,9,1,0]
["Eustachys",null,null,"-","-","-",null,null,null,null,null,null,null,null,null,null,0,0,"-",41739,3,9,1,0]
["Eustachys petraea",null,1.93,"-","FAC","Native",null,null,null,null,null,null,null,null,null,null,0,0,"x",10009171,3,3,1,0]
["Euthamia",null,null,"-","FAC","Native",null,null,null,null,null,null,null,null,null,null,0,0,"-",37349,3,3,1,0]
["Euthamia caroliniana","Euthamia minor, Euthamia tenuifolia tenuifolia",2.4500000000000002,"-","FAC","Native",null,null,null,null,null,null,null,null,null,null,0,0,"x",10008693,3,3,1,0]
["Euthamia tenuifolia",null,2.4500000000000002,"-","FACW","Native",null,null,null,null,null,null,null,null,null,null,0,0,"x",10008694,3,4,1,0]
["Fatsia",null,null,"-","-","-",null,null,null,null,null,null,null,null,null,null,0,0,"-",10011113,-9,0,-9,0]
["Fatsia japonica",null,0,"-","-","Exotic",null,null,null,null,null,null,null,null,null,null,0,0,"x",10011031,3,1,2,0]
["Ficus","Ficus (moraceae)",null,"-","-","-",null,null,null,null,null,null,null,null,null,null,0,0,"-",19081,-9,-9,-9,0]
["Ficus aurea",null,3.38,"-","FAC","Native",null,null,null,null,null,null,null,null,null,null,0,0,"x",19092,3,3,2,0]
["Ficus microcarpa",null,0,"Category 1","-","Exotic",null,null,null,null,null,null,null,null,null,null,0,0,"x",10010511,1,1,2,0]
["Fimbristylis",null,null,"-","-","-",null,null,null,null,null,null,null,null,null,null,0,0,"-",40107,3,9,1,0]
["Fimbristylis autumnalis",null,2.17,"-","OBL","Native",null,null,null,null,null,null,null,null,null,null,0,0,"x",40111,3,5,1,0]
["Fimbristylis caroliniana",null,5,"-","OBL","Native",null,null,null,null,null,null,null,null,null,null,0,0,"x",40112,3,5,1,0]
["Fimbristylis castanea",null,4.92,"-","OBL","Native",null,null,null,null,null,null,null,null,null,null,0,0,"x",40109,3,5,1,0]
["Fimbristylis cymosa","Fimbristylis spathacea",1,"-","FAC","Native",null,null,null,null,null,null,null,null,null,null,0,0,"x",40123,3,3,1,0]
["Fimbristylis dichotoma",null,3.55,"-","OBL","Native",null,null,null,null,null,null,null,null,null,null,0,0,"x",40114,3,5,1,0]
["Fimbristylis schoenoides",null,1.83,"-","OBL","Exotic",null,null,null,null,null,null,null,null,null,null,0,0,"x",40118,3,5,1,0]
["Flaveria",null,null,"-","-","-",null,null,null,null,null,null,null,null,null,null,0,0,"-",37375,-9,-9,-9,0]
["Flaveria floridana",null,null,"-","-","-",null,null,null,null,null,null,null,null,null,null,0,0,"-",37380,-9,-9,-9,0]
["Fontinalis",null,null,"-","OBL","Native",null,null,null,null,null,null,null,null,null,null,0,0,"-",16417,3,8,1,0]
["Fraxinus",null,null,"-","-","Native",null,null,null,null,null,null,null,null,null,null,0,0,"-",32928,3,9,2,0]
["Fraxinus americana",null,5.27,"-","UPL","Native",null,null,null,null,null,null,null,null,null,null,0,0,"x",32931,3,2,2,0]
["Fraxinus caroliniana",null,5.21,"-","OBL","Native",null,null,null,null,null,null,null,null,null,null,0,0,"x",32941,3,5,2,0]
["Froelichia",null,null,"-","-","-",null,null,null,null,null,null,null,null,null,null,0,0,"-",20795,3,1,1,0]
["Froelichia floridana",null,3.21,"-","-","Native",null,null,null,null,null,null,null,null,null,null,0,0,"x",20799,3,1,1,0]
["Fuirena",null,null,"-","OBL","Native",null,null,null,null,null,null,null,null,null,null,0,0,"-",40130,3,5,1,0]
["Fuirena breviseta",null,3.5,"-","OBL","Native",null,null,null,null,null,null,null,null,null,null,0,0,"x",40133,3,5,1,0]
["Fuirena pumila",null,4,"-","OBL","Native",null,null,null,null,null,null,null,null,null,null,0,0,"x",40131,3,5,1,0]
["Fuirena scirpoidea",null,5.5,"-","OBL","Native",null,null,null,null,null,null,null,null,null,null,0,0,"x",40136,3,5,1,0]
["Fuirena squarrosa",null,5.5,"-","OBL","Native",null,null,null,null,null,null,null,null,null,null,0,0,"x",40132,3,5,1,0]
["Galium",null,null,"-","-","Native",null,null,null,null,null,null,null,null,null,null,0,0,"-",34796,3,1,1,0]
["Galium tinctorium",null,5.08,"-","FACW","Native",null,null,null,null,null,null,null,null,null,null,0,0,"x",34803,3,4,1,0]
["Galium uniflorum",null,5.8,"-","-","Native",null,null,null,null,null,null,null,null,null,null,0,0,"x",34935,3,1,1,0]
["Gelsemium rankinii",null,null,"-","FACW","Native",null,null,null,null,null,null,null,null,null,null,0,0,"-",29931,3,4,1,0]
["Gleditsia",null,null,"-","-","-",null,null,null,null,null,null,null,null,null,null,0,0,"-",26711,-9,-9,-9,0]
["Gleditsia aquatica",null,7.09,"-","OBL","Native",null,null,null,null,null,null,null,null,null,null,0,0,"x",26712,3,5,2,0]
["Gleditsia triacanthos",null,3.83,"-","FACW","Native",null,null,null,null,null,null,null,null,null,null,0,0,"x",26714,3,4,2,0]
["Gnaphalium",null,null,"-","-","-",null,null,null,null,null,null,null,null,null,null,0,0,"-",36693,3,1,1,0]
["Gordonia",null,null,"-","FACW","Native",null,null,null,null,null,null,null,null,null,null,0,0,"-",21385,3,4,2,0]
["Gordonia lasianthus",null,7,"-","FACW","Native",null,null,null,null,null,null,null,null,null,null,0,0,"x",21386,3,4,2,0]
["Gratiola",null,null,"-","-","-",null,null,null,null,null,null,null,null,null,null,0,0,"-",33189,-9,-9,-9,0]
["Gratiola floridana",null,null,"-","FACW","Native",null,null,null,null,null,null,null,null,null,null,0,0,"-",33195,3,4,1,0]
["Gratiola ramosa",null,6.87,"-","FACW","Native",null,null,null,null,null,null,null,null,null,null,0,0,"x",33199,3,4,1,0]
["Habenaria",null,null,"-","-","-",null,null,null,null,null,null,null,null,null,null,0,0,"-",43398,-9,-9,-9,0]
["Habenaria repens",null,3.5,"-","FACW","Native",null,null,null,null,null,null,null,null,null,null,0,0,"x",43402,3,4,1,0]
["Hedychium",null,null,"-","-","-",null,null,null,null,null,null,null,null,null,null,0,0,"-",42395,-9,-9,-9,0]
["Hedychium coronarium",null,null,"-","-","Exotic",null,null,null,null,null,null,null,null,null,null,0,0,"-",42396,3,7,1,0]
["Hedyotis",null,null,"-","-","-",null,null,null,null,null,null,null,null,null,null,0,0,"-",35007,3,1,1,0]
["Hedyotis corymbosa","Oldenlandia corymbosa",2.31,"-","FACW","Exotic",null,null,null,null,null,null,null,null,null,null,0,0,"x",10007751,3,4,1,0]
["Helenium",null,null,"-","-","-",null,null,null,null,null,null,null,null,null,null,0,0,"-",36005,-9,-9,-9,0]
["Helenium autumnale",null,3.31,"-","FACW","Native",null,null,null,null,null,null,null,null,null,null,0,0,"x",36006,3,4,1,0]
["Helianthus",null,null,"-","-","-",null,null,null,null,null,null,null,null,null,null,0,0,"-",36611,3,1,1,0]
["Helianthus angustifolius",null,3,"-","FACW","Native",null,null,null,null,null,null,null,null,null,null,0,0,"x",36615,3,4,1,0]
["Heliotropium",null,null,"-","-","-",null,null,null,null,null,null,null,null,null,null,0,0,"-",31634,-9,-9,-9,0]
["Heliotropium polyphyllum",null,1.67,"-","FAC","Native",null,null,null,null,null,null,null,null,null,null,0,0,"x",31650,3,3,1,0]
["Heterostigma",null,null,"-","-","-",null,null,null,null,null,null,null,null,null,null,0,0,"-",159536,-9,-9,-9,0]
["Heterostigma singulare","Caesira singulare",null,"-","-","-",null,null,null,null,null,null,null,null,null,null,0,0,"-",159537,-9,-9,-9,0]
["Hibiscus",null,null,"-","-","-",null,null,null,null,null,null,null,null,null,null,0,0,"-",21611,4,9,3,0]
["Hibiscus coccineus",null,5.45,"-","OBL","Native",null,null,null,null,null,null,null,null,null,null,0,0,"x",21625,3,5,1,0]
["Hibiscus furcellatus",null,3.89,"-","-","Native",null,null,null,null,null,null,null,null,null,null,0,0,"x",21630,3,1,3,0]
["Hibiscus grandiflorus",null,6,"-","OBL","Native",null,null,null,null,null,null,null,null,null,null,0,0,"x",21631,3,5,1,0]
["Hibiscus laevis",null,null,"-","OBL","Native",null,null,null,null,null,null,null,null,null,null,0,0,"-",21632,3,5,1,{"$f":"IFERROR(R454*C454,\"0\")","v":0}]
["Hibiscus moscheutos",null,4.75,"-","OBL","Native",null,null,null,null,null,null,null,null,null,null,{"$f":"COUNTIF(G455:P455,\"P\")+COUNTIF(G455:P455,\"C\")+COUNTIF(G455:P455,\"D\")","v":0},{"$f":"IF(AND(W455<>2,(OR(V455=3,V455=4,V455=5,V455=8,V455=9))),Q455,0)","v":0},{"$f":"IF(C455<>\"\",\"x\",\"-\")","v":"x"},21612,3,5,3,0]
["Hibiscus tiliaceus",null,0,"Category 2","FACW","Exotic",null,null,null,null,null,null,null,null,null,null,0,0,"x",21618,2,4,-9,0]
["Hydrangea",null,null,"-","-","-",null,null,null,null,null,null,null,null,null,null,0,0,"-",24194,-9,-9,-9,0]
["Hydrangea quercifolia",null,null,"-","-","-",null,null,null,null,null,null,null,null,null,null,0,0,"-",24200,-9,-9,-9,0]
["Hydrilla",null,null,"-","-","-",null,null,null,null,null,null,null,null,null,null,0,0,"-",38973,-9,-9,-9,0]
["Hydrilla verticillata",null,0,"Category 1","OBL","Exotic",null,null,null,null,null,null,null,null,null,null,0,0,"x",38974,1,5,1,0]
["Hydrocotyle",null,2,"-","FACW","Native",null,null,null,null,null,null,null,null,null,null,0,0,"x",29512,3,4,1,0]
["Hydrocotyle ranunculoides",null,2,"-","OBL","Native",null,null,null,null,null,null,null,null,null,null,0,0,"x",29513,3,5,1,0]
["Hydrocotyle umbellata",null,1.92,"-","FACW","Native",null,null,null,null,null,null,null,null,null,null,0,0,"x",29514,3,4,1,0]
["Hydrocotyle verticillata",null,2,"-","FACW","Native",null,null,null,null,null,null,null,null,null,null,0,0,"x",29515,3,4,1,0]
["Hydrolea",null,null,"-","OBL","Native",null,null,null,null,null,null,null,null,null,null,0,0,"-",31382,3,5,1,0]
["Hydrolea corymbosa",null,5.85,"-","OBL","Native",null,null,null,null,null,null,null,null,null,null,0,0,"x",31383,3,5,1,0]
["Hydrolea quadrivalvis",null,2,"-","OBL","Native",null,null,null,null,null,null,null,null,null,null,0,0,"x",31385,3,5,1,0]
["Hygrophila",null,null,"-","OBL","-",null,null,null,null,null,null,null,null,null,null,0,0,"-",34419,4,5,1,0]
["Hygrophila costata","Hygrophila brasiliensis, Hygrophila lacustris",3,"-","OBL","Native",null,null,null,null,null,null,null,null,null,null,0,0,"x",10015301,3,5,1,0]
["Hygrophila polysperma",null,0,"Category 1","OBL","Exotic",null,null,null,null,null,null,null,null,null,null,0,0,"x",10007752,1,5,1,0]
["Hymenachne",null,null,"-","-","-",null,null,null,null,null,null,null,null,null,null,0,0,"-",41777,-9,-9,-9,0]
["Hymenachne amplexicaulis",null,0,"Category 1","OBL","Exotic",null,null,null,null,null,null,null,null,null,null,0,0,"x",41778,1,5,1,0]
["Hymenocallis",null,null,"-","OBL","Native",null,null,null,null,null,null,null,null,null,null,0,0,"-",10015356,3,5,1,0]
["Hypericum",null,null,"-","-","Native",null,null,null,null,null,null,null,null,null,null,0,0,"-",21416,3,9,3,0]
["Hypericum brachyphyllum",null,7.55,"-","FACW","Native",null,null,null,null,null,null,null,null,null,null,0,0,"x",21428,3,4,2,0]
["Hypericum chapmanii",null,5.8,"-","OBL","Native",null,null,null,null,null,null,null,null,null,null,0,0,"x",10010631,3,5,2,0]
["Hypericum cistifolium",null,6.32,"-","FACW","Native",null,null,null,null,null,null,null,null,null,null,0,0,"x",21432,3,4,2,0]
["Hypericum crux-andreae",null,0,"-","FACW","Native",null,null,null,null,null,null,null,null,null,null,0,0,"x",10015806,-9,4,2,0]
["Hypericum exile",null,null,"-","FACW","Native",null,null,null,null,null,null,null,null,null,null,0,0,"-",10015838,3,4,2,0]
["Hypericum fasciculatum",null,8,"-","OBL","Native",null,null,null,null,null,null,null,null,null,null,0,0,"x",21438,3,5,2,0]
["Hypericum galioides",null,5.13,"-","FACW","Native",null,null,null,null,null,null,null,null,null,null,0,0,"x",10013232,3,4,3,0]
["Hypericum gymnanthum",null,4.75,"-","FACW","Native",null,null,null,null,null,null,null,null,null,null,0,0,"x",21443,3,4,1,0]
["Hypericum hypericoides",null,5.44,"-","FAC","Native",null,null,null,null,null,null,null,null,null,null,0,0,"x",10007681,3,3,2,0]
["Hypericum lissophloeus",null,9,"-","OBL","Native",null,null,null,null,null,null,null,null,null,null,0,0,"x",10008051,3,5,2,0]
["Hypericum mutilum",null,4.04,"-","FACW","Native",null,null,null,null,null,null,null,null,null,null,0,0,"x",21421,3,4,1,0]
["Hypericum myrtifolium",null,6.56,"-","FACW","Native",null,null,null,null,null,null,null,null,null,null,0,0,"x",21450,3,4,2,0]
["Hypericum nitidum",null,6.5,"-","OBL","Native",null,null,null,null,null,null,null,null,null,null,0,0,"x",21451,3,5,2,0]
["Hypericum reductum",null,5,"-","UPL","Native",null,null,null,null,null,null,null,null,null,null,0,0,"x",21458,3,2,3,0]
["Hypericum suffruticosum",null,null,"-","-","Native",null,null,null,null,null,null,null,null,null,null,0,0,"-",21462,3,7,2,0]
["Hypericum tetrapetalum",null,6.38,"-","FAC","Native",null,null,null,null,null,null,null,null,null,null,0,0,"x",21463,3,3,2,0]
["Hypoxis",null,7.15,"-","FACW","Native",null,null,null,null,null,null,null,null,null,null,0,0,"x",10007682,3,4,1,0]
["Hyptis",null,null,"-","-","-",null,null,null,null,null,null,null,null,null,null,0,0,"-",32522,-9,-9,-9,0]
["Hyptis alata",null,4.58,"-","FACW","Native",null,null,null,null,null,null,null,null,null,null,0,0,"x",32523,3,4,1,0]
["Ilex",null,null,"-","-","Native",null,null,null,null,null,null,null,null,null,null,0,0,"-",27980,3,9,2,0]
["Ilex cassine",null,6,"-","OBL","Native",null,null,null,null,null,null,null,null,null,null,0,0,"x",27992,3,5,2,0]
["Ilex coriacea",null,3.1,"-","FACW","Native",null,null,null,null,null,null,null,null,null,null,0,0,"x",27994,3,4,2,0]
["Ilex glabra",null,5.85,"-","-","Native",null,null,null,null,null,null,null,null,null,null,0,0,"x",27981,3,1,2,0]
["Ilex myrtifolia",null,7,"-","OBL","Native",null,null,null,null,null,null,null,null,null,null,0,0,"x",28003,3,5,2,0]
["Ilex opaca",null,4.55,"-","FAC","Native",null,null,null,null,null,null,null,null,null,null,0,0,"x",27982,3,3,2,0]
["Ilex verticillata",null,7.88,"-","OBL","Native",null,null,null,null,null,null,null,null,null,null,0,0,"x",27985,3,5,2,0]
["Ilex vomitoria",null,3,"-","FAC","Native",null,null,null,null,null,null,null,null,null,null,0,0,"x",27986,3,3,2,0]
["Illicium",null,null,"-","OBL","Native",null,null,null,null,null,null,null,null,null,null,0,0,"-",18082,3,5,2,0]
["Illicium floridanum",null,null,"-","OBL","Native",null,null,null,null,null,null,null,null,null,null,0,0,"-",18083,3,5,2,0]
["Illicium parviflorum",null,null,"-","FACW","Native",null,null,null,null,null,null,null,null,null,null,0,0,"-",18084,3,4,2,0]
["Imperata",null,null,"-","-","-",null,null,null,null,null,null,null,null,null,null,0,0,"-",41785,-9,-9,-9,0]
["Imperata cylindrica",null,0,"Category 1","-","Exotic",null,null,null,null,null,null,null,null,null,null,0,0,"x",41788,1,1,1,0]
["Indigofera",null,null,"-","-","-",null,null,null,null,null,null,null,null,null,null,0,0,"-",26738,-9,-9,-9,0]
["Indigofera hirsuta",null,null,"-","-","Exotic",null,null,null,null,null,null,null,null,null,null,0,0,"-",26741,3,1,1,0]
["Ipomoea",null,null,"-","-","-",null,null,null,null,null,null,null,null,null,null,0,0,"-",30758,-9,1,1,0]
["Ipomoea alba",null,2.4500000000000002,"-","-","Native",null,null,null,null,null,null,null,null,null,null,0,0,"x",30760,-9,-9,-9,0]
["Ipomoea aquatica",null,0,"Category 1","-","Exotic",null,null,null,null,null,null,null,null,null,null,0,0,"x",30759,1,1,1,0]
["Ipomoea indica",null,1.23,"-","-","Native",null,null,null,null,null,null,null,null,null,null,0,0,"x",30775,3,1,1,0]
["Ipomoea sagittata",null,6.42,"-","-","Native",null,null,null,null,null,null,null,null,null,null,0,0,"x",30792,3,1,1,0]
["Iris",null,null,"-","OBL","-",null,null,null,null,null,null,null,null,null,null,0,0,"-",43191,3,5,1,0]
["Iris hexagona",null,6.97,"-","OBL","Native",null,null,null,null,null,null,null,null,null,null,0,0,"x",43214,3,5,1,0]
["Iris pseudacorus",null,0,"-","OBL","Exotic",null,null,null,null,null,null,null,null,null,null,0,0,"x",43194,3,5,1,0]
["Iris virginica",null,5.5,"-","OBL","Native",null,null,null,null,null,null,null,null,null,null,0,0,"x",10009131,3,5,1,0]
["Itea",null,null,"-","-","-",null,null,null,null,null,null,null,null,null,null,0,0,"-",24201,-9,-9,-9,{"$f":"IFERROR(R518*C518,\"0\")","v":0}]
["Itea virginica",null,7.09,"-","OBL","Native",null,null,null,null,null,null,null,null,null,null,{"$f":"COUNTIF(G519:P519,\"P\")+COUNTIF(G519:P519,\"C\")+COUNTIF(G519:P519,\"D\")","v":0},{"$f":"IF(AND(W519<>2,(OR(V519=3,V519=4,V519=5,V519=8,V519=9))),Q519,0)","v":0},{"$f":"IF(C519<>\"\",\"x\",\"-\")","v":"x"},24202,3,5,2,0]
["Iva",null,null,"-","-","-",null,null,null,null,null,null,null,null,null,null,0,0,"-",36024,-9,-9,-9,0]
["Iva frutescens",null,5.08,"-","OBL","Native",null,null,null,null,null,null,null,null,null,null,0,0,"x",36025,3,5,2,0]
["Iva microcephala",null,4.68,"-","FACW","Native",null,null,null,null,null,null,null,null,null,null,0,0,"x",36039,3,4,1,0]
["Juncus",null,null,"-","-","Native",null,null,null,null,null,null,null,null,null,null,0,0,"-",39220,-9,9,1,0]
["Juncus acuminatus",null,2.25,"-","OBL","Native",null,null,null,null,null,null,null,null,null,null,0,0,"x",39221,3,5,1,0]
["Juncus canadensis",null,5.5,"-","OBL","Native",null,null,null,null,null,null,null,null,null,null,0,0,"x",39228,3,5,1,0]
["Juncus coriaceus",null,8.51,"-","OBL","Native",null,null,null,null,null,null,null,null,null,null,0,0,"x",39230,3,5,1,0]
["Juncus debilis",null,null,"-","OBL","Native",null,null,null,null,null,null,null,null,null,null,0,0,"-",39231,3,5,1,0]
["Juncus dichotomus",null,2.83,"-","OBL","Native",null,null,null,null,null,null,null,null,null,null,0,0,"x",39264,3,5,1,0]
["Juncus diffusissimus",null,3,"-","OBL","Native",null,null,null,null,null,null,null,null,null,null,0,0,"x",39265,3,5,1,0]
["Juncus effusus",null,2,"-","OBL","Native",null,null,null,null,null,null,null,null,null,null,0,0,"x",39232,3,5,1,0]
["Juncus elliottii",null,3.11,"-","OBL","Native",null,null,null,null,null,null,null,null,null,null,0,0,"x",39233,3,5,1,0]
["Juncus gymnocarpus",null,null,"-","OBL","Native",null,null,null,null,null,null,null,null,null,null,0,0,"-",39274,3,5,1,0]
["Juncus marginatus",null,1.5,"-","FACW","Native",null,null,null,null,null,null,null,null,null,null,0,0,"x",39289,3,4,1,0]
["Juncus megacephalus",null,3.5,"-","OBL","Native",null,null,null,null,null,null,null,null,null,null,0,0,"x",39291,3,5,1,0]
["Juncus pelocarpus","Juncus abortivus",2,"-","OBL","Native",null,null,null,null,null,null,null,null,null,null,0,0,"x",39302,3,5,1,0]
["Juncus polycephalus",null,4.96,"-","OBL","Native",null,null,null,null,null,null,null,null,null,null,0,0,"x",39307,3,5,1,0]
["Juncus repens",null,5,"-","OBL","Native",null,null,null,null,null,null,null,null,null,null,0,0,"x",39309,3,5,1,0]
["Juncus roemerianus",null,7.09,"-","OBL","Native",null,null,null,null,null,null,null,null,null,null,0,0,"x",39238,3,5,1,0]
["Juncus scirpoides",null,4.33,"-","OBL","Native",null,null,null,null,null,null,null,null,null,null,0,0,"x",39312,3,5,1,0]
["Juncus tenuis",null,2.25,"-","FAC","Native",null,null,null,null,null,null,null,null,null,null,0,0,"x",39243,3,3,1,0]
["Juncus trigonocarpus",null,4.17,"-","OBL","Native",null,null,null,null,null,null,null,null,null,null,0,0,"x",39324,3,5,1,0]
["Juncus validus",null,3.63,"-","OBL","Native",null,null,null,null,null,null,null,null,null,null,0,0,"x",39327,3,5,1,0]
["Juniperus",null,null,"-","-","-",null,null,null,null,null,null,null,null,null,null,0,0,"-",18047,3,1,2,0]
["Juniperus virginiana","Juniperus silicicola, Juniperus virginiana silicicola",6.25,"-","-","Native",null,null,null,null,null,null,null,null,null,null,0,0,"x",18048,3,1,2,0]
["Justicia",null,null,"-","OBL","-",null,null,null,null,null,null,null,null,null,null,0,0,"-",34351,3,5,1,0]
["Justicia angusta",null,null,"-","OBL","Native",null,null,null,null,null,null,null,null,null,null,0,0,"-",10015937,3,5,1,0]
["Justicia ovata",null,8.8800000000000008,"-","OBL","Native",null,null,null,null,null,null,null,null,null,null,0,0,"x",34357,3,5,1,0]
["Kalmia",null,null,"-","-","-",null,null,null,null,null,null,null,null,null,null,0,0,"-",23672,3,9,2,0]
["Kalmia latifolia",null,7,"-","FACW","Native",null,null,null,null,null,null,null,null,null,null,0,0,"x",23677,3,4,2,0]
["Kosteletzkya",null,null,"-","-","-",null,null,null,null,null,null,null,null,null,null,0,0,"-",21654,3,9,3,0]
["Kosteletzkya pentacarpos","Kosteletzkya virginica",6,"-","OBL","Native",null,null,null,null,null,null,null,null,null,null,0,0,"x",10015499,3,5,3,0]
["Kyllinga",null,null,"-","FACW","-",null,null,null,null,null,null,null,null,null,null,0,0,"-",10009312,3,4,1,0]
["Kyllinga brevifolia",null,1.42,"-","FACW","Native",null,null,null,null,null,null,null,null,null,null,0,0,"x",10009313,3,4,1,0]
["Kyllinga odorata",null,2.17,"-","FACW","Native",null,null,null,null,null,null,null,null,null,null,0,0,"x",10015581,3,4,1,0]
["Kyllinga pumila",null,1.38,"-","FACW","Native",null,null,null,null,null,null,null,null,null,null,0,0,"x",10012251,3,4,1,0]
["Lachnanthes",null,null,"-","-","-",null,null,null,null,null,null,null,null,null,null,0,0,"-",43328,-9,-9,-9,0]
["Lachnanthes caroliniana",null,3.76,"-","FAC","Native",null,null,null,null,null,null,null,null,null,null,0,0,"x",43329,3,3,1,0]
["Lachnocaulon",null,null,"-","-","Native",null,null,null,null,null,null,null,null,null,null,0,0,"-",39204,3,9,1,0]
["Lachnocaulon anceps",null,5.5,"-","FACW","Native",null,null,null,null,null,null,null,null,null,null,0,0,"x",39205,3,4,1,0]
["Lachnocaulon beyrichianum",null,9.18,"-","FACW","Native",null,null,null,null,null,null,null,null,null,null,0,0,"x",10007683,3,4,1,0]
["Lachnocaulon engleri",null,1,"-","OBL","Native",null,null,null,null,null,null,null,null,null,null,0,0,"x",39208,3,5,1,0]
["Lachnocaulon minus",null,7.97,"-","OBL","Native",null,null,null,null,null,null,null,null,null,null,0,0,"x",39209,3,5,1,0]
["Landoltia punctata","Spirodela oligorrhiza, Spirodela punctata",0,"Category 2","UPL","Exotic",null,null,null,null,null,null,null,null,null,null,0,0,"x",10014991,2,2,1,0]
["Lantana",null,null,"-","-","-",null,null,null,null,null,null,null,null,null,null,0,0,"-",32173,3,1,3,0]
["Laurus",null,null,"-","-","-",null,null,null,null,null,null,null,null,null,null,0,0,"-",18177,3,1,-9,0]
["Leersia",null,null,"-","OBL","Native",null,null,null,null,null,null,null,null,null,null,0,0,"-",40885,3,5,1,0]
["Leersia hexandra",null,5.61,"-","OBL","Native",null,null,null,null,null,null,null,null,null,null,0,0,"x",40887,3,5,1,0]
["Leersia lenticularis",null,null,"-","OBL","Native",null,null,null,null,null,null,null,null,null,null,0,0,"-",40888,3,5,1,0]
["Leersia oryzoides",null,4,"-","OBL","Native",null,null,null,null,null,null,null,null,null,null,0,0,"x",40886,3,5,1,0]
["Leersia virginica",null,null,"-","OBL","Native",null,null,null,null,null,null,null,null,null,null,0,0,"-",40890,3,5,1,0]
["Lemna",null,1,"-","OBL","Native",null,null,null,null,null,null,null,null,null,null,0,0,"x",42588,3,5,1,0]
["Lemna minor",null,1,"-","OBL","Native",null,null,null,null,null,null,null,null,null,null,0,0,"x",42590,3,5,1,0]
["Leptochloa",null,null,"-","-","-",null,null,null,null,null,null,null,null,null,null,0,0,"-",41817,-9,-9,-9,0]
["Leptochloa fascicularis",null,4.55,"-","FACW","Native",null,null,null,null,null,null,null,null,null,null,0,0,"x",41825,3,4,1,0]
["Leucaena",null,null,"-","-","-",null,null,null,null,null,null,null,null,null,null,0,0,"-",26764,-9,-9,-9,0]
["Leucaena leucocephala",null,0,"Category 2","UPL","Exotic",null,null,null,null,null,null,null,null,null,null,0,0,"x",26766,2,2,2,0]
["Leucothoe axillaris","Andromeda axillaris",6,"-","FACW","Native",null,null,null,null,null,null,null,null,null,null,0,0,"x",23550,3,4,2,0]
["Leucothoe racemosa",null,8,"-","FACW","Native",null,null,null,null,null,null,null,null,null,null,0,0,"x",23549,3,4,2,0]
["Leucothoe(plant)",null,null,"-","-","-",null,null,null,null,null,null,null,null,null,null,0,0,"-",23547,-9,-9,-9,0]
["Liatris",null,null,"-","-","-",null,null,null,null,null,null,null,null,null,null,0,0,"-",37906,3,9,1,0]
["Ligustrum",null,null,"-","-","-",null,null,null,null,null,null,null,null,null,null,0,0,"-",32973,-9,-9,-9,0]
["Ligustrum sinense",null,0,"Category 1","-","Exotic",null,null,null,null,null,null,null,null,null,null,0,0,"x",32979,1,1,2,{"$f":"IFERROR(R582*C582,\"0\")","v":0}]
["Lilaeopsis",null,null,"-","OBL","Native",null,null,null,null,null,null,null,null,null,null,{"$f":"COUNTIF(G583:P583,\"P\")+COUNTIF(G583:P583,\"C\")+COUNTIF(G583:P583,\"D\")","v":0},{"$f":"IF(AND(W583<>2,(OR(V583=3,V583=4,V583=5,V583=8,V583=9))),Q583,0)","v":0},{"$f":"IF(C583<>\"\",\"x\",\"-\")","v":"-"},29537,3,5,1,0]
["Lilaeopsis carolinensis",null,null,"-","OBL","Native",null,null,null,null,null,null,null,null,null,null,0,0,"-",10015767,3,5,1,0]
["Limnobium",null,null,"-","-","-",null,null,null,null,null,null,null,null,null,null,0,0,"-",38947,-9,-9,-9,0]
["Limnobium spongia",null,2.5,"-","OBL","Native",null,null,null,null,null,null,null,null,null,null,0,0,"x",38948,3,5,1,0]
["Limnophila","Limnophila(magnoliophyta)",null,"-","-","-",null,null,null,null,null,null,null,null,null,null,0,0,"-",33633,-9,-9,-9,0]
["Limnophila sessiliflora",null,0,"Category 2","OBL","Exotic",null,null,null,null,null,null,null,null,null,null,0,0,"x",33635,2,5,1,0]
["Lindernia",null,null,"-","-","-",null,null,null,null,null,null,null,null,null,null,0,0,"-",33220,3,9,1,0]
["Lindernia anagallidea",null,5.57,"-","FACW","Native",null,null,null,null,null,null,null,null,null,null,0,0,"x",33222,3,4,1,0]
["Lindernia crustacea",null,0.27,"-","FAC","Exotic",null,null,null,null,null,null,null,null,null,null,0,0,"x",33223,3,3,1,0]
["Lindernia dubia",null,null,"-","OBL","Native",null,null,null,null,null,null,null,null,null,null,0,0,"-",33221,3,5,1,0]
["Lindernia grandiflora",null,3.6,"-","FACW","Native",null,null,null,null,null,null,null,null,null,null,0,0,"x",33224,3,4,1,0]
["Linum",null,null,"-","-","-",null,null,null,null,null,null,null,null,null,null,0,0,"-",29201,3,9,1,0]
["Lipocarpha",null,null,"-","-","-",null,null,null,null,null,null,null,null,null,null,0,0,"-",40288,-9,-9,-9,0]
["Lipocarpha maculata",null,4.55,"-","FACW","Native",null,null,null,null,null,null,null,null,null,null,0,0,"x",40289,3,4,1,0]
["Lippia",null,null,"-","-","-",null,null,null,null,null,null,null,null,null,null,0,0,"-",32065,3,9,1,0]
["Lippia stoechadifolia",null,null,"-","FAC","Native",null,null,null,null,null,null,null,null,null,null,0,0,"-",10015921,3,3,1,0]
["Liquidambar",null,null,"-","FACW","Native",null,null,null,null,null,null,null,null,null,null,0,0,"-",19026,3,4,2,0]
["Liquidambar styraciflua",null,2.5,"-","FACW","Native",null,null,null,null,null,null,null,null,null,null,0,0,"x",19027,3,4,2,0]
["Liriodendron",null,null,"-","-","-",null,null,null,null,null,null,null,null,null,null,0,0,"-",18085,-9,-9,-9,0]
["Liriodendron tulipifera",null,6.67,"-","FACW","Native",null,null,null,null,null,null,null,null,null,null,0,0,"x",18086,3,4,2,0]
["Litsea aestivalis",null,null,"-","UPL","Native",null,null,null,null,null,null,null,null,null,null,0,0,"-",18206,3,2,2,0]
["Lobelia",null,null,"-","-","-",null,null,null,null,null,null,null,null,null,null,0,0,"-",34503,-9,-9,-9,0]
["Lobelia cardinalis",null,6,"-","OBL","Native",null,null,null,null,null,null,null,null,null,null,0,0,"x",34505,3,5,1,0]
["Ludwigia (native)",null,null,"-","-","Native",null,null,null,null,null,null,null,null,null,null,0,0,"-",10015739,3,9,1,0]
["Ludwigia (unknown nativity)",null,null,"-","OBL","-",null,null,null,null,null,null,null,null,null,null,0,0,"-",27334,-9,5,3,0]
["Ludwigia alata",null,5.85,"-","OBL","Native",null,null,null,null,null,null,null,null,null,null,0,0,"x",27338,3,5,1,0]
["Ludwigia alternifolia",null,6.24,"-","OBL","Native",null,null,null,null,null,null,null,null,null,null,0,0,"x",27335,3,5,1,0]
["Ludwigia arcuata",null,3.5,"-","OBL","Native",null,null,null,null,null,null,null,null,null,null,0,0,"x",27339,3,5,1,0]
["Ludwigia decurrens",null,5.7,"-","OBL","Native",null,null,null,null,null,null,null,null,null,null,0,0,"x",27343,3,5,1,0]
["Ludwigia erecta",null,2.5499999999999998,"-","OBL","Native",null,null,null,null,null,null,null,null,null,null,0,0,"x",27344,3,5,1,0]
["Ludwigia glandulosa",null,3.21,"-","OBL","Native",null,null,null,null,null,null,null,null,null,null,0,0,"x",27345,3,5,1,0]
["Ludwigia grandiflora","Ludwigia hexapetala, Ludwigia uruguayensis",0,"-","OBL","Exotic",null,null,null,null,null,null,null,null,null,null,0,0,"x",10009071,3,5,3,0]
["Ludwigia lanceolata",null,6.15,"-","OBL","Native",null,null,null,null,null,null,null,null,null,null,0,0,"x",27348,3,5,1,0]
["Ludwigia leptocarpa",null,3,"-","OBL","Native",null,null,null,null,null,null,null,null,null,null,0,0,"x",27349,3,5,1,0]
["Ludwigia linearis",null,5.72,"-","OBL","Native",null,null,null,null,null,null,null,null,null,null,0,0,"x",27350,3,5,1,0]
["Ludwigia linifolia",null,7.04,"-","OBL","Native",null,null,null,null,null,null,null,null,null,null,0,0,"x",27351,3,5,1,0]
["Ludwigia maritima",null,5.85,"-","FACW","Native",null,null,null,null,null,null,null,null,null,null,0,0,"x",27352,3,4,1,0]
["Ludwigia microcarpa",null,4.8099999999999996,"-","OBL","Native",null,null,null,null,null,null,null,null,null,null,0,0,"x",27353,3,5,1,0]
["Ludwigia octovalvis",null,2,"-","OBL","Native",null,null,null,null,null,null,null,null,null,null,0,0,"x",10007684,3,5,1,0]
["Ludwigia palustris",null,4.7699999999999996,"-","OBL","Native",null,null,null,null,null,null,null,null,null,null,0,0,"x",27336,3,5,1,0]
["Ludwigia peploides",null,4,"-","OBL","Native",null,null,null,null,null,null,null,null,null,null,0,0,"x",27355,3,5,1,0]
["Ludwigia peruviana",null,0,"Category 1","OBL","Exotic",null,null,null,null,null,null,null,null,null,null,0,0,"x",27359,1,5,1,0]
["Ludwigia pilosa",null,4.5,"-","OBL","Native",null,null,null,null,null,null,null,null,null,null,0,0,"x",27360,3,5,1,0]
["Ludwigia polycarpa",null,null,"-","OBL","Native",null,null,null,null,null,null,null,null,null,null,0,0,"-",27361,3,5,1,0]
["Ludwigia repens",null,3.2,"-","OBL","Native",null,null,null,null,null,null,null,null,null,null,0,0,"x",27362,3,5,1,0]
["Ludwigia sphaerocarpa",null,2.5,"-","OBL","Native",null,null,null,null,null,null,null,null,null,null,0,0,"x",27337,3,5,1,0]
["Ludwigia suffruticosa",null,6.23,"-","FACW","Native",null,null,null,null,null,null,null,null,null,null,0,0,"x",27364,3,4,1,0]
["Ludwigia virgata",null,6.73,"-","FACW","Native",null,null,null,null,null,null,null,null,null,null,0,0,"x",27366,3,4,1,0]
["Luziola",null,null,"-","OBL","-",null,null,null,null,null,null,null,null,null,null,0,0,"-",41835,4,5,1,0]
["Luziola bahiensis",null,2.67,"-","OBL","Native",null,null,null,null,null,null,null,null,null,null,0,0,"x",41836,3,5,1,0]
["Luziola fluitans","Hydrochloa caroliniensis",4,"-","OBL","Native",null,null,null,null,null,null,null,null,null,null,0,0,"x",10008952,3,5,1,0]
["Lycopodiella",null,null,"-","FACW","-",null,null,null,null,null,null,null,null,null,null,0,0,"-",10009051,3,4,1,0]
["Lycopodiella alopecuroides","Lycopodium alopecuroides",5.75,"-","FACW","Native",null,null,null,null,null,null,null,null,null,null,0,0,"x",10009052,3,4,1,0]
["Lycopodium",null,null,"-","FACW","-",null,null,null,null,null,null,null,null,null,null,0,0,"-",17013,3,4,1,0]
["Lycopodium appressum",null,7.89,"-","FACW","Native",null,null,null,null,null,null,null,null,null,null,0,0,"x",17019,3,4,1,0]
["Lycopus",null,null,"-","OBL","Native",null,null,null,null,null,null,null,null,null,null,0,0,"-",32253,3,5,1,0]
["Lycopus americanus",null,3.17,"-","OBL","Native",null,null,null,null,null,null,null,null,null,null,0,0,"x",32254,3,5,1,0]
["Lycopus amplectens",null,2.88,"-","OBL","Native",null,null,null,null,null,null,null,null,null,null,0,0,"x",10009151,3,5,1,0]
["Lycopus rubellus",null,4,"-","OBL","Native",null,null,null,null,null,null,null,null,null,null,0,0,"x",32261,3,5,1,0]
["Lycopus virginicus",null,5,"-","OBL","Native",null,null,null,null,null,null,null,null,null,null,0,0,"x",32255,3,5,1,0]
["Lygodium",null,null,"Category 1","-","Exotic",null,null,null,null,null,null,null,null,null,null,0,0,"-",17982,1,1,1,0]
["Lygodium japonicum",null,0,"Category 1","-","Exotic",null,null,null,null,null,null,null,null,null,null,0,0,"x",17983,1,1,1,0]
["Lygodium microphyllum",null,0,"Category 1","-","Exotic",null,null,null,null,null,null,null,null,null,null,0,0,"x",17984,1,1,1,0]
["Lyonia",null,null,"-","-","Native",null,null,null,null,null,null,null,null,null,null,0,0,"-",23558,3,9,2,{"$f":"IFERROR(R646*C646,\"0\")","v":0}]
["Lyonia ferruginea","Andromeda ferruginea",8.39,"-","-","Native",null,null,null,null,null,null,null,null,null,null,{"$f":"COUNTIF(G647:P647,\"P\")+COUNTIF(G647:P647,\"C\")+COUNTIF(G647:P647,\"D\")","v":0},{"$f":"IF(AND(W647<>2,(OR(V647=3,V647=4,V647=5,V647=8,V647=9))),Q647,0)","v":0},{"$f":"IF(C647<>\"\",\"x\",\"-\")","v":"x"},23560,3,1,2,0]
["Lyonia fruticosa",null,5.93,"-","-","Native",null,null,null,null,null,null,null,null,null,null,0,0,"x",23562,3,1,2,0]
["Lyonia ligustrina",null,8.67,"-","FAC","Native",null,null,null,null,null,null,null,null,null,null,0,0,"x",23559,3,3,2,0]
["Lyonia lucida",null,6,"-","FACW","Native",null,null,null,null,null,null,null,null,null,null,0,0,"x",23563,3,4,2,0]
["Lyonia mariana","Pieris mariana",4.8,"-","FACW","Native",null,null,null,null,null,null,null,null,null,null,0,0,"x",23564,3,4,2,0]
["Lythrum",null,null,"-","-","-",null,null,null,null,null,null,null,null,null,null,0,0,"-",27077,-9,-9,-9,0]
["Lythrum alatum",null,3.55,"-","OBL","Native",null,null,null,null,null,null,null,null,null,null,0,0,"x",27081,3,5,1,0]
["Lythrum flagellare",null,null,"-","OBL","Native",null,null,null,null,null,null,null,null,null,null,0,0,"-",27084,3,5,1,0]
["Lythrum lineare",null,3.82,"-","OBL","Native",null,null,null,null,null,null,null,null,null,null,0,0,"x",27078,3,5,1,0]
["Macroptilium",null,null,"-","-","-",null,null,null,null,null,null,null,null,null,null,0,0,"-",10007722,3,1,1,0]
["Macroptilium lathyroides",null,0.41,"-","-","Exotic",null,null,null,null,null,null,null,null,null,null,0,0,"x",10007723,3,1,1,0]
["Macrothelypteris",null,null,"-","-","Exotic",null,null,null,null,null,null,null,null,null,null,0,0,"-",17593,3,9,1,0]
["Macrothelypteris torresiana",null,null,"-","-","Exotic",null,null,null,null,null,null,null,null,null,null,0,0,"-",10015883,3,1,1,0]
["Magnolia",null,null,"-","-","-",null,null,null,null,null,null,null,null,null,null,0,0,"-",18069,3,9,2,0]
["Magnolia grandiflora",null,4.3600000000000003,"-","-","Native",null,null,null,null,null,null,null,null,null,null,0,0,"x",18074,3,1,2,0]
["Magnolia virginiana",null,7,"-","OBL","Native",null,null,null,null,null,null,null,null,null,null,0,0,"x",18070,3,5,2,0]
["Marsilea",null,null,"-","-","-",null,null,null,null,null,null,null,null,null,null,0,0,"-",17992,-9,-9,-9,0]
["Marsilea quadrifolia",null,null,"-","-","-",null,null,null,null,null,null,null,null,null,null,0,0,"-",17995,-9,-9,-9,0]
["Mayaca",null,null,"-","-","-",null,null,null,null,null,null,null,null,null,null,0,0,"-",39120,-9,-9,-9,0]
["Mayaca fluviatilis",null,8.4499999999999993,"-","OBL","Native",null,null,null,null,null,null,null,null,null,null,0,0,"x",39122,3,5,1,0]
["Melaleuca",null,null,"-","-","Exotic",null,null,null,null,null,null,null,null,null,null,0,0,"-",27227,4,9,2,0]
["Melaleuca quinquenervia",null,0,"Category 1","FAC","Exotic",null,null,null,null,null,null,null,null,null,null,0,0,"x",27228,1,3,2,0]
["Melaleuca viminalis",null,0,"-","-","Exotic",null,null,null,null,null,null,null,null,null,null,0,0,"x",10015953,-9,9,2,0]
["Melia",null,null,"-","-","-",null,null,null,null,null,null,null,null,null,null,0,0,"-",29023,-9,-9,-9,0]
["Melia azedarach",null,0,"Category 2","-","Exotic",null,null,null,null,null,null,null,null,null,null,0,0,"x",29024,2,1,2,0]
["Melinis",null,0,"Category 2","OBL","Exotic",null,null,null,null,null,null,null,null,null,null,0,0,"x",41862,2,8,1,0]
["Melinis repens","Rhynchelytrum repens",0,"Category 1","-","Exotic",null,null,null,null,null,null,null,null,null,null,0,0,"x",10009314,1,1,1,0]
["Melochia",null,null,"-","-","-",null,null,null,null,null,null,null,null,null,null,0,0,"-",21547,-9,-9,-9,0]
["Melochia corchorifolia",null,2.2400000000000002,"-","FAC","Exotic",null,null,null,null,null,null,null,null,null,null,0,0,"x",21549,3,3,3,0]
["Mentha spicata",null,null,"-","-","Exotic",null,null,null,null,null,null,null,null,null,null,0,0,"-",32272,3,7,1,0]
["Micranthemum",null,5.75,"-","OBL","Native",null,null,null,null,null,null,null,null,null,null,0,0,"x",33228,3,5,1,0]
["Micranthemum glomeratum",null,5.85,"-","OBL","Native",null,null,null,null,null,null,null,null,null,null,0,0,"x",33230,3,5,1,0]
["Micranthemum umbrosum",null,5.66,"-","OBL","Native",null,null,null,null,null,null,null,null,null,null,0,0,"x",33231,3,5,1,0]
["Mikania",null,null,"-","-","-",null,null,null,null,null,null,null,null,null,null,0,0,"-",36042,-9,-9,-9,0]
["Mikania scandens",null,1.95,"-","-","Native",null,null,null,null,null,null,null,null,null,null,0,0,"x",36043,3,1,1,0]
["Mimosa",null,null,"-","-","-",null,null,null,null,null,null,null,null,null,null,0,0,"-",26781,-9,-9,-9,0]
["Mimosa pigra",null,0,"Category 1","FAC","Exotic",null,null,null,null,null,null,null,null,null,null,0,0,"x",26789,1,3,2,0]
["Mitreola",null,null,"-","FACW","-",null,null,null,null,null,null,null,null,null,null,0,0,"-",10007715,3,4,1,0]
["Mitreola petiolata",null,5.41,"-","FACW","Native",null,null,null,null,null,null,null,null,null,null,0,0,"x",10007716,3,4,1,0]
["Mitreola sessilifolia",null,3.33,"-","FACW","Native",null,null,null,null,null,null,null,null,null,null,0,0,"x",10015502,3,4,1,0]
["Momordica",null,null,"-","UPL","Exotic",null,null,null,null,null,null,null,null,null,null,0,0,"-",22397,-9,2,1,0]
["Momordica charantia",null,null,"-","UPL","Exotic",null,null,null,null,null,null,null,null,null,null,0,0,"-",10015737,3,2,1,0]
["Morinda",null,null,"-","-","-",null,null,null,null,null,null,null,null,null,null,0,0,"-",35070,-9,-9,-9,0]
["Morinda royoc",null,2.88,"-","FACW","Native",null,null,null,null,null,null,null,null,null,null,0,0,"x",35072,3,4,2,0]
["Muhlenbergia",null,null,"-","-","-",null,null,null,null,null,null,null,null,null,null,0,0,"-",41883,-9,-9,-9,0]
["Muhlenbergia capillaris",null,5.43,"-","OBL","Native",null,null,null,null,null,null,null,null,null,null,0,0,"x",41902,3,5,1,0]
["Murdannia",null,null,"-","-","-",null,null,null,null,null,null,null,null,null,null,0,0,"-",39144,-9,-9,-9,0]
["Murdannia nudiflora",null,1.42,"-","FAC","Exotic",null,null,null,null,null,null,null,null,null,null,0,0,"x",39146,3,3,1,0]
["Musa",null,null,"-","-","Exotic",null,null,null,null,null,null,null,null,null,null,0,0,"-",42388,3,1,2,0]
["Musa sapientum",null,0,"-","UPL","Exotic",null,null,null,null,null,null,null,null,null,null,0,0,"x",10008852,3,2,2,0]
["Musa sapientum paradisiaca",null,0,"-","UPL","Exotic",null,null,null,null,null,null,null,null,null,null,0,0,"x",10009271,3,2,2,0]
["Myrica",null,null,"-","-","-",null,null,null,null,null,null,null,null,null,null,0,0,"-",19260,3,9,2,0]
["Myrica caroliniensis","Myrica heterophylla",4.33,"-","FACW","Native",null,null,null,null,null,null,null,null,null,null,0,0,"x",10014912,3,4,2,0]
["Myrica cerifera",null,2,"-","FAC","Native",null,null,null,null,null,null,null,null,null,null,0,0,"x",19261,3,3,2,0]
["Myriophyllum (native)",null,4.7699999999999996,"-","OBL","Native",null,null,null,null,null,null,null,null,null,null,0,0,"x",10015740,3,5,1,0]
["Myriophyllum (unknown nativity)",null,null,"-","OBL","-",null,null,null,null,null,null,null,null,null,null,0,0,"-",27034,4,5,1,0]
["Myriophyllum aquaticum",null,0.98,"-","OBL","Exotic",null,null,null,null,null,null,null,null,null,null,0,0,"x",10007685,3,5,1,0]
["Myriophyllum heterophyllum",null,4.7699999999999996,"-","OBL","Native",null,null,null,null,null,null,null,null,null,null,0,0,"x",27044,3,5,1,0]
["Myriophyllum laxum",null,7.5,"-","OBL","Native",null,null,null,null,null,null,null,null,null,null,0,0,"x",27046,3,5,1,0]
["Myriophyllum pinnatum",null,5.85,"-","OBL","Native",null,null,null,null,null,null,null,null,null,null,0,0,"x",27038,3,5,1,0]
["Myriophyllum spicatum",null,0,"Category 2","OBL","Exotic",null,null,null,null,null,null,null,null,null,null,0,0,"x",27039,2,5,1,0]
["Najas",null,null,"-","OBL","-",null,null,null,null,null,null,null,null,null,null,0,0,"-",38995,3,5,1,0]
["Najas filifolia",null,8.4499999999999993,"-","OBL","Native",null,null,null,null,null,null,null,null,null,null,0,0,"x",10007686,3,5,1,0]
["Najas gracillima",null,3,"-","OBL","Native",null,null,null,null,null,null,null,null,null,null,0,0,"x",38997,3,5,1,{"$f":"IFERROR(R710*C710,\"0\")","v":0}]
["Najas guadalupensis",null,5.07,"-","OBL","Native",null,null,null,null,null,null,null,null,null,null,{"$f":"COUNTIF(G711:P711,\"P\")+COUNTIF(G711:P711,\"C\")+COUNTIF(G711:P711,\"D\")","v":0},{"$f":"IF(AND(W711<>2,(OR(V711=3,V711=4,V711=5,V711=8,V711=9))),Q711,0)","v":0},{"$f":"IF(C711<>\"\",\"x\",\"-\")","v":"x"},38998,3,5,1,0]
["Najas marina",null,7.15,"-","OBL","Native",null,null,null,null,null,null,null,null,null,null,0,0,"x",39001,3,5,1,0]
["Najas minor",null,6,"-","OBL","Exotic",null,null,null,null,null,null,null,null,null,null,0,0,"x",39002,3,5,1,0]
["Nasturtium",null,null,"-","OBL","-",null,null,null,null,null,null,null,null,null,null,0,0,"-",23252,3,5,1,0]
["Nasturtium floridanum",null,null,"-","OBL","Native",null,null,null,null,null,null,null,null,null,null,0,0,"-",10015763,3,5,1,0]
["Nasturtium officinale",null,2.93,"-","OBL","Exotic",null,null,null,null,null,null,null,null,null,null,0,0,"x",23255,3,5,1,0]
["Nelumbo",null,null,"-","OBL","-",null,null,null,null,null,null,null,null,null,null,0,0,"-",18397,3,5,1,0]
["Nelumbo lutea",null,5.5,"-","OBL","Native",null,null,null,null,null,null,null,null,null,null,0,0,"x",18398,3,5,1,0]
["Nephrolepis",null,null,"-","FAC","-",null,null,null,null,null,null,null,null,null,null,0,0,"-",17601,4,3,1,0]
["Nephrolepis cordifolia",null,0,"Category 1","FACW","Exotic",null,null,null,null,null,null,null,null,null,null,0,0,"x",17604,1,4,1,0]
["Nephrolepis exaltata",null,3,"-","FAC","Native",null,null,null,null,null,null,null,null,null,null,0,0,"x",17605,3,3,1,0]
["Nerium",null,null,"-","UPL","Exotic",null,null,null,null,null,null,null,null,null,null,0,0,"-",30183,-9,2,2,0]
["Neyraudia",null,null,"-","-","-",null,null,null,null,null,null,null,null,null,null,0,0,"-",41959,-9,-9,-9,0]
["Neyraudia reynaudiana",null,0,"Category 1","FAC","Exotic",null,null,null,null,null,null,null,null,null,null,0,0,"x",41961,1,3,1,0]
["Nitella",null,6,"-","OBL","Native",null,null,null,null,null,null,null,null,null,null,0,0,"x",9467,3,5,1,0]
["Nuphar",null,3.5,"-","OBL","Native",null,null,null,null,null,null,null,null,null,null,0,0,"x",18371,3,5,1,0]
["Nuphar luteum","Nuphar advena",3.5,"-","OBL","Native",null,null,null,null,null,null,null,null,null,null,0,0,"x",18372,3,5,1,0]
["Nymphaea",null,null,"-","OBL","Native",null,null,null,null,null,null,null,null,null,null,0,0,"-",18383,3,5,1,0]
["Nymphaea capensis",null,0.5,"-","OBL","Exotic",null,null,null,null,null,null,null,null,null,null,0,0,"x",10014911,3,5,1,0]
["Nymphaea capensis zanzibariensis",null,0,"-","OBL","Exotic",null,null,null,null,null,null,null,null,null,null,0,0,"x",10015865,-9,5,1,0]
["Nymphaea lotus",null,null,"-","OBL","Exotic",null,null,null,null,null,null,null,null,null,null,0,0,"-",10015822,3,5,1,0]
["Nymphaea mexicana",null,6.5,"-","OBL","Native",null,null,null,null,null,null,null,null,null,null,0,0,"x",18385,3,5,1,0]
["Nymphaea odorata",null,5,"-","OBL","Native",null,null,null,null,null,null,null,null,null,null,0,0,"x",18384,3,5,1,0]
["Nymphoides (native)",null,null,"-","OBL","Native",null,null,null,null,null,null,null,null,null,null,0,0,"-",10015741,3,5,1,0]
["Nymphoides (unknown nativity)",null,null,"-","OBL","-",null,null,null,null,null,null,null,null,null,null,0,0,"-",29995,4,5,1,0]
["Nymphoides aquatica",null,6.09,"-","OBL","Native",null,null,null,null,null,null,null,null,null,null,0,0,"x",29996,3,5,1,0]
["Nymphoides cordata",null,null,"-","OBL","Native",null,null,null,null,null,null,null,null,null,null,0,0,"-",29997,3,5,1,0]
["Nymphoides cristata",null,0,"Category 1","OBL","Exotic",null,null,null,null,null,null,null,null,null,null,0,0,"x",10015625,1,5,1,0]
["Nymphoides indica",null,0,"-","OBL","Exotic",null,null,null,null,null,null,null,null,null,null,0,0,"x",10015990,3,5,1,0]
["Nyssa",null,null,"-","OBL","Native",null,null,null,null,null,null,null,null,null,null,0,0,"-",27820,3,5,2,0]
["Nyssa aquatica",null,null,"-","OBL","Native",null,null,null,null,null,null,null,null,null,null,0,0,"-",27824,3,5,2,0]
["Nyssa ogeche",null,7,"-","OBL","Native",null,null,null,null,null,null,null,null,null,null,0,0,"x",10015469,3,5,2,0]
["Nyssa sylvatica",null,null,"-","-","-",null,null,null,null,null,null,null,null,null,null,0,0,"-",27821,-9,-9,-9,0]
["Nyssa sylvatica biflora",null,7,"-","OBL","Native",null,null,null,null,null,null,null,null,null,null,0,0,"x",27823,3,5,2,0]
["Oldenlandia",null,null,"-","FACW","-",null,null,null,null,null,null,null,null,null,null,0,0,"-",35075,3,4,1,0]
["Oldenlandia uniflora","Hedyotis uniflora",2.5,"-","FACW","Native",null,null,null,null,null,null,null,null,null,null,0,0,"x",35082,3,4,1,0]
["Orontium",null,null,"-","-","-",null,null,null,null,null,null,null,null,null,null,0,0,"-",42531,-9,-9,-9,0]
["Orontium aquaticum",null,8.39,"-","OBL","Native",null,null,null,null,null,null,null,null,null,null,0,0,"x",42532,3,5,1,0]
["Osmunda",null,null,"-","-","-",null,null,null,null,null,null,null,null,null,null,0,0,"-",17217,3,9,1,0]
["Osmunda cinnamomea",null,6.44,"-","FACW","Native",null,null,null,null,null,null,null,null,null,null,0,0,"x",17219,3,4,1,0]
["Osmunda regalis",null,7.6,"-","OBL","Native",null,null,null,null,null,null,null,null,null,null,0,0,"x",17218,3,5,1,0]
["Ostrya",null,null,"-","UPL","Native",null,null,null,null,null,null,null,null,null,null,0,0,"-",19508,3,2,2,0]
["Ostrya virginiana","Ostrya virgianiana",5.91,"-","UPL","Native",null,null,null,null,null,null,null,null,null,null,0,0,"x",10009053,3,2,2,0]
["Ottelia",null,null,"-","-","-",null,null,null,null,null,null,null,null,null,null,0,0,"-",38975,-9,-9,-9,0]
["Ottelia alismoides",null,null,"-","OBL","Exotic",null,null,null,null,null,null,null,null,null,null,0,0,"-",38976,3,8,1,0]
["Oxycaryum",null,null,"-","OBL","Exotic",null,null,null,null,null,null,null,null,null,null,0,0,"-",10015466,3,5,1,0]
["Oxypolis",null,null,"-","-","-",null,null,null,null,null,null,null,null,null,null,0,0,"-",29543,-9,-9,-9,0]
["Oxypolis filiformis",null,8.69,"-","OBL","Native",null,null,null,null,null,null,null,null,null,null,0,0,"x",29547,3,5,1,0]
["Packera",null,null,"-","-","Native",null,null,null,null,null,null,null,null,null,null,0,0,"-",10015422,3,1,1,0]
["Packera glabella","Senecio glabellus",2.33,"-","OBL","Native",null,null,null,null,null,null,null,null,null,null,0,0,"x",10015421,3,5,1,0]
["Pandanus",null,null,"-","-","Exotic",null,null,null,null,null,null,null,null,null,null,0,0,"-",10015342,-9,0,-9,0]
["Pandanus veitchii",null,null,"-","-","Exotic",null,null,null,null,null,null,null,null,null,null,0,0,"-",10015343,3,1,2,0]
["Panicum",null,null,"-","-","-",null,null,null,null,null,null,null,null,null,null,0,0,"-",40901,4,9,1,0]
["Panicum abscissum",null,9.2200000000000006,"-","FACW","Native",null,null,null,null,null,null,null,null,null,null,0,0,"x",40926,3,4,1,0]
["Panicum anceps",null,4.6100000000000003,"-","FAC","Native",null,null,null,null,null,null,null,null,null,null,0,0,"x",40904,3,3,1,0]
["Panicum dichotomiflorum",null,4.96,"-","FACW","Native",null,null,null,null,null,null,null,null,null,null,0,0,"x",40908,3,4,1,0]
["Panicum hemitomon",null,5.82,"-","OBL","Native",null,null,null,null,null,null,null,null,null,null,0,0,"x",40909,3,5,1,0]
["Panicum maximum",null,0,"Category 2","-","Exotic",null,null,null,null,null,null,null,null,null,null,0,0,"x",40945,2,1,1,0]
["Panicum repens",null,0,"Category 1","FACW","Exotic",null,null,null,null,null,null,null,null,null,null,0,0,"x",10007692,1,4,1,0]
["Panicum rigidulum",null,5.47,"-","FACW","Native",null,null,null,null,null,null,null,null,null,null,0,0,"x",40956,3,4,1,0]
["Panicum tenerum",null,8.67,"-","OBL","Native",null,null,null,null,null,null,null,null,null,null,0,0,"x",40958,3,5,1,0]
["Panicum verrucosum",null,6.83,"-","FACW","Native",null,null,null,null,null,null,null,null,null,null,0,0,"x",40961,3,4,1,0]
["Panicum virgatum",null,5.44,"-","FACW","Native",null,null,null,null,null,null,null,null,null,null,0,0,"x",40913,3,4,1,0]
["Parietaria",null,null,"-","-","-",null,null,null,null,null,null,null,null,null,null,0,0,"-",19164,-9,-9,-9,{"$f":"IFERROR(R774*C774,\"0\")","v":0}]
["Parietaria floridana",null,null,"-","FAC","Native",null,null,null,null,null,null,null,null,null,null,{"$f":"COUNTIF(G775:P775,\"P\")+COUNTIF(G775:P775,\"C\")+COUNTIF(G775:P775,\"D\")","v":0},{"$f":"IF(AND(W775<>2,(OR(V775=3,V775=4,V775=5,V775=8,V775=9))),Q775,0)","v":0},{"$f":"IF(C775<>\"\",\"x\",\"-\")","v":"-"},19165,3,3,1,0]
["Parthenocissus",null,null,"-","-","-",null,null,null,null,null,null,null,null,null,null,0,0,"-",28601,-9,-9,-9,0]
["Parthenocissus quinquefolia",null,3.43,"-","-","Native",null,null,null,null,null,null,null,null,null,null,0,0,"x",28602,3,1,1,0]
["Paspalidium",null,null,"-","-","-",null,null,null,null,null,null,null,null,null,null,0,0,"-",41996,-9,-9,-9,0]
["Paspalidium geminatum",null,5.5,"-","OBL","Native",null,null,null,null,null,null,null,null,null,null,0,0,"x",41997,3,5,1,0]
["Paspalum",null,null,"-","-","-",null,null,null,null,null,null,null,null,null,null,0,0,"-",40990,3,9,1,0]
["Paspalum conjugatum",null,3.84,"-","FAC","Exotic",null,null,null,null,null,null,null,null,null,null,0,0,"x",41015,3,3,1,0]
["Paspalum dilatatum",null,4.33,"-","FAC","Exotic",null,null,null,null,null,null,null,null,null,null,0,0,"x",40997,3,3,1,0]
["Paspalum distichum",null,5.54,"-","OBL","Native",null,null,null,null,null,null,null,null,null,null,0,0,"x",41005,3,5,1,0]
["Paspalum floridanum",null,6.11,"-","FACW","Native",null,null,null,null,null,null,null,null,null,null,0,0,"x",40992,3,4,1,0]
["Paspalum laeve",null,5.79,"-","FACW","Native",null,null,null,null,null,null,null,null,null,null,0,0,"x",41024,3,4,1,0]
["Paspalum notatum",null,0.14000000000000001,"-","-","Exotic",null,null,null,null,null,null,null,null,null,null,0,0,"x",41000,3,1,1,0]
["Paspalum praecox",null,6.5,"-","OBL","Native",null,null,null,null,null,null,null,null,null,null,0,0,"x",41036,3,5,1,0]
["Paspalum repens",null,5.6,"-","OBL","Native",null,null,null,null,null,null,null,null,null,null,0,0,"x",41039,3,5,1,0]
["Paspalum setaceum",null,3.44,"-","FAC","Native",null,null,null,null,null,null,null,null,null,null,0,0,"x",41042,3,3,1,0]
["Paspalum urvillei",null,0,"-","FAC","Exotic",null,null,null,null,null,null,null,null,null,null,0,0,"x",41043,3,3,1,0]
["Passiflora",null,null,"-","-","-",null,null,null,null,null,null,null,null,null,null,0,0,"-",22219,4,1,1,0]
["Passiflora incarnata",null,2.89,"-","-","Native",null,null,null,null,null,null,null,null,null,null,0,0,"x",10007695,3,1,1,0]
["Peltandra",null,7.5,"-","OBL","Native",null,null,null,null,null,null,null,null,null,null,0,0,"x",42533,3,5,1,0]
["Peltandra sagittifolia",null,7.5,"-","OBL","Native",null,null,null,null,null,null,null,null,null,null,0,0,"x",42536,3,5,1,0]
["Peltandra virginica",null,7.5,"-","OBL","Native",null,null,null,null,null,null,null,null,null,null,0,0,"x",42534,3,5,1,0]
["Pennisetum",null,2.79,"-","FAC","Exotic",null,null,null,null,null,null,null,null,null,null,0,0,"x",42000,4,3,1,0]
["Pennisetum purpureum",null,0,"Category 1","FAC","Exotic",null,null,null,null,null,null,null,null,null,null,0,0,"x",42004,1,3,1,0]
["Perophora",null,null,"-","-","-",null,null,null,null,null,null,null,null,null,null,0,0,"-",159136,-9,-9,-9,0]
["Persea",null,null,"-","-","Native",null,null,null,null,null,null,null,null,null,null,0,0,"-",18148,-9,9,2,0]
["Persea borbonia",null,8.02,"-","-","Native",null,null,null,null,null,null,null,null,null,null,0,0,"x",18149,3,1,2,0]
["Persea borbonia humilis",null,7.43,"-","-","Native",null,null,null,null,null,null,null,null,null,null,0,0,"x",18151,3,1,2,0]
["Persea palustris",null,7,"-","OBL","Native",null,null,null,null,null,null,null,null,null,null,0,0,"x",10007743,3,5,2,0]
["Persicaria","Polygonum",null,"-","-","-",null,null,null,null,null,null,null,null,null,null,0,0,"-",10016067,3,9,1,0]
["Persicaria glabra",null,4.5,"-","OBL","Native",null,null,null,null,null,null,null,null,null,null,0,0,"x",10016068,3,5,1,0]
["Persicaria hirsuta","Polygonum densiflorum, Polygonum glabrum, Polygonum hirsutum",3,"-","OBL","Native",null,null,null,null,null,null,null,null,null,null,0,0,"x",10016069,3,5,1,0]
["Persicaria hydropiperoides","Polygonum hydropiperoides",2.5,"-","OBL","Native",null,null,null,null,null,null,null,null,null,null,0,0,"x",10016070,3,5,1,0]
["Persicaria lapathifolia","Polygonum lapathifolium",1.95,"-","OBL","Native",null,null,null,null,null,null,null,null,null,null,0,0,"x",10016071,3,5,1,0]
["Persicaria meisneriana beyrichiana","Persicaria meisneriana",3,"-","OBL","Native",null,null,null,null,null,null,null,null,null,null,0,0,"x",10016085,3,5,1,0]
["Persicaria pensylvanica","Polygonum pensylvanicum",2.13,"-","OBL","Native",null,null,null,null,null,null,null,null,null,null,0,0,"x",10016073,3,5,1,0]
["Persicaria punctata","Polygonum punctatum",3,"-","OBL","Native",null,null,null,null,null,null,null,null,null,null,0,0,"x",10016074,3,5,1,0]
["Persicaria setacea","Polygonum setaceum",2.81,"-","OBL","Native",null,null,null,null,null,null,null,null,null,null,0,0,"x",10016075,3,5,1,0]
["Persicaria virginiana","Polygonum virginianum",2.75,"-","FACW","Native",null,null,null,null,null,null,null,null,null,null,0,0,"x",10016076,3,4,1,0]
["Phanopyrum",null,null,"-","-","-",null,null,null,null,null,null,null,null,null,null,0,0,"-",42016,-9,-9,-9,0]
["Phanopyrum gymnocarpon",null,4.25,"-","OBL","Native",null,null,null,null,null,null,null,null,null,null,0,0,"x",42017,3,5,1,0]
["Phlebodium",null,null,"-","-","-",null,null,null,null,null,null,null,null,null,null,0,0,"-",17655,-9,-9,-9,0]
["Phlebodium aureum",null,6.85,"-","-","Native",null,null,null,null,null,null,null,null,null,null,0,0,"x",17656,3,1,1,0]
["Phragmites",null,null,"-","-","-",null,null,null,null,null,null,null,null,null,null,0,0,"-",41071,-9,-9,-9,0]
["Phragmites australis","Phragmites communis",4.3899999999999997,"-","OBL","Native",null,null,null,null,null,null,null,null,null,null,0,0,"x",41072,3,5,1,0]
["Phyla",null,null,"-","FAC","-",null,null,null,null,null,null,null,null,null,null,0,0,"-",32193,3,3,1,0]
["Phyla nodiflora",null,1.92,"-","FAC","Native",null,null,null,null,null,null,null,null,null,null,0,0,"x",32197,3,3,1,0]
["Phyllanthus",null,null,"-","-","-",null,null,null,null,null,null,null,null,null,null,0,0,"-",28364,-9,-9,-9,0]
["Phyllanthus urinaria",null,0.22,"-","FAC","Exotic",null,null,null,null,null,null,null,null,null,null,0,0,"x",28381,3,3,1,0]
["Physostegia",null,null,"-","-","-",null,null,null,null,null,null,null,null,null,null,0,0,"-",32386,-9,-9,-9,0]
["Physostegia leptophylla",null,null,"-","OBL","Native",null,null,null,null,null,null,null,null,null,null,0,0,"-",32395,3,5,1,0]
["Phytolacca",null,null,"-","-","-",null,null,null,null,null,null,null,null,null,null,0,0,"-",19522,-9,-9,-9,0]
["Phytolacca americana",null,2.09,"-","-","Native",null,null,null,null,null,null,null,null,null,null,0,0,"x",19523,3,1,1,0]
["Pieris",null,null,"-","-","-",null,null,null,null,null,null,null,null,null,null,0,0,"-",23565,3,1,3,0]
["Pilea",null,null,"-","FACW","-",null,null,null,null,null,null,null,null,null,null,0,0,"-",19129,3,4,1,0]
["Pilea microphylla",null,0.64,"-","FACW","Native",null,null,null,null,null,null,null,null,null,null,0,0,"x",19133,3,4,1,0]
["Pilea pumila",null,4.29,"-","FACW","Native",null,null,null,null,null,null,null,null,null,null,0,0,"x",19130,3,4,1,0]
["Pinus",null,null,"-","-","Native",null,null,null,null,null,null,null,null,null,null,0,0,"-",18035,3,-9,2,0]
["Pinus clausa",null,null,"-","-","Native",null,null,null,null,null,null,null,null,null,null,0,0,"-",10009092,3,1,2,0]
["Pinus echinata",null,2.78,"-","-","Native",null,null,null,null,null,null,null,null,null,null,0,0,"x",10012111,3,1,2,0]
["Pinus elliottii",null,4.21,"-","-","Native",null,null,null,null,null,null,null,null,null,null,0,0,"x",18036,3,1,2,0]
["Pinus glabra",null,5,"-","FACW","Native",null,null,null,null,null,null,null,null,null,null,0,0,"x",10011571,3,4,2,0]
["Pinus palustris",null,4.7699999999999996,"-","-","Native",null,null,null,null,null,null,null,null,null,null,0,0,"x",18038,3,1,2,0]
["Pinus taeda",null,5.34,"-","-","Native",null,null,null,null,null,null,null,null,null,null,0,0,"x",18037,3,1,2,0]
["Pistia",null,null,"-","-","-",null,null,null,null,null,null,null,null,null,null,0,0,"-",42541,-9,-9,-9,{"$f":"IFERROR(R838*C838,\"0\")","v":0}]
["Pistia stratiotes",null,0,"Category 1","OBL","Exotic",null,null,null,null,null,null,null,null,null,null,{"$f":"COUNTIF(G839:P839,\"P\")+COUNTIF(G839:P839,\"C\")+COUNTIF(G839:P839,\"D\")","v":0},{"$f":"IF(AND(W839<>2,(OR(V839=3,V839=4,V839=5,V839=8,V839=9))),Q839,0)","v":0},{"$f":"IF(C839<>\"\",\"x\",\"-\")","v":"x"},42542,1,5,1,0]
["Platanus",null,null,"-","-","-",null,null,null,null,null,null,null,null,null,null,0,0,"-",19019,-9,-9,-9,0]
["Platanus occidentalis",null,4.3600000000000003,"-","FACW","Native",null,null,null,null,null,null,null,null,null,null,0,0,"x",19020,3,4,2,0]
["Pluchea",null,null,"-","FACW","Native",null,null,null,null,null,null,null,null,null,null,0,0,"-",36060,3,4,1,0]
["Pluchea baccharis","Pluchea rosea",5.45,"-","FACW","Native",null,null,null,null,null,null,null,null,null,null,0,0,"x",10015606,3,4,1,0]
["Pluchea camphorata",null,3,"-","FACW","Native",null,null,null,null,null,null,null,null,null,null,0,0,"x",36061,3,4,1,0]
["Pluchea foetida",null,6.65,"-","FACW","Native",null,null,null,null,null,null,null,null,null,null,0,0,"x",36062,3,4,1,0]
["Pluchea longifolia",null,5.85,"-","FACW","Native",null,null,null,null,null,null,null,null,null,null,0,0,"x",36065,3,4,1,0]
["Pluchea odorata",null,4.96,"-","FACW","Native",null,null,null,null,null,null,null,null,null,null,0,0,"x",36066,3,4,1,0]
["Polygala",null,null,"-","-","-",null,null,null,null,null,null,null,null,null,null,0,0,"-",29302,-9,-9,-9,0]
["Polygala lutea",null,null,"-","FACW","Native",null,null,null,null,null,null,null,null,null,null,0,0,"-",29348,3,4,1,0]
["Polygonella",null,null,"-","-","-",null,null,null,null,null,null,null,null,null,null,0,0,"-",21306,-9,-9,-9,0]
["Polygonella gracilis",null,4.7699999999999996,"-","-","Native",null,null,null,null,null,null,null,null,null,null,0,0,"x",21311,3,1,1,0]
["Polypogon",null,null,"-","-","-",null,null,null,null,null,null,null,null,null,null,0,0,"-",41170,-9,-9,-9,0]
["Polypogon monspeliensis",null,1,"-","FAC","Exotic",null,null,null,null,null,null,null,null,null,null,0,0,"x",41171,3,3,1,0]
["Polypremum",null,null,"-","-","-",null,null,null,null,null,null,null,null,null,null,0,0,"-",29958,-9,-9,-9,0]
["Polypremum procumbens",null,1.71,"-","FAC","Native",null,null,null,null,null,null,null,null,null,null,0,0,"x",29959,3,3,1,0]
["Pontederia",null,null,"-","-","-",null,null,null,null,null,null,null,null,null,null,0,0,"-",42619,-9,-9,-9,0]
["Pontederia cordata",null,5.38,"-","OBL","Native",null,null,null,null,null,null,null,null,null,null,0,0,"x",42620,3,5,1,0]
["Pontederia rotundifolia",null,0,"-","OBL","Exotic",null,null,null,null,null,null,null,null,null,null,0,0,"x",10008272,3,5,1,0]
["Populus",null,null,"-","-","-",null,null,null,null,null,null,null,null,null,null,0,0,"-",22444,3,1,2,0]
["Portulaca",null,null,"-","-","-",null,null,null,null,null,null,null,null,null,null,0,0,"-",20418,3,1,1,0]
["Potamogeton",null,null,"-","OBL","-",null,null,null,null,null,null,null,null,null,null,0,0,"-",39005,-9,5,1,0]
["Potamogeton crispus",null,1,"-","OBL","Exotic",null,null,null,null,null,null,null,null,null,null,0,0,"x",39007,3,5,1,0]
["Potamogeton diversifolius",null,6,"-","OBL","Native",null,null,null,null,null,null,null,null,null,null,0,0,"x",39026,3,5,1,0]
["Potamogeton floridanus",null,null,"-","OBL","Native",null,null,null,null,null,null,null,null,null,null,0,0,"-",39030,3,5,1,0]
["Potamogeton illinoensis",null,6.64,"-","OBL","Native",null,null,null,null,null,null,null,null,null,null,0,0,"x",39035,3,5,1,0]
["Potamogeton pectinatus",null,7.8,"-","OBL","Native",null,null,null,null,null,null,null,null,null,null,0,0,"x",39010,3,5,1,0]
["Potamogeton pusillus",null,7.8,"-","OBL","Native",null,null,null,null,null,null,null,null,null,null,0,0,"x",39017,3,5,1,0]
["Proserpinaca",null,null,"-","-","-",null,null,null,null,null,null,null,null,null,null,0,0,"-",27048,-9,-9,-9,0]
["Proserpinaca palustris",null,5.85,"-","OBL","Native",null,null,null,null,null,null,null,null,null,null,0,0,"x",27049,3,5,1,0]
["Proserpinaca pectinata",null,5.5,"-","OBL","Native",null,null,null,null,null,null,null,null,null,null,0,0,"x",27050,3,5,1,0]
["Prunus",null,null,"-","-","-",null,null,null,null,null,null,null,null,null,null,0,0,"-",24762,-9,-9,-9,0]
["Prunus serotina",null,3.9,"-","-","Native",null,null,null,null,null,null,null,null,null,null,0,0,"x",24764,3,1,2,0]
["Psychotria",null,null,"-","FAC","-",null,null,null,null,null,null,null,null,null,null,0,0,"-",35090,3,3,2,0]
["Psychotria nervosa",null,3,"-","FAC","Native",null,null,null,null,null,null,null,null,null,null,0,0,"x",35092,3,3,2,0]
["Pteridium",null,null,"-","-","-",null,null,null,null,null,null,null,null,null,null,0,0,"-",17223,-9,-9,-9,0]
["Pteridium aquilinum",null,3.9,"-","-","Native",null,null,null,null,null,null,null,null,null,null,0,0,"x",17224,3,1,1,0]
["Pteris",null,null,"-","-","-",null,null,null,null,null,null,null,null,null,null,0,0,"-",17699,-9,-9,-9,0]
["Pteris tripartita",null,0.27,"-","FACW","Exotic",null,null,null,null,null,null,null,null,null,null,0,0,"x",17705,3,4,1,0]
["Pteris vittata",null,0,"Category 2","FACW","Exotic",null,null,null,null,null,null,null,null,null,null,0,0,"x",17706,2,4,1,0]
["Ptilimnium",null,null,"-","-","-",null,null,null,null,null,null,null,null,null,null,0,0,"-",29550,-9,-9,-9,0]
["Ptilimnium capillaceum",null,2.73,"-","OBL","Native",null,null,null,null,null,null,null,null,null,null,0,0,"x",29551,3,5,1,0]
["Quercus",null,null,"-","-","Native",null,null,null,null,null,null,null,null,null,null,0,0,"-",19276,3,9,2,0]
["Quercus laevis",null,null,"-","UPL","Native",null,null,null,null,null,null,null,null,null,null,0,0,"-",19367,3,2,2,0]
["Quercus laurifolia",null,4,"-","FACW","Native",null,null,null,null,null,null,null,null,null,null,0,0,"x",19368,3,4,2,0]
["Quercus michauxii",null,null,"-","FACW","Native",null,null,null,null,null,null,null,null,null,null,0,0,"-",19279,3,4,2,0]
["Quercus nigra",null,2.5,"-","FACW","Native",null,null,null,null,null,null,null,null,null,null,0,0,"x",19280,3,4,2,0]
["Quercus virginiana",null,4.8499999999999996,"-","-","Native",null,null,null,null,null,null,null,null,null,null,0,0,"x",19283,3,1,2,0]
["Reimarochloa",null,null,"-","-","-",null,null,null,null,null,null,null,null,null,null,0,0,"-",42048,-9,-9,-9,0]
["Reimarochloa oligostachya",null,1.75,"-","FACW","Native",null,null,null,null,null,null,null,null,null,null,0,0,"x",42049,3,4,1,0]
["Rhexia",null,null,"-","-","Native",null,null,null,null,null,null,null,null,null,null,0,0,"-",27684,3,9,1,0]
["Rhexia alifanus",null,4.5999999999999996,"-","FACW","Native",null,null,null,null,null,null,null,null,null,null,0,0,"x",27687,3,4,1,0]
["Rhexia cubensis",null,7.22,"-","FACW","Native",null,null,null,null,null,null,null,null,null,null,0,0,"x",27695,3,4,1,0]
["Rhexia mariana",null,4,"-","FACW","Native",null,null,null,null,null,null,null,null,null,null,0,0,"x",27685,3,4,1,0]
["Rhexia nashii",null,7.8,"-","FACW","Native",null,null,null,null,null,null,null,null,null,null,0,0,"x",27690,3,4,1,0]
["Rhexia nuttallii",null,7.93,"-","FACW","Native",null,null,null,null,null,null,null,null,null,null,0,0,"x",27691,3,4,1,0]
["Rhexia petiolata",null,7.9,"-","FACW","Native",null,null,null,null,null,null,null,null,null,null,0,0,"x",27693,3,4,1,0]
["Rhexia salicifolia",null,7.14,"-","OBL","Native",null,null,null,null,null,null,null,null,null,null,0,0,"x",27694,3,5,1,0]
["Rhexia virginica",null,3.8,"-","FACW","Native",null,null,null,null,null,null,null,null,null,null,0,0,"x",27686,3,4,1,0]
["Rhizophora",null,null,"-","-","-",null,null,null,null,null,null,null,null,null,null,0,0,"-",27790,-9,-9,-9,0]
["Rhizophora mangle",null,3,"-","OBL","Native",null,null,null,null,null,null,null,null,null,null,0,0,"x",10013211,3,5,2,0]
["Rhododendron",null,null,"-","-","-",null,null,null,null,null,null,null,null,null,null,0,0,"-",23700,-9,-9,-9,0]
["Rhododendron canescens",null,null,"-","-","Native",null,null,null,null,null,null,null,null,null,null,0,0,"-",23712,3,1,2,{"$f":"IFERROR(R902*C902,\"0\")","v":0}]
["Rhododendron viscosum",null,5.33,"-","FACW","Native",null,null,null,null,null,null,null,null,null,null,{"$f":"COUNTIF(G903:P903,\"P\")+COUNTIF(G903:P903,\"C\")+COUNTIF(G903:P903,\"D\")","v":0},{"$f":"IF(AND(W903<>2,(OR(V903=3,V903=4,V903=5,V903=8,V903=9))),Q903,0)","v":0},{"$f":"IF(C903<>\"\",\"x\",\"-\")","v":"x"},23731,3,4,2,0]
["Rhodomyrtus",null,null,"-","-","-",null,null,null,null,null,null,null,null,null,null,0,0,"-",27244,-9,-9,-9,0]
["Rhodomyrtus tomentosa",null,0,"Category 1","FAC","Exotic",null,null,null,null,null,null,null,null,null,null,0,0,"x",27245,1,3,2,0]
["Rhus",null,null,"-","-","-",null,null,null,null,null,null,null,null,null,null,0,0,"-",28772,3,1,2,0]
["Rhus copallinum",null,3.65,"-","-","Native",null,null,null,null,null,null,null,null,null,null,0,0,"x",10007744,3,1,2,0]
["Rhynchospora","Dichromena",null,"-","FACW","Native",null,null,null,null,null,null,null,null,null,null,0,0,"-",40144,3,4,1,0]
["Rhynchospora baldwinii",null,6.44,"-","FACW","Native",null,null,null,null,null,null,null,null,null,null,0,0,"x",40152,3,4,1,0]
["Rhynchospora caduca",null,7.61,"-","FACW","Native",null,null,null,null,null,null,null,null,null,null,0,0,"x",40154,3,4,1,0]
["Rhynchospora capitellata","Rhynchospora leptocarpa",6.4,"-","FACW","Native",null,null,null,null,null,null,null,null,null,null,0,0,"x",40145,3,4,1,0]
["Rhynchospora cephalantha",null,6.19,"-","OBL","Native",null,null,null,null,null,null,null,null,null,null,0,0,"x",40158,3,5,1,0]
["Rhynchospora chalarocephala",null,3.5,"-","FACW","Native",null,null,null,null,null,null,null,null,null,null,0,0,"x",40159,3,4,1,0]
["Rhynchospora chapmanii",null,3.33,"-","OBL","Native",null,null,null,null,null,null,null,null,null,null,0,0,"x",40160,3,5,1,0]
["Rhynchospora colorata",null,null,"-","FACW","Native",null,null,null,null,null,null,null,null,null,null,0,0,"-",10015913,3,4,1,0]
["Rhynchospora corniculata",null,4,"-","OBL","Native",null,null,null,null,null,null,null,null,null,null,0,0,"x",40146,3,5,1,0]
["Rhynchospora curtissii",null,3.75,"-","FACW","Native",null,null,null,null,null,null,null,null,null,null,0,0,"x",40164,3,4,1,0]
["Rhynchospora divergens",null,5.53,"-","OBL","Native",null,null,null,null,null,null,null,null,null,null,0,0,"x",40167,3,5,1,0]
["Rhynchospora fascicularis",null,5.92,"-","FACW","Native",null,null,null,null,null,null,null,null,null,null,0,0,"x",40169,3,4,1,0]
["Rhynchospora filifolia",null,8.1300000000000008,"-","FACW","Native",null,null,null,null,null,null,null,null,null,null,0,0,"x",40171,3,4,1,0]
["Rhynchospora globularis",null,3.45,"-","FACW","Native",null,null,null,null,null,null,null,null,null,null,0,0,"x",40173,3,4,1,0]
["Rhynchospora glomerata",null,4.13,"-","FACW","Native",null,null,null,null,null,null,null,null,null,null,0,0,"x",40174,3,4,1,0]
["Rhynchospora inundata",null,4,"-","OBL","Native",null,null,null,null,null,null,null,null,null,null,0,0,"x",40182,3,5,1,0]
["Rhynchospora latifolia","Dichromena latifolia",6.62,"-","OBL","Native",null,null,null,null,null,null,null,null,null,null,0,0,"x",10016087,3,5,1,0]
["Rhynchospora megalocarpa",null,null,"-","UPL","Native",null,null,null,null,null,null,null,null,null,null,0,0,"-",40185,3,2,1,0]
["Rhynchospora microcarpa",null,5.29,"-","OBL","Native",null,null,null,null,null,null,null,null,null,null,0,0,"x",40186,3,5,1,0]
["Rhynchospora microcephala",null,3.5,"-","FACW","Native",null,null,null,null,null,null,null,null,null,null,0,0,"x",40187,3,4,1,0]
["Rhynchospora miliacea",null,4.67,"-","OBL","Native",null,null,null,null,null,null,null,null,null,null,0,0,"x",40188,3,5,1,0]
["Rhynchospora nitens","Psilocarya nitens",4,"-","OBL","Native",null,null,null,null,null,null,null,null,null,null,0,0,"x",10007725,3,5,1,0]
["Rhynchospora odorata",null,4.33,"-","FACW","Native",null,null,null,null,null,null,null,null,null,null,0,0,"x",40190,3,4,1,0]
["Rhynchospora perplexa",null,5.2,"-","FACW","Native",null,null,null,null,null,null,null,null,null,null,0,0,"x",40193,3,4,1,0]
["Rhynchospora pleiantha",null,4.63,"-","FACW","Native",null,null,null,null,null,null,null,null,null,null,0,0,"x",10011391,3,4,1,0]
["Rhynchospora pusilla",null,7.54,"-","FACW","Native",null,null,null,null,null,null,null,null,null,null,0,0,"x",40196,3,4,1,0]
["Rhynchospora rariflora",null,8.6300000000000008,"-","FACW","Native",null,null,null,null,null,null,null,null,null,null,0,0,"x",40149,3,4,1,0]
["Rhynchospora scirpoides","Psilocarya scirpoides",3.29,"-","OBL","Native",null,null,null,null,null,null,null,null,null,null,0,0,"x",10008617,3,5,1,0]
["Rhynchospora tracyi",null,8,"-","OBL","Native",null,null,null,null,null,null,null,null,null,null,0,0,"x",40202,3,5,1,0]
["Rhynchospora wrightiana",null,7.8,"-","FACW","Native",null,null,null,null,null,null,null,null,null,null,0,0,"x",40203,3,4,1,0]
["Riccardia",null,null,"-","-","-",null,null,null,null,null,null,null,null,null,null,0,0,"-",15465,3,1,1,0]
["Riccia",null,null,"-","OBL","-",null,null,null,null,null,null,null,null,null,null,0,0,"-",15617,-9,8,-9,0]
["Ricciocarpus","Ricciocarpos",null,"-","-","-",null,null,null,null,null,null,null,null,null,null,0,0,"-",10010791,-9,0,-9,0]
["Ricciocarpus natans","Ricciocarpos natans",6,"-","OBL","Native",null,null,null,null,null,null,null,null,null,null,0,0,"x",10010792,3,5,1,0]
["Richardia","Richardia (magnoliophyta)",null,"-","-","-",null,null,null,null,null,null,null,null,null,null,0,0,"-",35137,-9,-9,-9,0]
["Richardia grandiflora",null,0,"Category 2","OBL","Exotic",null,null,null,null,null,null,null,null,null,null,0,0,"x",10015925,2,8,1,0]
["Ricinus",null,null,"-","-","-",null,null,null,null,null,null,null,null,null,null,0,0,"-",28392,-9,-9,-9,0]
["Ricinus communis",null,0,"Category 2","UPL","Exotic",null,null,null,null,null,null,null,null,null,null,0,0,"x",28393,2,2,2,0]
["Rorippa",null,null,"-","-","-",null,null,null,null,null,null,null,null,null,null,0,0,"-",22991,-9,-9,-9,0]
["Rorippa nasturtium-aquaticum",null,2.93,"-","OBL","Exotic",null,null,null,null,null,null,null,null,null,null,0,0,"x",22993,3,5,1,0]
["Rosa",null,null,"-","-","-",null,null,null,null,null,null,null,null,null,null,0,0,"-",24807,-9,-9,-9,0]
["Rosa palustris","Rosa virginiana",6.01,"-","OBL","Native",null,null,null,null,null,null,null,null,null,null,0,0,"x",24809,3,5,3,0]
["Rosmarinus",null,null,"-","-","-",null,null,null,null,null,null,null,null,null,null,0,0,"-",32676,-9,-9,-9,0]
["Rosmarinus officinalis",null,null,"-","-","-",null,null,null,null,null,null,null,null,null,null,0,0,"-",32677,-9,-9,-9,0]
["Rotala",null,null,"-","-","-",null,null,null,null,null,null,null,null,null,null,0,0,"-",27114,-9,-9,-9,0]
["Rotala ramosior",null,null,"-","OBL","Native",null,null,null,null,null,null,null,null,null,null,0,0,"-",27115,3,5,1,0]
["Rotala rotundifolia",null,0,"Category 2","UPL","Exotic",null,null,null,null,null,null,null,null,null,null,0,0,"x",10015867,2,2,1,0]
["Roystonea",null,null,"-","FACW","-",null,null,null,null,null,null,null,null,null,null,0,0,"-",42498,3,4,2,0]
["Roystonea regia","Roystonea elata",3.13,"-","FACW","Native",null,null,null,null,null,null,null,null,null,null,0,0,"x",42501,3,4,2,0]
["Rubus",null,null,"-","FAC","-",null,null,null,null,null,null,null,null,null,null,0,0,"-",24848,3,3,3,0]
["Rubus cuneifolius",null,3.9,"-","FAC","Native",null,null,null,null,null,null,null,null,null,null,0,0,"x",24905,3,3,3,0]
["Rubus trivialis",null,2.6,"-","FAC","Native",null,null,null,null,null,null,null,null,null,null,0,0,"x",25067,3,3,3,0]
["Ruellia",null,null,"-","-","-",null,null,null,null,null,null,null,null,null,null,0,0,"-",34371,4,9,1,0]
["Ruellia simplex","Ruellia brittoniana, Ruellia tweediana",0,"Category 1","FAC","Exotic",null,null,null,null,null,null,null,null,null,null,0,0,"x",10015686,1,3,1,0]
["Rumex",null,2.23,"-","FACW","-",null,null,null,null,null,null,null,null,null,null,0,0,"x",20933,3,4,1,0]
["Rumex crispus",null,0,"-","FACW","Exotic",null,null,null,null,null,null,null,null,null,null,0,0,"x",20937,3,4,1,0]
["Rumex hastatulus",null,null,"-","FACW","Native",null,null,null,null,null,null,null,null,null,null,0,0,"-",20938,3,4,1,0]
["Rumex obovatus",null,null,"-","FACW","Exotic",null,null,null,null,null,null,null,null,null,null,0,0,"-",10015662,3,4,1,0]
["Rumex verticillatus",null,3.17,"-","FACW","Native",null,null,null,null,null,null,null,null,null,null,0,0,"x",20946,3,4,1,{"$f":"IFERROR(R966*C966,\"0\")","v":0}]
["Ruppia",null,null,"-","-","-",null,null,null,null,null,null,null,null,null,null,{"$f":"COUNTIF(G967:P967,\"P\")+COUNTIF(G967:P967,\"C\")+COUNTIF(G967:P967,\"D\")","v":0},{"$f":"IF(AND(W967<>2,(OR(V967=3,V967=4,V967=5,V967=8,V967=9))),Q967,0)","v":0},{"$f":"IF(C967<>\"\",\"x\",\"-\")","v":"-"},39062,-9,-9,-9,0]
["Ruppia maritima",null,7.24,"-","OBL","Native",null,null,null,null,null,null,null,null,null,null,0,0,"x",39063,3,5,1,0]
["Sabal",null,null,"-","-","-",null,null,null,null,null,null,null,null,null,null,0,0,"-",42502,-9,-9,-9,0]
["Sabal minor",null,null,"-","FACW","Native",null,null,null,null,null,null,null,null,null,null,0,0,"-",42505,3,4,3,0]
["Sabal palmetto",null,2.85,"-","FAC","Native",null,null,null,null,null,null,null,null,null,null,0,0,"x",42506,3,3,2,0]
["Sabatia",null,null,"-","-","Native",null,null,null,null,null,null,null,null,null,null,0,0,"-",30000,3,9,1,0]
["Sabatia brevifolia",null,7.8,"-","FACW","Native",null,null,null,null,null,null,null,null,null,null,0,0,"x",30008,3,4,1,0]
["Sabatia campanulata",null,4.4000000000000004,"-","FACW","Native",null,null,null,null,null,null,null,null,null,null,0,0,"x",30002,3,4,1,0]
["Sabatia grandiflora",null,6,"-","FACW","Native",null,null,null,null,null,null,null,null,null,null,0,0,"x",30014,3,4,1,0]
["Saccharum","Erianthus",null,"-","-","-",null,null,null,null,null,null,null,null,null,null,0,0,"-",42054,3,9,1,0]
["Saccharum baldwinii","Erianthus strictus",5,"-","OBL","Native",null,null,null,null,null,null,null,null,null,null,0,0,"x",10014852,3,5,1,0]
["Saccharum coarctatum",null,null,"-","-","Native",null,null,null,null,null,null,null,null,null,null,0,0,"-",10015347,3,1,1,0]
["Saccharum giganteum","Erianthus giganteus",5.5,"-","OBL","Native",null,null,null,null,null,null,null,null,null,null,0,0,"x",10014252,3,5,1,0]
["Sacciolepis",null,null,"-","FAC","-",null,null,null,null,null,null,null,null,null,null,0,0,"-",41226,3,3,1,0]
["Sacciolepis indica",null,0.92,"-","FAC","Exotic",null,null,null,null,null,null,null,null,null,null,0,0,"x",41228,3,3,1,0]
["Sacciolepis striata",null,5.35,"-","OBL","Native",null,null,null,null,null,null,null,null,null,null,0,0,"x",41227,3,5,1,0]
["Sagittaria (native)",null,null,"-","OBL","Native",null,null,null,null,null,null,null,null,null,null,0,0,"-",10015742,3,5,1,0]
["Sagittaria (unknown nativity)",null,null,"-","OBL","-",null,null,null,null,null,null,null,null,null,null,0,0,"-",38903,3,5,1,0]
["Sagittaria filiformis",null,7.24,"-","OBL","Native",null,null,null,null,null,null,null,null,null,null,0,0,"x",10007728,3,5,1,0]
["Sagittaria graminea",null,5.53,"-","OBL","Native",null,null,null,null,null,null,null,null,null,null,0,0,"x",38907,3,5,1,0]
["Sagittaria isoetiformis",null,7,"-","OBL","Native",null,null,null,null,null,null,null,null,null,null,0,0,"x",38921,3,5,1,0]
["Sagittaria kurziana",null,9.75,"-","OBL","Native",null,null,null,null,null,null,null,null,null,null,0,0,"x",38922,3,5,1,0]
["Sagittaria lancifolia",null,3,"-","OBL","Native",null,null,null,null,null,null,null,null,null,null,0,0,"x",38923,3,5,1,0]
["Sagittaria latifolia",null,3.5,"-","OBL","Native",null,null,null,null,null,null,null,null,null,null,0,0,"x",38908,3,5,1,0]
["Sagittaria stagnorum",null,7.24,"-","OBL","Native",null,null,null,null,null,null,null,null,null,null,0,0,"x",38930,3,5,1,0]
["Sagittaria subulata",null,7,"-","OBL","Native",null,null,null,null,null,null,null,null,null,null,0,0,"x",38912,3,5,1,0]
["Salicornia",null,null,"-","OBL","-",null,null,null,null,null,null,null,null,null,null,0,0,"-",20646,3,5,1,0]
["Salix",null,null,"-","OBL","-",null,null,null,null,null,null,null,null,null,null,0,0,"-",22476,3,5,2,0]
["Salix babylonica",null,0,"-","OBL","Exotic",null,null,null,null,null,null,null,null,null,null,0,0,"x",22503,3,5,2,0]
["Salix caroliniana",null,2.95,"-","OBL","Native",null,null,null,null,null,null,null,null,null,null,0,0,"x",22516,3,5,2,0]
["Salix eriocephala","Salix cordata, Salix discolor, Salix myricoides, Salix rigida",4,"-","OBL","Native",null,null,null,null,null,null,null,null,null,null,0,0,"x",22528,3,5,2,0]
["Salix floridana",null,7.24,"-","OBL","Native",null,null,null,null,null,null,null,null,null,null,0,0,"x",22533,3,5,2,0]
["Salix nigra",null,2.13,"-","OBL","Native",null,null,null,null,null,null,null,null,null,null,0,0,"x",22484,3,5,2,0]
["Salvinia",null,null,"-","OBL","-",null,null,null,null,null,null,null,null,null,null,0,0,"-",18011,4,5,1,0]
["Salvinia minima",null,0,"Category 1","OBL","Exotic",null,null,null,null,null,null,null,null,null,null,0,0,"x",10007730,1,5,1,0]
["Salvinia molesta",null,0,"-","-","Exotic",null,null,null,null,null,null,null,null,null,null,0,0,"x",10015965,3,1,1,0]
["Sambucus",null,1.48,"-","FAC","Native",null,null,null,null,null,null,null,null,null,null,0,0,"x",35315,3,3,3,0]
["Sambucus nigra","Sambucus canadensis",1.48,"-","FAC","Native",null,null,null,null,null,null,null,null,null,null,0,0,"x",35324,3,3,3,0]
["Samolus",null,5.67,"-","OBL","Native",null,null,null,null,null,null,null,null,null,null,0,0,"x",24036,3,5,1,0]
["Samolus valerandi",null,5.67,"-","OBL","Native",null,null,null,null,null,null,null,null,null,null,0,0,"x",10015768,3,5,1,0]
["Samolus valerandi parviflorus","Samolus parviflorus",5.67,"-","OBL","Native",null,null,null,null,null,null,null,null,null,null,0,0,"x",10015766,3,5,1,0]
["Sapium",null,null,"-","-","-",null,null,null,null,null,null,null,null,null,null,0,0,"-",28394,-9,-9,-9,0]
["Sapium sebiferum",null,0,"Category 1","FAC","Exotic",null,null,null,null,null,null,null,null,null,null,0,0,"x",28397,1,3,2,0]
["Sarcostemma",null,null,"-","FACW","-",null,null,null,null,null,null,null,null,null,null,0,0,"-",30402,3,4,1,0]
["Sarcostemma clausum",null,3.81,"-","FACW","Native",null,null,null,null,null,null,null,null,null,null,0,0,"x",30403,3,4,1,0]
["Sarracenia",null,null,"-","-","-",null,null,null,null,null,null,null,null,null,null,0,0,"-",21992,3,9,1,0]
["Sarracenia flava",null,7,"-","OBL","Native",null,null,null,null,null,null,null,null,null,null,0,0,"x",21996,3,5,1,0]
["Sarracenia leucophylla",null,7,"-","OBL","Native",null,null,null,null,null,null,null,null,null,null,0,0,"x",21997,3,5,1,0]
["Sarracenia minor",null,5.67,"-","FACW","Native",null,null,null,null,null,null,null,null,null,null,0,0,"x",21999,3,4,1,0]
["Sarracenia rubra",null,8.33,"-","OBL","Native",null,null,null,null,null,null,null,null,null,null,0,0,"x",22002,3,5,1,0]
["Saururus",null,null,"-","-","-",null,null,null,null,null,null,null,null,null,null,0,0,"-",18220,-9,-9,-9,0]
["Saururus cernuus",null,6.5,"-","OBL","Native",null,null,null,null,null,null,null,null,null,null,0,0,"x",18221,3,5,1,0]
["Schefflera",null,0,"-","-","Exotic",null,null,null,null,null,null,null,null,null,null,0,0,"x",10015981,-9,1,2,0]
["Schinus",null,0,"Category 1","FACW","Exotic",null,null,null,null,null,null,null,null,null,null,0,0,"x",28809,1,4,2,0]
["Schinus terebinthifolius",null,0,"Category 1","FAC","Exotic",null,null,null,null,null,null,null,null,null,null,0,0,"x",28812,1,3,2,0]
["Schizachyrium",null,null,"-","FAC","-",null,null,null,null,null,null,null,null,null,null,0,0,"-",42069,3,3,1,0]
["Schizachyrium scoparium",null,5.44,"-","FAC","Native",null,null,null,null,null,null,null,null,null,null,0,0,"x",42076,3,3,1,0]
["Schoenoplectus",null,null,"-","OBL","Native",null,null,null,null,null,null,null,null,null,null,0,0,"-",10015344,3,5,1,0]
["Schoenoplectus americanus","Scirpus americanus",6.5,"-","OBL","Native",null,null,null,null,null,null,null,null,null,null,0,0,"x",10015463,3,5,1,0]
["Schoenoplectus californicus","Scirpus californicus",5,"-","OBL","Native",null,null,null,null,null,null,null,null,null,null,0,0,"x",10015464,3,5,1,0]
["Schoenoplectus etuberculatus","Scirpus etuberculatus",4.67,"-","OBL","Native",null,null,null,null,null,null,null,null,null,null,0,0,"x",10015589,3,5,1,0]
["Schoenoplectus pungens","Scirpus pungens",4,"-","OBL","Native",null,null,null,null,null,null,null,null,null,null,0,0,"x",10015563,3,5,1,0]
["Schoenoplectus tabernaemontani","Scirpus validus",5.55,"-","OBL","Native",null,null,null,null,null,null,null,null,null,null,0,0,"x",10015462,3,5,1,0]
["Scirpus",null,null,"-","OBL","-",null,null,null,null,null,null,null,null,null,null,0,0,"-",40225,3,5,1,{"$f":"IFERROR(R1030*C1030,\"0\")","v":0}]
["Scirpus cyperinus","Scirpus rubricosus",3.5,"-","OBL","Native",null,null,null,null,null,null,null,null,null,null,{"$f":"COUNTIF(G1031:P1031,\"P\")+COUNTIF(G1031:P1031,\"C\")+COUNTIF(G1031:P1031,\"D\")","v":0},{"$f":"IF(AND(W1031<>2,(OR(V1031=3,V1031=4,V1031=5,V1031=8,V1031=9))),Q1031,0)","v":0},{"$f":"IF(C1031<>\"\",\"x\",\"-\")","v":"x"},40228,3,5,1,0]
["Scleria",null,null,"-","FACW","-",null,null,null,null,null,null,null,null,null,null,0,0,"-",40303,4,4,1,0]
["Scleria baldwinii",null,8.67,"-","FACW","Native",null,null,null,null,null,null,null,null,null,null,0,0,"x",40304,3,4,1,0]
["Scleria ciliata",null,3.67,"-","FACW","Native",null,null,null,null,null,null,null,null,null,null,0,0,"x",40305,3,4,1,0]
["Scleria georgiana",null,8.7799999999999994,"-","FACW","Native",null,null,null,null,null,null,null,null,null,null,0,0,"x",40308,3,4,1,0]
["Scleria lacustris",null,0,"Category 1","FAC","Exotic",null,null,null,null,null,null,null,null,null,null,0,0,"x",10015730,1,3,1,0]
["Scleria microcarpum",null,0,"-","FACW","Exotic",null,null,null,null,null,null,null,null,null,null,0,0,"x",40327,3,4,1,0]
["Scleria reticularis",null,6.79,"-","FACW","Native",null,null,null,null,null,null,null,null,null,null,0,0,"x",40316,3,4,1,0]
["Scoparia",null,null,"-","-","-",null,null,null,null,null,null,null,null,null,null,0,0,"-",34028,-9,-9,-9,0]
["Scoparia dulcis",null,2.36,"-","FAC","Native",null,null,null,null,null,null,null,null,null,null,0,0,"x",34029,3,3,1,0]
["Scutellaria",null,null,"-","-","Native",null,null,null,null,null,null,null,null,null,null,0,0,"-",32764,3,-9,1,0]
["Scutellaria racemosa",null,null,"-","OBL","Exotic",null,null,null,null,null,null,null,null,null,null,0,0,"-",10015681,3,5,1,0]
["Senna",null,null,"-","-","-",null,null,null,null,null,null,null,null,null,null,0,0,"-",10007746,4,1,1,0]
["Serenoa",null,null,"-","-","-",null,null,null,null,null,null,null,null,null,null,0,0,"-",42507,-9,-9,-9,0]
["Serenoa repens",null,7.03,"-","UPL","Native",null,null,null,null,null,null,null,null,null,null,0,0,"x",42508,3,2,2,0]
["Sesbania",null,null,"-","FAC","-",null,null,null,null,null,null,null,null,null,null,0,0,"-",26949,4,3,3,0]
["Sesbania drummondii",null,1.8,"-","FAC","Native",null,null,null,null,null,null,null,null,null,null,0,0,"x",26950,3,3,3,0]
["Sesbania herbacea","Sesbania emerus, Sesbania exaltata",1,"-","FAC","Native",null,null,null,null,null,null,null,null,null,null,0,0,"x",10007736,3,3,1,0]
["Sesbania punicea",null,0,"Category 2","FAC","Exotic",null,null,null,null,null,null,null,null,null,null,0,0,"x",26954,2,3,3,0]
["Sesbania vesicaria",null,1.44,"-","FAC","Native",null,null,null,null,null,null,null,null,null,null,0,0,"x",26956,3,3,1,0]
["Sesuvium",null,null,"-","FACW","Native",null,null,null,null,null,null,null,null,null,null,0,0,"-",19903,3,4,1,0]
["Sesuvium maritimum",null,null,"-","FACW","Native",null,null,null,null,null,null,null,null,null,null,0,0,"-",19904,3,4,1,0]
["Setaria",null,null,"-","-","-",null,null,null,null,null,null,null,null,null,null,0,0,"-",41229,3,9,1,0]
["Setaria magna",null,3.25,"-","OBL","Native",null,null,null,null,null,null,null,null,null,null,0,0,"x",41230,3,5,1,0]
["Setaria parviflora","Setaria geniculata",2.5,"-","FAC","Native",null,null,null,null,null,null,null,null,null,null,0,0,"x",10007737,3,3,1,0]
["Seymeria",null,null,"-","-","-",null,null,null,null,null,null,null,null,null,null,0,0,"-",34042,-9,-9,-9,0]
["Seymeria cassioides",null,null,"-","FAC","Native",null,null,null,null,null,null,null,null,null,null,0,0,"-",34043,3,3,1,0]
["Sida","Sida (malvaceae)",null,"-","-","-",null,null,null,null,null,null,null,null,null,null,0,0,"-",21724,-9,-9,-9,0]
["Sida rhombifolia",null,1.65,"-","-","Native",null,null,null,null,null,null,null,null,null,null,0,0,"x",21731,3,1,1,0]
["Sisyrinchium",null,null,"-","-","-",null,null,null,null,null,null,null,null,null,null,0,0,"-",43237,3,-9,1,0]
["Sium",null,null,"-","-","-",null,null,null,null,null,null,null,null,null,null,0,0,"-",29557,-9,-9,-9,0]
["Sium suave",null,null,"-","OBL","Native",null,null,null,null,null,null,null,null,null,null,0,0,"-",29558,3,5,1,0]
["Smilax",null,null,"-","-","Native",null,null,null,null,null,null,null,null,null,null,0,0,"-",43340,3,1,3,0]
["Smilax auriculata",null,3.96,"-","-","Native",null,null,null,null,null,null,null,null,null,null,0,0,"x",43349,3,1,1,0]
["Smilax bona-nox",null,3.78,"-","-","Native",null,null,null,null,null,null,null,null,null,null,0,0,"x",43341,3,1,1,0]
["Smilax glauca",null,2.7,"-","-","Native",null,null,null,null,null,null,null,null,null,null,0,0,"x",43342,3,1,3,0]
["Smilax laurifolia",null,4,"-","-","Native",null,null,null,null,null,null,null,null,null,null,0,0,"x",43345,3,1,3,0]
["Smilax pumila",null,6.01,"-","-","Native",null,null,null,null,null,null,null,null,null,null,0,0,"x",43361,3,1,1,0]
["Smilax walteri",null,null,"-","-","Native",null,null,null,null,null,null,null,null,null,null,0,0,"-",43364,3,1,1,0]
["Solanum",null,null,"-","-","-",null,null,null,null,null,null,null,null,null,null,0,0,"-",30412,4,9,3,0]
["Solanum tampicense",null,0,"Category 1","-","Exotic",null,null,null,null,null,null,null,null,null,null,0,0,"x",10007738,1,1,3,0]
["Solanum viarum",null,0,"Category 1","-","Exotic",null,null,null,null,null,null,null,null,null,null,0,0,"x",10007739,1,1,3,0]
["Solidago",null,null,"-","-","Native",null,null,null,null,null,null,null,null,null,null,0,0,"-",36223,3,9,1,0]
["Solidago canadensis",null,2.4500000000000002,"-","-","Native",null,null,null,null,null,null,null,null,null,null,0,0,"x",36224,3,1,1,0]
["Solidago fistulosa",null,4.49,"-","FACW","Native",null,null,null,null,null,null,null,null,null,null,0,0,"x",36254,3,4,1,0]
["Solidago leavenworthii",null,2.73,"-","FACW","Native",null,null,null,null,null,null,null,null,null,null,0,0,"x",36271,3,4,1,0]
["Solidago rugosa",null,3.75,"-","FAC","Native",null,null,null,null,null,null,null,null,null,null,0,0,"x",36299,3,3,1,0]
["Solidago sempervirens",null,4.3600000000000003,"-","FACW","Native",null,null,null,null,null,null,null,null,null,null,0,0,"x",36226,3,4,1,0]
["Solidago stricta",null,5.49,"-","FACW","Native",null,null,null,null,null,null,null,null,null,null,0,0,"x",36315,3,4,1,0]
["Sorghum",null,null,"-","-","-",null,null,null,null,null,null,null,null,null,null,0,0,"-",42106,-9,-9,-9,0]
["Sorghum bicolor",null,0.11,"-","-","Exotic",null,null,null,null,null,null,null,null,null,null,0,0,"x",42108,3,1,1,0]
["Sorghum halepense",null,null,"-","-","Exotic",null,null,null,null,null,null,null,null,null,null,0,0,"-",42111,3,1,1,0]
["Sparganium",null,null,"-","-","-",null,null,null,null,null,null,null,null,null,null,0,0,"-",42312,-9,-9,-9,0]
["Sparganium americanum",null,6.5,"-","OBL","Native",null,null,null,null,null,null,null,null,null,null,0,0,"x",42313,3,5,1,0]
["Spartina",null,null,"-","-","-",null,null,null,null,null,null,null,null,null,null,0,0,"-",41266,3,9,1,0]
["Spartina alterniflora",null,7.94,"-","OBL","Native",null,null,null,null,null,null,null,null,null,null,0,0,"x",41267,3,5,1,0]
["Spartina bakeri",null,5.98,"-","FACW","Native",null,null,null,null,null,null,null,null,null,null,0,0,"x",41273,3,4,1,0]
["Spartina patens",null,5.23,"-","FACW","Native",null,null,null,null,null,null,null,null,null,null,0,0,"x",41271,3,4,1,0]
["Spermacoce",null,null,"-","-","-",null,null,null,null,null,null,null,null,null,null,0,0,"-",35239,3,9,1,0]
["Spermacoce glabra",null,4,"-","FACW","Native",null,null,null,null,null,null,null,null,null,null,0,0,"x",35241,3,4,1,0]
["Spermacoce neoterminalis",null,null,"-","-","Native",null,null,null,null,null,null,null,null,null,null,0,0,"-",10015926,3,1,1,0]
["Spermacoce verticillata",null,0,"Category 2","OBL","Exotic",null,null,null,null,null,null,null,null,null,null,0,0,"x",10015900,2,8,1,0]
["Sphagneticola",null,null,"-","-","Exotic",null,null,null,null,null,null,null,null,null,null,0,0,"-",10015631,-9,0,-9,0]
["Sphagneticola trilobata","Wedelia trilobata",0,"Category 2","FACW","Exotic",null,null,null,null,null,null,null,null,null,null,0,0,"x",10015621,2,4,1,{"$f":"IFERROR(R1094*C1094,\"0\")","v":0}]
["Sphagnum",null,7.43,"-","OBL","Native",null,null,null,null,null,null,null,null,null,null,{"$f":"COUNTIF(G1095:P1095,\"P\")+COUNTIF(G1095:P1095,\"C\")+COUNTIF(G1095:P1095,\"D\")","v":0},{"$f":"IF(AND(W1095<>2,(OR(V1095=3,V1095=4,V1095=5,V1095=8,V1095=9))),Q1095,0)","v":0},{"$f":"IF(C1095<>\"\",\"x\",\"-\")","v":"x"},15683,3,5,1,0]
["Sphenoclea",null,null,"-","-","-",null,null,null,null,null,null,null,null,null,null,0,0,"-",34607,-9,-9,-9,0]
["Sphenoclea zeylanica",null,3,"-","FACW","Exotic",null,null,null,null,null,null,null,null,null,null,0,0,"x",34608,3,4,1,0]
["Spiranthes",null,null,"-","-","-",null,null,null,null,null,null,null,null,null,null,0,0,"-",43443,-9,-9,-9,0]
["Spiranthes odorata",null,null,"-","FACW","Native",null,null,null,null,null,null,null,null,null,null,0,0,"-",10015952,3,4,1,0]
["Spiranthes praecox",null,null,"-","FACW","Native",null,null,null,null,null,null,null,null,null,null,0,0,"-",43447,3,4,1,0]
["Spirodela",null,null,"-","OBL","-",null,null,null,null,null,null,null,null,null,null,0,0,"-",42597,3,5,1,0]
["Spirodela polyrhiza",null,2.95,"-","OBL","Native",null,null,null,null,null,null,null,null,null,null,0,0,"x",42599,3,5,1,0]
["Sporobolus",null,null,"-","-","-",null,null,null,null,null,null,null,null,null,null,0,0,"-",42115,-9,-9,-9,0]
["Sporobolus indicus",null,0.99,"-","-","Exotic",null,null,null,null,null,null,null,null,null,null,0,0,"x",42140,3,1,1,0]
["Sporobolus virginicus",null,null,"-","OBL","Native",null,null,null,null,null,null,null,null,null,null,0,0,"-",42127,3,5,1,0]
["Stenotaphrum",null,null,"-","FAC","-",null,null,null,null,null,null,null,null,null,null,0,0,"-",42156,3,3,1,0]
["Stenotaphrum secundatum",null,1.57,"-","-","Native",null,null,null,null,null,null,null,null,null,null,0,0,"x",42157,3,1,1,0]
["Stillingia",null,null,"-","-","-",null,null,null,null,null,null,null,null,null,null,0,0,"-",28409,-9,-9,-9,0]
["Stillingia aquatica",null,8.32,"-","OBL","Native",null,null,null,null,null,null,null,null,null,null,0,0,"x",28410,3,5,3,0]
["Styrax",null,null,"-","-","-",null,null,null,null,null,null,null,null,null,null,0,0,"-",23867,-9,-9,-9,0]
["Styrax americanus",null,4.5,"-","OBL","Native",null,null,null,null,null,null,null,null,null,null,0,0,"x",10015586,3,5,2,0]
["Styrax grandifolius",null,6.25,"-","OBL","Native",null,null,null,null,null,null,null,null,null,null,0,0,"x",10015587,3,5,2,0]
["Symphyotrichum",null,null,"-","-","-",null,null,null,null,null,null,null,null,null,null,0,0,"-",10015677,-9,0,-9,0]
["Symphyotrichum bahamense",null,null,"-","OBL","Native",null,null,null,null,null,null,null,null,null,null,0,0,"-",10015676,3,5,1,0]
["Symphyotrichum carolinianum","Aster carolinianus",3.93,"-","OBL","Native",null,null,null,null,null,null,null,null,null,null,0,0,"x",10015684,3,5,3,0]
["Symphyotrichum dumosum","Aster dumosus",2.5299999999999998,"-","FAC","Native",null,null,null,null,null,null,null,null,null,null,0,0,"x",10015685,3,3,1,0]
["Symphyotrichum elliottii","Aster elliottii",6.76,"-","OBL","Native",null,null,null,null,null,null,null,null,null,null,0,0,"x",10015720,3,5,1,0]
["Symphyotrichum subulatum","Aster subulatus",5.74,"-","OBL","Native",null,null,null,null,null,null,null,null,null,null,0,0,"x",10015722,3,5,1,0]
["Symplocos",null,null,"-","-","-",null,null,null,null,null,null,null,null,null,null,0,0,"-",23877,3,1,2,0]
["Symplocos tinctoria",null,null,"-","-","Native",null,null,null,null,null,null,null,null,null,null,0,0,"-",10015678,3,1,2,0]
["Syngonanthus",null,null,"-","-","-",null,null,null,null,null,null,null,null,null,null,0,0,"-",39210,-9,-9,-9,0]
["Syngonanthus flavidulus",null,6.93,"-","FACW","Native",null,null,null,null,null,null,null,null,null,null,0,0,"x",39211,3,4,1,0]
["Syngonium",null,null,"-","-","Exotic",null,null,null,null,null,null,null,null,null,null,0,0,"-",42552,4,1,1,0]
["Syngonium podophyllum",null,0,"Category 1","OBL","Exotic",null,null,null,null,null,null,null,null,null,null,0,0,"x",10015870,1,8,1,0]
["Syzygium",null,null,"-","-","-",null,null,null,null,null,null,null,null,null,null,0,0,"-",27274,-9,-9,-9,0]
["Syzygium cumini",null,0,"Category 1","FAC","Exotic",null,null,null,null,null,null,null,null,null,null,0,0,"x",10013513,1,3,2,0]
["Taxodium",null,7,"-","OBL","Native",null,null,null,null,null,null,null,null,null,null,0,0,"x",18040,3,5,2,0]
["Taxodium ascendens",null,7,"-","OBL","Native",null,null,null,null,null,null,null,null,null,null,0,0,"x",10007745,3,5,2,0]
["Taxodium distichum",null,7,"-","OBL","Native",null,null,null,null,null,null,null,null,null,null,0,0,"x",18041,3,5,2,0]
["Teucrium",null,null,"-","-","-",null,null,null,null,null,null,null,null,null,null,0,0,"-",32351,-9,-9,-9,0]
["Teucrium canadense",null,6.44,"-","FACW","Native",null,null,null,null,null,null,null,null,null,null,0,0,"x",32352,3,4,1,0]
["Thalia","Thalia(plant)",null,"-","-","-",null,null,null,null,null,null,null,null,null,null,0,0,"-",42426,-9,-9,-9,0]
["Thalia geniculata",null,6,"-","OBL","Native",null,null,null,null,null,null,null,null,null,null,0,0,"x",42429,3,5,1,0]
["Thelypteris",null,null,"-","FACW","-",null,null,null,null,null,null,null,null,null,null,0,0,"-",17250,3,4,-9,0]
["Thelypteris dentata",null,1.62,"-","FACW","Exotic",null,null,null,null,null,null,null,null,null,null,0,0,"x",17254,3,4,1,0]
["Thelypteris hispidula",null,2.69,"-","FACW","Native",null,null,null,null,null,null,null,null,null,null,0,0,"x",17256,3,4,1,0]
["Thelypteris interrupta",null,6.74,"-","FACW","Native",null,null,null,null,null,null,null,null,null,null,0,0,"x",17257,3,4,1,0]
["Thelypteris kunthii",null,2.83,"-","FACW","Native",null,null,null,null,null,null,null,null,null,null,0,0,"x",17258,3,4,1,0]
["Thelypteris ovata",null,2.86,"-","FACW","Native",null,null,null,null,null,null,null,null,null,null,0,0,"x",17262,3,4,1,0]
["Thelypteris palustris pubescens",null,5.31,"-","FACW","Native",null,null,null,null,null,null,null,null,null,null,0,0,"x",10011532,3,4,1,0]
["Thelypteris resinifera",null,null,"-","-","-",null,null,null,null,null,null,null,null,null,null,0,0,"-",17268,-9,-9,-9,0]
["Thespesia",null,null,"-","-","-",null,null,null,null,null,null,null,null,null,null,0,0,"-",21761,-9,-9,-9,0]
["Thespesia populnea",null,0,"Category 1","FAC","Exotic",null,null,null,null,null,null,null,null,null,null,0,0,"x",21762,1,3,2,0]
["Tilia",null,null,"-","-","-",null,null,null,null,null,null,null,null,null,null,0,0,"-",21535,-9,-9,-9,0]
["Tilia americana","Tilia caroliniana, Tilia heterophylla",5.55,"-","FACW","Native",null,null,null,null,null,null,null,null,null,null,0,0,"x",21536,3,4,2,0]
["Toxicodendron",null,null,"-","-","Native",null,null,null,null,null,null,null,null,null,null,0,0,"-",28818,3,9,3,0]
["Toxicodendron radicans",null,1.44,"-","-","Native",null,null,null,null,null,null,null,null,null,null,0,0,"x",28821,3,1,1,0]
["Toxicodendron vernix","Rhus vernix",7.5,"-","FACW","Native",null,null,null,null,null,null,null,null,null,null,0,0,"x",28823,3,4,2,0]
["Tradescantia",null,null,"-","-","-",null,null,null,null,null,null,null,null,null,null,0,0,"-",39156,4,9,1,0]
["Tradescantia ohiensis",null,null,"-","-","Native",null,null,null,null,null,null,null,null,null,null,0,0,"-",39169,3,1,1,0]
["Tradescantia spathacea",null,0,"Category 2","OBL","Exotic",null,null,null,null,null,null,null,null,null,null,0,0,"x",10014732,2,8,1,0]
["Tradescantia zebrina",null,0,"-","UPL","Exotic",null,null,null,null,null,null,null,null,null,null,0,0,"x",10011352,3,2,1,0]
["Triadenum",null,null,"-","-","-",null,null,null,null,null,null,null,null,null,null,0,0,"-",21472,-9,-9,-9,0]
["Triadenum virginicum",null,5,"-","OBL","Native",null,null,null,null,null,null,null,null,null,null,0,0,"x",21475,3,5,1,0]
["Triadenum walteri",null,7.92,"-","OBL","Native",null,null,null,null,null,null,null,null,null,null,0,0,"x",21476,3,5,1,0]
["Trifolium",null,1.49,"-","-","-",null,null,null,null,null,null,null,null,null,null,0,0,"x",26204,3,1,1,0]
["Triglochin",null,null,"-","-","-",null,null,null,null,null,null,null,null,null,null,0,0,"-",38987,-9,-9,-9,0]
["Triglochin striata",null,null,"-","OBL","Native",null,null,null,null,null,null,null,null,null,null,0,0,"-",38990,3,5,1,{"$f":"IFERROR(R1158*C1158,\"0\")","v":0}]
["Tripsacum",null,null,"-","-","-",null,null,null,null,null,null,null,null,null,null,{"$f":"COUNTIF(G1159:P1159,\"P\")+COUNTIF(G1159:P1159,\"C\")+COUNTIF(G1159:P1159,\"D\")","v":0},{"$f":"IF(AND(W1159<>2,(OR(V1159=3,V1159=4,V1159=5,V1159=8,V1159=9))),Q1159,0)","v":0},{"$f":"IF(C1159<>\"\",\"x\",\"-\")","v":"-"},41286,-9,-9,-9,0]
["Tripsacum dactyloides",null,6.03,"-","FAC","Native",null,null,null,null,null,null,null,null,null,null,0,0,"x",41287,3,3,1,0]
["Typha",null,1,"-","OBL","Native",null,null,null,null,null,null,null,null,null,null,0,0,"x",42324,3,5,1,0]
["Typha domingensis",null,1,"-","OBL","Native",null,null,null,null,null,null,null,null,null,null,0,0,"x",42327,3,5,1,0]
["Typha latifolia",null,1,"-","OBL","Native",null,null,null,null,null,null,null,null,null,null,0,0,"x",42326,3,5,1,0]
["Ulmus",null,null,"-","FACW","-",null,null,null,null,null,null,null,null,null,null,0,0,"-",19048,3,4,2,0]
["Ulmus alata",null,null,"-","FACW","Native",null,null,null,null,null,null,null,null,null,null,0,0,"-",19051,3,4,2,0]
["Ulmus americana",null,5,"-","FACW","Native",null,null,null,null,null,null,null,null,null,null,0,0,"x",19049,3,4,2,0]
["Ulmus parvifolia",null,0,"-","FACW","Exotic",null,null,null,null,null,null,null,null,null,null,0,0,"x",19055,3,4,2,0]
["Uniola",null,null,"-","-","-",null,null,null,null,null,null,null,null,null,null,0,0,"-",41315,-9,-9,-9,0]
["Uniola paniculata",null,6.43,"-","UPL","Native",null,null,null,null,null,null,null,null,null,null,0,0,"x",41317,3,2,1,0]
["Urena",null,null,"-","-","-",null,null,null,null,null,null,null,null,null,null,0,0,"-",21758,-9,-9,-9,0]
["Urena lobata",null,0,"Category 2","UPL","Exotic",null,null,null,null,null,null,null,null,null,null,0,0,"x",21759,2,2,3,0]
["Urochloa",null,null,"-","-","-",null,null,null,null,null,null,null,null,null,null,0,0,"-",42246,4,9,1,0]
["Urochloa mutica","Brachiaria mutica",0,"Category 1","FACW","Exotic",null,null,null,null,null,null,null,null,null,null,0,0,"x",10015465,1,4,1,0]
["Utricularia",null,6,"-","OBL","Native",null,null,null,null,null,null,null,null,null,null,0,0,"x",34443,3,5,1,0]
["Utricularia cornuta",null,5,"-","OBL","Native",null,null,null,null,null,null,null,null,null,null,0,0,"x",34447,3,5,1,0]
["Utricularia floridana",null,6.34,"-","OBL","Native",null,null,null,null,null,null,null,null,null,null,0,0,"x",34449,3,5,1,0]
["Utricularia foliosa",null,5,"-","OBL","Native",null,null,null,null,null,null,null,null,null,null,0,0,"x",34450,3,5,1,0]
["Utricularia gibba","Utricularia biflora, Utricularia fibrosa, Utricularia obtusa",6.37,"-","OBL","Native",null,null,null,null,null,null,null,null,null,null,0,0,"x",34452,3,5,1,0]
["Utricularia inflata",null,5.85,"-","OBL","Native",null,null,null,null,null,null,null,null,null,null,0,0,"x",34453,3,5,1,0]
["Utricularia olivacea",null,3.33,"-","OBL","Native",null,null,null,null,null,null,null,null,null,null,0,0,"x",34460,3,5,1,0]
["Utricularia purpurea",null,6.5,"-","OBL","Native",null,null,null,null,null,null,null,null,null,null,0,0,"x",34461,3,5,1,0]
["Utricularia radiata",null,6.01,"-","OBL","Native",null,null,null,null,null,null,null,null,null,null,0,0,"x",34462,3,5,1,0]
["Utricularia resupinata",null,5.46,"-","OBL","Native",null,null,null,null,null,null,null,null,null,null,0,0,"x",34463,3,5,1,0]
["Utricularia subulata",null,7.09,"-","OBL","Native",null,null,null,null,null,null,null,null,null,null,0,0,"x",34465,3,5,1,0]
["Vaccinium",null,null,"-","-","Native",null,null,null,null,null,null,null,null,null,null,0,0,"-",23571,3,9,2,0]
["Vaccinium corymbosum",null,5.63,"-","FACW","Native",null,null,null,null,null,null,null,null,null,null,0,0,"x",23573,3,4,2,0]
["Vaccinium elliottii",null,4,"-","FAC","Native",null,null,null,null,null,null,null,null,null,null,0,0,"x",23592,3,3,2,0]
["Vaccinium myrsinites",null,5.64,"-","UPL","Native",null,null,null,null,null,null,null,null,null,null,0,0,"x",23603,3,2,2,0]
["Vallisneria",null,null,"-","OBL","Native",null,null,null,null,null,null,null,null,null,null,0,0,"-",38950,3,5,1,0]
["Vallisneria americana",null,7,"-","OBL","Native",null,null,null,null,null,null,null,null,null,null,0,0,"x",38951,3,5,1,0]
["Verbena",null,null,"-","-","-",null,null,null,null,null,null,null,null,null,null,0,0,"-",32070,-9,-9,-9,0]
["Verbena bonariensis",null,0.56000000000000005,"-","-","Exotic",null,null,null,null,null,null,null,null,null,null,0,0,"x",32128,3,1,1,0]
["Verbena brasiliensis",null,0.35,"-","-","Exotic",null,null,null,null,null,null,null,null,null,null,0,0,"x",32086,3,1,1,0]
["Verbesina",null,null,"-","-","-",null,null,null,null,null,null,null,null,null,null,0,0,"-",38594,-9,-9,-9,0]
["Verbesina virginica",null,null,"-","FAC","Native",null,null,null,null,null,null,null,null,null,null,0,0,"-",38613,3,3,1,0]
["Viburnum",null,null,"-","-","-",null,null,null,null,null,null,null,null,null,null,0,0,"-",35249,-9,-9,-9,0]
["Viburnum nudum",null,5.55,"-","FACW","Native",null,null,null,null,null,null,null,null,null,null,0,0,"x",35252,3,4,2,0]
["Vigna",null,null,"-","-","-",null,null,null,null,null,null,null,null,null,null,0,0,"-",27015,-9,-9,-9,0]
["Vigna luteola",null,2.31,"-","-","Native",null,null,null,null,null,null,null,null,null,null,0,0,"x",27016,3,1,2,0]
["Vitex",null,null,"-","-","-",null,null,null,null,null,null,null,null,null,null,0,0,"-",32220,4,1,2,0]
["Vitex trifolia",null,0,"Category 2","-","Exotic",null,null,null,null,null,null,null,null,null,null,0,0,"x",32223,2,1,2,0]
["Vitis",null,null,"-","-","Native",null,null,null,null,null,null,null,null,null,null,0,0,"-",28606,3,1,3,0]
["Vitis cinerea",null,null,"-","-","Native",null,null,null,null,null,null,null,null,null,null,0,0,"-",28615,3,1,2,0]
["Vitis rotundifolia",null,1.18,"-","-","Native",null,null,null,null,null,null,null,null,null,null,0,0,"x",28609,3,1,1,0]
["Websteria",null,null,"-","-","-",null,null,null,null,null,null,null,null,null,null,0,0,"-",40331,-9,-9,-9,0]
["Websteria confervoides","Eleocharis confervoides, Websteria submersa",7,"-","OBL","Native",null,null,null,null,null,null,null,null,null,null,0,0,"x",10008951,3,5,1,0]
["Wedelia",null,null,"Category 2","-","-",null,null,null,null,null,null,null,null,null,null,0,0,"-",38662,2,-9,2,0]
["Wisteria",null,null,"-","-","-",null,null,null,null,null,null,null,null,null,null,0,0,"-",27019,3,9,1,0]
["Wisteria frutescens",null,null,"-","FACW","Native",null,null,null,null,null,null,null,null,null,null,0,0,"-",27021,3,4,1,0]
["Wolffia",null,null,"-","OBL","-",null,null,null,null,null,null,null,null,null,null,0,0,"-",42601,3,5,1,0]
["Wolffiella",null,1,"-","OBL","Native",null,null,null,null,null,null,null,null,null,null,0,0,"x",42606,3,5,1,0]
["Woodwardia",null,null,"-","-","Native",null,null,null,null,null,null,null,null,null,null,0,0,"-",17748,3,9,1,0]
["Woodwardia areolata",null,6.5,"-","OBL","Native",null,null,null,null,null,null,null,null,null,null,0,0,"x",17749,3,5,1,0]
["Woodwardia virginica",null,3.5,"-","FACW","Native",null,null,null,null,null,null,null,null,null,null,0,0,"x",17751,3,4,1,0]
["Xanthosoma",null,null,"-","-","-",null,null,null,null,null,null,null,null,null,null,0,0,"-",42581,-9,-9,-9,0]
["Xanthosoma sagittifolium",null,0,"Category 2","FACW","Exotic",null,null,null,null,null,null,null,null,null,null,0,0,"x",42586,2,4,1,0]
["Xyris",null,null,"-","OBL","Native",null,null,null,null,null,null,null,null,null,null,0,0,"-",39096,3,5,1,0]
["Xyris ambigua",null,6.43,"-","OBL","Native",null,null,null,null,null,null,null,null,null,null,0,0,"x",10007742,3,5,1,0]
["Xyris baldwiniana",null,6.97,"-","OBL","Native",null,null,null,null,null,null,null,null,null,null,0,0,"x",39099,3,5,1,0]
["Xyris brevifolia",null,7.2,"-","OBL","Native",null,null,null,null,null,null,null,null,null,null,0,0,"x",39100,3,5,1,0]
["Xyris caroliniana",null,6.14,"-","FACW","Native",null,null,null,null,null,null,null,null,null,null,0,0,"x",39101,3,4,1,0]
["Xyris difformis",null,7.5,"-","OBL","Native",null,null,null,null,null,null,null,null,null,null,0,0,"x",39102,3,5,1,{"$f":"IFERROR(R1222*C1222,\"0\")","v":0}]
["Xyris drummondii",null,3.4,"-","OBL","Native",null,null,null,null,null,null,null,null,null,null,{"$f":"COUNTIF(G1223:P1223,\"P\")+COUNTIF(G1223:P1223,\"C\")+COUNTIF(G1223:P1223,\"D\")","v":0},{"$f":"IF(AND(W1223<>2,(OR(V1223=3,V1223=4,V1223=5,V1223=8,V1223=9))),Q1223,0)","v":0},{"$f":"IF(C1223<>\"\",\"x\",\"-\")","v":"x"},39103,3,5,1,0]
["Xyris elliottii",null,6.69,"-","OBL","Native",null,null,null,null,null,null,null,null,null,null,0,0,"x",39104,3,5,1,0]
["Xyris fimbriata",null,5,"-","OBL","Native",null,null,null,null,null,null,null,null,null,null,0,0,"x",39105,3,5,1,0]
["Xyris flabelliformis",null,5,"-","OBL","Native",null,null,null,null,null,null,null,null,null,null,0,0,"x",39106,3,5,1,0]
["Xyris isoetifolia",null,9.75,"-","OBL","Native",null,null,null,null,null,null,null,null,null,null,0,0,"x",39108,3,5,1,0]
["Xyris jupicai",null,3.51,"-","FACW","Native",null,null,null,null,null,null,null,null,null,null,0,0,"x",39109,3,4,1,0]
["Xyris laxifolia",null,5,"-","OBL","Native",null,null,null,null,null,null,null,null,null,null,0,0,"x",10010772,3,5,1,0]
["Xyris laxifolia iridifolia","Xyris iridifolia",5,"-","OBL","Native",null,null,null,null,null,null,null,null,null,null,0,0,"x",10010773,3,5,1,0]
["Xyris platylepis",null,5.32,"-","OBL","Native",null,null,null,null,null,null,null,null,null,null,0,0,"x",39112,3,5,1,0]
["Xyris serotina",null,4,"-","OBL","Native",null,null,null,null,null,null,null,null,null,null,0,0,"x",39114,3,5,1,0]
["Xyris smalliana",null,7.8,"-","OBL","Native",null,null,null,null,null,null,null,null,null,null,0,0,"x",39115,3,5,1,0]
["Zanthoxylum",null,null,"-","-","-",null,null,null,null,null,null,null,null,null,null,0,0,"-",28849,3,1,2,0]
["Zingiber",null,0,"-","-","-",null,null,null,null,null,null,null,null,null,null,0,0,"x",42400,3,1,1,0]
["Zizania",null,null,"-","-","-",null,null,null,null,null,null,null,null,null,null,0,0,"-",41318,-9,-9,-9,0]
["Zizania aquatica",null,7.5,"-","OBL","Native",null,null,null,null,null,null,null,null,null,null,0,0,"x",41319,3,5,1,0]
["Zizaniopsis",null,null,"-","-","-",null,null,null,null,null,null,null,null,null,null,0,0,"-",41322,-9,-9,-9,0]
["Zizaniopsis miliacea",null,6.21,"-","OBL","Native",null,null,null,null,null,null,null,null,null,null,0,0,"x",41323,3,5,1,0]

{"sheet":"4.RPS","index":3,"n_rows":60,"n_cols":17,"rows_kept":60,"cut":false,"hidden":false,"merged":[[3,0,5,0],[3,3,5,3],[3,4,5,4],[3,5,5,5],[0,0,0,13],[1,0,1,4],[1,5,1,6],[1,7,1,8],[1,9,1,13],[2,0,2,4],[2,5,2,6],[2,7,2,8],[2,9,2,13],[3,8,5,8],[3,9,5,9],[3,10,3,13],[4,10,4,13],[3,1,5,1],[3,2,5,2],[3,6,5,6],[3,7,5,7],[6,0,14,0],[6,5,14,5],[7,11,7,12],[10,11,10,12],[14,11,15,13],[15,0,23,0],[15,5,23,5],[11,11,11,12],[12,11,12,12],[22,11,22,13],[24,0,32,0],[24,5,32,5],[33,0,41,0],[33,5,41,5],[34,11,34,13],[30,11,30,13],[31,11,31,13],[33,11,33,13],[32,11,32,13],[36,11,36,13],[37,11,37,13],[39,11,39,13],[42,0,50,0],[42,5,50,5],[51,0,59,0],[51,5,53,13],[54,5,55,13],[56,5,57,13],[58,5,59,13],[42,11,42,13]]}
[" DEP FORM FD 9000-25  Rapid Periphyton Survey Field Sheet"]
["Site:",null,null,null,null,"County:",null,"Date:",null,"Investigator:"]
[{"$f":"IF('1.Sample_Info'!B9=\"\",\"\",'1.Sample_Info'!B9)","v":""},null,null,null,null,{"$f":"IF('1.Sample_Info'!B13=\"\",\"\",'1.Sample_Info'!B13)","v":""},null,{"$f":"IF('1.Sample_Info'!B7=\"\",\"\",'1.Sample_Info'!B7)","v":""},null,{"$f":"IF('1.Sample_Info'!B17=\"\",\"\",'1.Sample_Info'!B17)","v":""},null,null,null,null,"Auto Populated",null,"Current assessment"]
["Transect (m)","Point  \n1=right    \n 9=left","Algal Thickness Rank          \n (N-6, X)","Estimated \n(Y/N)","Canopy Cover","Transect (m)","Point  \n1=right    \n 9=left","Algal Thickness Rank          \n (N-6, X)","Estimated \n(Y/N)"," Canopy Cover","WIN/STORET Station ID:",null,null,null,null,null,{"$f":"IF(AND(N10=0,N11=0),\"No Observations\",IF(N12>25,\"Fail\",IF(N12>=20,\"Inconclusive See Dominant Taxa in Algal Sample\",\"Pass\")))","v":"No Observations"}]
[null,null,null,null,null,null,null,null,null,null,{"$f":"IF('1.Sample_Info'!B10=\"\",\"\",'1.Sample_Info'!B10)","v":""},null,null,null,"Auto Populated"]
[]
[0,1,null,null,null,60,1,null,null,null,null,"Secchi depth (m)"]
[null,2,null,null,null,null,2,null,null,null,null,"Estimated?  "]
[null,3,null,null,null,null,3]
[null,4,null,null,null,null,4,null,null,null,null,"# points ranked 4-6",null,{"$f":"COUNTIFS(C7:C60,\">3\",C7:C60,\"<7\")+COUNTIFS(H7:H51,\">3\",H7:H51,\"<7\")","v":0},"Auto Populated"]
[null,5,null,null,null,null,5,null,null,null,null,"total points assessed",null,{"$f":"COUNTIFS(C7:C60,\">2\",C7:C60,\"<7\")+COUNTIFS(H7:H51,\">2\",H7:H51,\"<7\")+COUNTIFS(C7:C60,\"n\")+COUNTIFS(H7:H51,\"n\")","v":0},"Auto Populated",null,"Triannual Assessment"]
[null,6,null,null,null,null,6,null,null,null,null,"% points ranked 4-6 (%)",null,{"$f":"IFERROR(100*ROUND(N10/N11,2),\"No Observations\")","v":"No Observations"},"Auto Populated",null,{"$f":"IF(AND(N10=0,N11=0),\"No Observations\",IF(N10>25,\"Fail\",IF(N10>=20,\"Inconclusive See Dominant Taxa in Algal Sample\",IF(AND(N11>=80,((99-N11)+N10)<20),\"Pass\",\"Insufficient Observations\"))))","v":"No Observations"}]
[null,7,null,null,null,null,7,null,null,null,null,"RPS Result",null,{"$f":"Q4","v":"No Observations"},"Auto Populated"]
[null,8,null,null,null,null,8]
[null,9,null,null,null,null,9,null,null,null,null,"Check accompanying data collected at same site/date."]
[10,1,null,null,null,70,1]
[null,2,null,null,null,null,2,null,null,null,null,"Algal mat sample",null,{"$f":"IF('1.Sample_Info'!B19=\"\",\"\",'1.Sample_Info'!B19)","v":""},"Auto Populated"]
[null,3,null,null,null,null,3,null,null,null,null,"Linear Veg Survey",null,{"$f":"IF('1.Sample_Info'!B15=\"\",\"\",\"Yes\")","v":""},"Auto Populated"]
[null,4,null,null,null,null,4,null,null,null,null,"Habitat Assessment",null,{"$f":"IF('1.Sample_Info'!B16=\"\",\"\",\"Yes\")","v":""},"Auto Populated"]
[null,5,null,null,null,null,5,null,null,null,null,"SCI/Biorecon",null,{"$f":"IF('1.Sample_Info'!B20=\"\",\"\",'1.Sample_Info'!B20)","v":""},"Auto Populated"]
[null,6,null,null,null,null,6,null,null,null,null,"Water sample",null,{"$f":"IF('1.Sample_Info'!B18=\"\",\"\",'1.Sample_Info'!B18)","v":""},"Auto Populated"]
[null,7,null,null,null,null,7]
[null,8,null,null,null,null,8,null,null,null,null,"Algal Thickness Rank"]
[null,9,null,null,null,null,9,null,null,null,null,"N","rough, no algae,"]
[20,1,null,null,null,80,1,null,null,null,null,null,"slimy, algae up to 1mm"]
[null,2,null,null,null,null,2,null,null,null,null,3,">1mm - 6mm"]
[null,3,null,null,null,null,3,null,null,null,null,4,">6mm - 20mm"]
[null,4,null,null,null,null,4,null,null,null,null,5,">20mm - 10 cm"]
[null,5,null,null,null,null,5,null,null,null,null,6,">10 cm"]
[null,6,null,null,null,null,6]
[null,7,null,null,null,null,7,null,null,null,null,"Date Entry"]
[null,8,null,null,null,null,8,null,null,null,null,"Observations Entered by (name):"]
[null,9,null,null,null,null,9]
[30,1,null,null,null,90,1,null,null,null,null,"Observations Entered on (date):"]
[null,2,null,null,null,null,2]
[null,3,null,null,null,null,3]
[null,4,null,null,null,null,4,null,null,null,null,"Quality Check (QC)"]
[null,5,null,null,null,null,5,null,null,null,null,"QC Performed by (name):"]
[null,6,null,null,null,null,6]
[null,7,null,null,null,null,7,null,null,null,null,"QC Perform on (date):"]
[null,8,null,null,null,null,8]
[null,9,null,null,null,null,9]
[40,1,null,null,null,100,1,null,null,null,null,"Remarks:"]
[null,2,null,null,null,null,2]
[null,3,null,null,null,null,3]
[null,4,null,null,null,null,4]
[null,5,null,null,null,null,5]
[null,6,null,null,null,null,6]
[null,7,null,null,null,null,7]
[null,8,null,null,null,null,8]
[null,9,null,null,null,null,9]
[50,1,null,null,null,"Record \"N\" and check \"Estimated\" for points deeper than the Secchi depth; algae are presumed absent.  Check \"Estimated\" if thickness estimated for deep points which can be seen but not reached.  "]
[null,2]
[null,3]
[null,4,null,null,null,"Record \"X\" for points shallower than Secchi depth for which substrate cannot be seen or reached with the hand. No estimated rank. "]
[null,5]
[null,6,null,null,null,"Record canopy cover as the number of small densiometer quadrants (out of 96) that HAVE canopy cover. Measure facing upstream at point 4, 5, or 6."]
[null,7]
[null,8,null,null,null,"Collect algal mat sample following DEP SOP FS 7240 if the percentage of total sampled points with a thickness rank of 4, 5, or 6 is >20%."]
[null,9]

{"sheet":"5.HA_Stream_River","index":4,"n_rows":47,"n_cols":8,"rows_kept":47,"cut":false,"hidden":false,"merged":[[9,1,10,1],[11,1,13,1],[23,1,24,1],[25,1,26,1],[0,1,0,5],[1,1,1,2],[2,1,2,2],[4,1,5,1],[4,2,5,2],[3,3,3,4],[4,3,5,4],[4,5,5,5],[29,1,30,1],[21,1,21,5],[14,1,17,1],[40,1,40,2],[18,1,20,1],[33,1,34,1],[37,1,37,5],[39,1,39,2],[45,4,45,5],[46,4,46,5],[47,4,47,5],[43,1,43,2],[44,1,44,2],[45,1,45,2],[46,1,46,2],[47,1,47,2],[43,4,43,5],[44,4,44,5]]}
[null,"DEP Form FD 9000-5 Stream/River Habitat Assessment Field Sheet"]
[null,"SAMPLING AGENCY:  ",null,"WIN STATION ID:","DATE","RECEIVING BODY OF WATER:"]
[null,{"$f":"IF('1.Sample_Info'!B2=\"\",\"\",'1.Sample_Info'!B2)","v":""},null,{"$f":"IF('1.Sample_Info'!B9=\"\",\"\",'1.Sample_Info'!B10)","v":""},{"$f":"IF('1.Sample_Info'!B7=\"\",\"\",'1.Sample_Info'!B7)","v":""},{"$f":"IF('1.Sample_Info'!B9=\"\",\"\",'1.Sample_Info'!B14)","v":""}]
[null,"REMARKS:","COUNTY:","LOCATION:",null,"FIELD ID/NAME:"]
[null,null,{"$f":"IF('1.Sample_Info'!B9=\"\",\"\",'1.Sample_Info'!B13)","v":""},{"$f":"IF('1.Sample_Info'!B9=\"\",\"\",'1.Sample_Info'!B9)","v":""}]
[]
[]
[null,"Habitat Parameter","Optimal","Suboptimal","Marginal","Poor"]
[null," Primary Habitat \n Components","Four or more major productive habitats present [snags, tree roots, aquatic vegetation, leaf packs (partially decayed), rock]","Three major productive habitats present.   Adequate habitat.  Some substrates may be new fall (fresh leaves or snags)","Two major productive habitats present.  Less than desirable habitat, frequently disturbed or removed","One or less major productive habitat.  Lack of habitat is obvious, substrates unstable or smothered"]
[null,{"$f":"\" Substrate \"&CHAR(10)&\" Diversity: \"&IF(MAX(C11:F11)>20,CHAR(10)&\" Error: Value Too Large\",MAX(C11:F11))","v":" Substrate \n Diversity: 15"},"20   19   18   17   16","15   14   13   12   11","10   9   8   7   6","5   4   3   2   1"]
[null,null,null,15,null,null,null,{"$f":"MAX(C11:F11)","v":15}]
[null,{"$f":"\" Substrate \"&CHAR(10)&\" Availability: \"&IF(MAX(C14:F14)>20,CHAR(10)&\" Error: Value Too Large\",MAX(C14:F14))","v":" Substrate \n Availability: 15"},"Greater than 30% major productive habitat present at site","16% to 30% major productive habitat, by aerial extent","6% to 15% major productive habitat","Less than 5% major productive habitat"]
[null,null,"20   19   18   17   16","15   14   13   12   11","10   9   8   7   6","5   4   3   2   1"]
[null,null,null,15,null,null,null,{"$f":"MAX(C14:F14)","v":15}]
[null,{"$f":"\" Water Velocity: \"&IF(MAX(C18:F18)>20,CHAR(10)&\" Error: Value Too Large\",MAX(C18:F18))","v":" Water Velocity: 15"},"Max. observed at typical transect:  > 0.25 m/sec. But < 1 m/sec","Max. observed at typical transect: >0.1 to 0.25 m/sec","Max. observed at typical transect:  0.05 to 0.1 m/sec","Max. observed at typical transect:  <0.05 m/sec; or spate occurring: > 1 m/sec"]
[null,null,"≥0.33   0.31    0.29     0.27   >0.25 ","   0.25    0.21    0.17    0.13    >0.1 ","  0.1     0.09    0.07     0.06    0.05","<0.05  0.04   0.03   0.01  <0.01"]
[null,null,"20     19      18       17      16","   15      14       13       12      11","10       9        8         7         6    ","5       4       3       2       1"]
[null,null,null,15,null,null,null,15]
[null,{"$f":"\" Habitat \"&CHAR(10)&\" Smothering: \"&IF(MAX(C21:F21)>20,\"Error: Value Too Large\",MAX(C21:F21))","v":" Habitat \n Smothering: 6"},"Adequate number of stable pools \n(1-2 per 12 times width) and <25% of habitats affected by sand, silt, or algae.","Adequate number of stable pools \n(1-2 per 12 times width) and >25% of habitats affected by sand, silt, or algae.","Does not have required number of stable pools (1-2 per 12 x width) and/or has shallow pools (<2 x prevailing depth). ","Stable pools are absent. Most habitats affected by sand, silt, or algae accumulation."]
[null,null,"20   19   18   17   16","15   14   13   12   11","10   9   8   7   6","5   4   3   2   1"]
[null,null,null,null,6,null,null,6]
[null,{"$f":"\" Primary Score: \"&IF(MAX(C21:F21)+MAX(C18:F18)+MAX(C14:F14)+MAX(C11:F11)>80,\"Error: Value Too Large\",MAX(C21:F21)+MAX(C18:F18)+MAX(C14:F14)+MAX(C11:F11))","v":" Primary Score: 51"},null,null,null,null,null,{"$f":"SUM(H11,H14,H18,H21)","v":51}]
[null,"Secondary Habitat Components","Expected sinuosity given the stream width. No evidence of dredging or artificial straightening. No spoil banks. ","Good sinuosity within old channelized area. Evidence of dredging or straightening in the past (>25 yrs.) but mostly recovered.","Straightened with trapezoidal cross section, but has a small degree of sinuosity developed within channelized area. ","Straightened or engineered by dredging, has trapezoidal or box cut cross section, lacks required pools. May have spoil banks."]
[null,{"$f":"\" Artificial \"&CHAR(10)&\" Channelization: \"&IF(MAX(C25:F25)>20,CHAR(10)&\" Error: Value Too Large\",MAX(C25:F25))","v":" Artificial \n Channelization: 6"},"20   19   18   17   16","15   14   13   12   11","10   9   8   7   6","5   4   3   2   1"]
[null,null,null,null,6,null,null,6]
[null," Bank Stability","Bankfull > 60% of bank height. Slope of bank < 60º from bankfull to top of bank. Bankfull is within or above the woody root zone with few raw, eroded areas.","Only meets 2 of the 3 requirements for optimal bank stability.","Only meets 1 of the 3 requirements for optimal bank stability.","Bankfull < 60% of bank height. Slope of bank > 60º. Bankfull is below the woody root zone with raw, eroded areas."]
[null,null,"10     9","8     7     6","5     4","3     2     1"]
[null,{"$f":"\" Right Bank: \"&IF(MAX(C28:F28)>10,CHAR(10)&\" Error: Value Too Large\",MAX(C28:F28))","v":" Right Bank: 10"},10,null,null,null,null,{"$f":"MAX(C28:F28)","v":10}]
[null,{"$f":"\" Left Bank: \"&IF(MAX(C29:F29)>10,CHAR(10)&\" Error: Value Too Large\",MAX(C29:F29))","v":" Left Bank: 6"},null,6,null,null,null,{"$f":"MAX(C29:F29)","v":6}]
[null," Riparian Buffer \n Zone Width","Width of vegetation greater than 18 m","Width of vegetation >12 to 18m","Width of vegetation 6 to 12 m. human activities close to system","Less than 6 m of  buffer zone due to intensive human activities"]
[null,null,"10     9","8     7     6","5     4","3     2     1"]
[null,{"$f":"\" Right Bank: \"&IF(MAX(C32:F32)>10,CHAR(10)&\" Error: Value Too Large\",MAX(C32:F32))","v":" Right Bank: 5"},null,null,5,null,null,{"$f":"MAX(C32:F32)","v":5}]
[null,{"$f":"\" Left Bank: \"&IF(MAX(C33:F33)>10,CHAR(10)&\" Error: Value Too Large\",MAX(C33:F33))","v":" Left Bank: 3"},null,null,null,3,null,3]
[null," Riparian Zone \n Vegetation Quality","Over 80% of riparian surfaces consist of normal, expected plant community for given sunlight & habitat conditions (e.g., native plants; tree, shrub, and forbs represented, if appropriate). Minimal disturbance.",">50% to 80% of riparian zone is undisturbed (normal, expected plant community for given sunlight & habitat conditions).  Some disruption in community observed.","25% to 50% of riparian zone is undisturbed (normal, expected plant community for given sunlight & habitat conditions).   Disruption obvious.","Less than 25% of riparian zone is undisturbed (normal, expected plant community for given sunlight & habitat conditions).  "]
[null,null,"10     9","8     7     6","5     4","3     2     1"]
[null,{"$f":"\" Right Bank: \"&IF(MAX(C36:F36)>10,CHAR(10)&\" Error: Value Too Large\",MAX(C36:F36))","v":" Right Bank: 8"},null,8,null,null,null,{"$f":"MAX(C36:F36)","v":8}]
[null,{"$f":"\" Left Bank: \"&IF(MAX(C37:F37)>10,CHAR(10)&\" Error: Value Too Large\",MAX(C37:F37))","v":" Left Bank: 4"},null,null,4,null,null,4]
[null,{"$f":"\"Secondary Score: \"&MAX(C25:F25)+MAX(C28:F28)+MAX(C29:F29)+MAX(C32:F32)+MAX(C33:F33)+MAX(C36:F36)+MAX(C37:F37)","v":"Secondary Score: 42"}]
[]
[null,"TOTAL SCORE",null,null,null,null,null,"2nd score"]
[null,{"$f":"IF(SUM(C36:F37,C32:F33,C28:F29,C25:F25,C21:F21,C18:F18,C14:F14,C11:F11)=0,\"No Observations\",IF(COUNT(C11:F11,C14:F14,C18:F18,C21:F21,C25:F25,C28:F29,C32:F33,C36:F37)>11,\"Too Many Observations\",IF(COUNT(C11:F11,C14:F14,C18:F18,C21:F21,C25:F25,C28:F29,C32:F33,C36:F37)<11,\"Too Few Observations\",IF(SUM(C36:F37,C32:F33,C28:F29,C25:F25,C21:F21,C18:F18,C14:F14,C11:F11)>160,\" Error Value Too Large\",SUM(C36:F37,C32:F33,C28:F29,C25:F25,C21:F21,C18:F18,C14:F14,C11:F11)))))","v":93},null,null,null,null,null,{"$f":"SUM(H36:H37,H32:H33,H25,H28:H29)","v":42}]
[]
[]
[null,"Date Entry",null,null,"Quality Check (QC)"]
[null,"Observations Entered by (name):",null,null,"QC Performed by:"]
[]
[null,"Observations Entered on (date):",null,null,"QC Performed on (date):"]

{"sheet":"6.PhysChem","index":5,"n_rows":119,"n_cols":82,"rows_kept":119,"cut":false,"hidden":false,"merged":[[104,29,104,60],[107,9,108,25],[106,3,109,8],[106,55,109,57],[98,3,98,8],[100,3,100,8],[102,3,102,8],[104,3,104,8],[91,55,91,64],[96,3,97,8],[97,9,97,11],[97,13,97,15],[97,17,97,19],[97,21,97,23],[96,42,102,65],[96,27,97,41],[91,32,91,34],[91,38,91,40],[91,44,91,46],[91,50,91,54],[93,4,94,11],[90,22,91,25],[93,12,94,15],[93,17,94,20],[82,45,83,47],[83,48,83,50],[83,54,83,58],[86,48,86,50],[86,54,86,58],[71,57,71,60],[73,50,73,51],[73,54,73,55],[75,45,76,47],[76,48,76,50],[76,54,76,58],[73,45,73,47],[70,45,71,51],[71,52,71,54],[78,48,78,50],[78,54,78,58],[80,51,80,64],[86,37,86,39],[86,42,86,43],[88,27,88,31],[88,32,88,36],[88,38,88,39],[88,40,88,43],[83,37,83,39],[83,42,83,43],[83,27,83,35],[86,27,86,35],[76,37,76,39],[76,42,76,43],[80,27,80,31],[80,32,80,36],[80,38,80,39],[80,40,80,43],[78,37,78,39],[78,42,78,43],[78,27,78,35],[76,27,76,35],[73,33,73,36],[73,39,73,41],[71,33,71,35],[71,38,71,41],[66,31,68,58],[66,27,68,30],[57,56,58,58],[60,56,61,58],[63,56,64,58],[63,27,64,30],[57,27,58,30],[57,39,58,41],[57,43,58,45],[57,47,58,49],[60,31,61,33],[60,35,61,37],[70,27,71,31],[73,27,73,30],[64,60,65,63],[63,60,63,63],[54,31,56,33],[54,35,56,37],[54,39,56,41],[54,43,56,45],[54,47,56,49],[54,51,56,54],[54,56,56,58],[54,60,56,63],[63,31,64,33],[63,35,64,37],[63,39,64,41],[63,43,64,45],[63,47,64,49],[60,51,61,54],[63,51,64,54],[60,39,61,41],[60,43,61,45],[60,47,61,49],[57,31,58,33],[57,35,58,37],[93,22,94,25],[82,12,84,15],[82,17,84,20],[82,22,84,25],[86,12,88,15],[86,17,88,20],[86,22,88,25],[82,4,84,11],[86,4,88,11],[90,4,91,11],[64,4,65,11],[67,4,68,11],[70,4,71,11],[73,17,76,20],[78,12,80,15],[78,17,80,20],[90,12,91,15],[90,17,91,20],[64,12,65,15],[64,17,65,20],[67,12,68,15],[67,17,68,20],[70,12,71,15],[70,17,71,20],[73,12,76,15],[78,22,80,25],[59,5,60,6],[52,61,52,63],[50,19,52,22],[54,3,55,9],[56,4,58,9],[57,12,57,13],[57,16,57,17],[57,20,57,21],[57,51,58,54],[60,17,63,20],[60,22,63,25],[54,27,55,30],[60,27,61,30],[59,9,60,12],[57,60,58,63],[61,61,61,63],[73,4,76,11],[78,4,80,11],[61,12,63,15],[64,22,65,25],[67,22,68,25],[70,22,71,25],[73,22,76,25],[48,61,48,63],[50,45,50,47],[50,50,50,52],[50,55,50,58],[50,61,50,63],[52,38,52,44],[48,45,48,47],[48,50,48,52],[48,55,48,58],[52,45,52,47],[52,50,52,52],[52,55,52,58],[48,33,48,36],[50,33,50,36],[46,38,47,47],[48,38,48,44],[50,38,50,44],[46,17,47,23],[48,19,48,22],[48,26,48,29],[50,26,50,29],[46,3,47,9],[48,5,48,8],[50,5,50,8],[48,12,48,15],[50,12,50,15],[40,31,42,38],[23,4,25,16],[44,2,45,65],[40,51,40,60],[31,35,32,39],[31,29,32,33],[37,6,37,13],[37,15,37,20],[37,21,37,26],[30,46,31,47],[35,43,36,45],[35,46,36,48],[30,51,31,53],[30,54,31,55],[35,51,36,53],[35,54,36,56],[30,59,31,61],[30,62,31,63],[35,59,36,61],[13,2,14,65],[40,3,42,8],[40,11,40,12],[42,11,42,16],[40,20,40,30],[42,20,42,25],[40,41,40,43],[42,41,42,46],[42,51,42,60],[15,4,17,33],[20,4,21,8],[20,10,21,14],[20,16,21,20],[20,22,21,26],[18,4,19,8],[20,28,21,32],[20,34,21,38],[20,40,21,44],[18,34,19,38],[18,40,19,44],[18,10,19,14],[18,16,19,20],[18,22,19,26],[18,28,19,32],[9,2,9,6],[11,2,11,7],[11,8,11,23],[9,7,9,62],[11,25,11,36],[11,37,11,62],[3,28,3,34],[5,28,5,34],[7,28,7,34],[3,2,3,6],[3,7,3,16],[5,2,5,6],[5,7,5,16],[7,2,7,6],[7,7,7,16],[3,25,3,27],[5,25,5,27],[7,25,7,27],[3,46,3,52],[5,46,5,52],[7,46,7,53],[7,54,7,65],[5,54,5,65],[3,54,3,65],[25,61,27,63],[30,43,31,45],[18,46,19,51],[23,38,25,40],[20,46,21,51],[17,55,19,64],[20,55,21,64],[16,40,17,51],[26,17,28,21],[23,19,25,21],[23,25,25,27],[23,31,25,34],[35,62,36,64],[107,58,108,64],[0,2,1,65],[35,3,36,9],[35,10,36,13],[23,42,24,65],[29,3,30,26],[31,5,32,8],[31,9,32,12],[31,16,32,19],[31,20,32,23],[29,27,30,41],[26,25,28,27],[26,31,28,34],[26,38,28,40],[26,4,28,14],[34,27,35,41],[36,30,36,32],[36,36,36,38],[35,14,36,15],[35,16,36,19],[35,20,36,21],[35,22,36,25],[25,57,27,60],[112,3,113,26],[114,3,115,26],[116,3,117,26],[118,3,119,26],[120,3,121,26],[112,32,113,55],[114,32,115,55],[116,32,117,55],[118,32,119,55],[120,32,121,55]]}
[null,null,"DEP Form FD 9000-3 Physical/Chemical Characterization Field Sheet "]
[]
[]
[null,null,"SAMPLE ID",null,null,null,null,null,null,null,null,null,null,null,null,null,null,null,null,null,null,null,null,null,null,"ORG ID",null,null,{"$f":"IF('1.Sample_Info'!B3=0,\"\",'1.Sample_Info'!B3)","v":""},null,null,null,null,null,null,null,null,null,null,null,null,null,null,null,null,null,"  LATITUDE",null,null,null,null,null,null,null,{"$f":"IF('1.Sample_Info'!B11=0,\"\",'1.Sample_Info'!B11)","v":""}]
[]
[null,null,"COUNTY",null,null,null,null,{"$f":"IF('1.Sample_Info'!B13=0,\"\",'1.Sample_Info'!B13)","v":""},null,null,null,null,null,null,null,null,null,null,null,null,null,null,null,null,null,"WIN #",null,null,{"$f":"IF('1.Sample_Info'!B10=0,\"\",'1.Sample_Info'!B10)","v":""},null,null,null,null,null,null,null,null,null,null,null,null,null,null,null,null,null,"  LONGITUDE",null,null,null,null,null,null,null,{"$f":"IF('1.Sample_Info'!B12=0,\"\",'1.Sample_Info'!B12)","v":""}]
[]
[null,null,"DATE",null,null,null,null,{"$f":"IF('1.Sample_Info'!B7=0,\"\",'1.Sample_Info'!B7)","v":""},null,null,null,null,null,null,null,null,null,null,null,null,null,null,null,null,null,"TIME",null,null,null,null,null,null,null,null,null,null,null,null,null,null,null,null,null,null,null,null,"SAMPLING AGENCY",null,null,null,null,null,null,null,{"$f":"IF('1.Sample_Info'!B2=0,\"\",'1.Sample_Info'!B2)","v":""}]
[]
[null,null,"SITE NAME",null,null,null,null,{"$f":"IF('1.Sample_Info'!B9=0,\"\",'1.Sample_Info'!B9)","v":""}]
[]
[null,null,"FIELD ID/NAME",null,null,null,null,null,null,null,null,null,null,null,null,null,null,null,null,null,null,null,null,null,null,"RECEIVING BODY OF WATER",null,null,null,null,null,null,null,null,null,null,null,{"$f":"IF('1.Sample_Info'!B14=0,\"\",'1.Sample_Info'!B14)","v":""}]
[]
[null,null,"RIPARIAN ZONE / STREAM FEATURES"]
[]
[null,null,null,null,"PREDOMINANT LAND-USE IN WATERSHED   (specify relative percent in each category) :"]
[]
[null,null,null,null,null,null,null,null,null,null,null,null,null,null,null,null,null,null,null,null,null,null,null,null,null,null,null,null,null,null,null,null,null,null,null,null,null,null,null,null,null,null,null,null,null,null,null,null,null,null,null,null,null,null,null,"Landscape Development Intensity Index (LDI)"]
[null,null,null,null,"Forest/Natural",null,null,null,null,null,"Silviculture",null,null,null,null,null,"Field/Pasture",null,null,null,null,null,"Agricultural",null,null,null,null,null,"Residential",null,null,null,null,null,"Commercial",null,null,null,null,null,"Industry",null,null,null,null,null,"Other \n(Specify Above)"]
[]
[]
[]
[]
[null,null,null,null,"Local Watershed Erosion (select one):",null,null,null,null,null,null,null,null,null,null,null,null,null,null,"None",null,null,null,null,null,"Slight",null,null,null,null,null,"Moderate",null,null,null,null,null,null,"Heavy",null,null,null,"Typical Width (m) Depth (m)/Velocity (m/sec) Transect"]
[]
[null,null,null,null,null,null,null,null,null,null,null,null,null,null,null,null,null,null,null,null,null,null,null,null,null,null,null,null,null,null,null,null,null,null,null,null,null,null,null,null,null,null,null,null,null,null,null,null,null,null,null,null,null,null,null,null,null,null,null,null,null,"m wide"]
[null,null,null,null,"Local Watershed NPS Pollution :",null,null,null,null,null,null,null,null,null,null,null,null,"No evidence",null,null,null,null,null,null,null,"Slight",null,null,null,null,null,"Moderate",null,null,null,null,null,null,"Heavy"]
[]
[]
[null,null,null,"Width of Riparian Vegetation (m) on Each Buffer Side",null,null,null,null,null,null,null,null,null,null,null,null,null,null,null,null,null,null,null,null,null,null,null,"Hydrologic Modification Score"]
[null,null,null,null,null,null,null,null,null,null,null,null,null,null,null,null,null,null,null,null,null,null,null,null,null,null,null,null,null,null,null,null,null,null,null,null,null,null,null,null,null,null,null,null,null,null,"m/s",null,null,null,null,null,null,null,"m/s",null,null,null,null,null,null,null,"m/s"]
[null,null,null,null,null,"Left Bank:",null,null,null,null,null,null,null,null,null,null,"Right Bank:",null,null,null,null,null,null,null,null,null,null,null,null,"(per FT 3101)"]
[]
[]
[null,null,null,null,null,null,null,null,null,null,null,null,null,null,null,null,null,null,null,null,null,null,null,null,null,null,null,"Artificially Impounded"]
[null,null,null,"High Water Mark:",null,null,null,null,null,null,null,null,null,null,"+",null,null,null,null,null,"=",null,null,null,null,null,null,null,null,null,null,null,null,null,null,null,null,null,null,null,null,null,null,null,null,null,"m deep",null,null,null,null,null,null,null,"m deep",null,null,null,null,null,null,null,"m deep"]
[null,null,null,null,null,null,null,null,null,null,null,null,null,null,null,null,null,null,null,null,null,null,null,null,null,null,null,null,null,null,"Yes",null,null,null,null,null,"No"]
[null,null,null,null,"(m)",null,"(above present water level)",null,null,null,null,null,null,null,null,"present depth)",null,null,null,null,null,"(above bed)"]
[]
[]
[null,null,null,"Artificially Channelized:",null,null,null,null,null,null,null,"No",null,null,null,null,null,null,null,null,"Mostly recovered, more sinuous",null,null,null,null,null,null,null,null,null,null,"Canopy Cover %",null,null,null,null,null,null,null,null,null,"Open",null,null,null,null,null,null,null,null,null,"Lightly Shaded (11-45%)"]
[]
[null,null,null,null,null,null,null,null,null,null,null,"Some Recovery",null,null,null,null,null,null,null,null,"Recent, severe",null,null,null,null,null,null,null,null,null,null,null,null,null,null,null,null,null,null,null,null,"Heavily Shaded",null,null,null,null,null,null,null,null,null,"Moderate Shaded (46-80%)"]
[]
[null,null,"SEDIMENT / SUBSTRATE"]
[]
[null,null,null,"Sediment Oils",null,null,null,null,null,null,null,null,null,null,null,null,null,"Sediment Odors",null,null,null,null,null,null,null,null,null,null,null,null,null,null,null,null,null,null,null,null,"Smothering of Substrates"]
[]
[null,null,null,null,null,"  Absent",null,null,null,null,null,null,"  Slight",null,null,null,null,null,null,"  Normal",null,null,null,null,null,null,"  Sewage",null,null,null,null,null,null,"  Petroleum",null,null,null,null,"  Sand Smothering",null,null,null,null,null,null,"None",null,null,null,null,"Slight",null,null,null,null,"Moderate",null,null,null,null,null,"Severe"]
[]
[null,null,null,null,null,"  Moderate",null,null,null,null,null,null,"  Profuse",null,null,null,null,null,null,"  Other\n (Specify)",null,null,null,null,null,null,"  Chemical",null,null,null,null,null,null,"  Anaerobic",null,null,null,null,"  Silt Smothering",null,null,null,null,null,null,"None",null,null,null,null,"Slight",null,null,null,null,"Moderate",null,null,null,null,null,"Severe"]
[]
[null,null,null,null,null,null,null,null,null,null,null,null,null,null,null,null,null,null,null,null,null,null,null,null,null,null,null,null,null,null,null,null,null,null,null,null,null,null,"  Algae Smothering",null,null,null,null,null,null,"None",null,null,null,null,"Slight",null,null,null,null,"Moderate",null,null,null,null,null,"Severe"]
[]
[null,null,null,"SUBSTRATE TYPE",null,null,null,null,null,null,null,null,null,null,null,null,null,null,null,null,null,null,null,null,null,null,null,"WATER QUALITY",null,null,null,"Depth (m)",null,null,null,"Temp\n(oC)",null,null,null,"pH\n(SU)",null,null,null,"D.O.\n(MG/L)",null,null,null,"D.O. Sat\n(%)",null,null,null,"Cond.\n(µmhos/cm)",null,null,null,null,"Salinity\n(PPT)",null,null,null,"SECCHI \n(m)"]
[]
[null,null,null,null,"Assessment Tool:"]
[null,null,null,null,null,null,null,null,null,null,null,{"$f":"IF('1.Sample_Info'!B20=\"Yes - SCI\",\"X\",\"\")","v":""},"SCI",null,null,{"$f":"IF('4.RPS'!N12=\"-\",\"\",\"X\")","v":"X"},"RPS",null,null,{"$f":"IF('2.LVS_Calculator'!AA3=\"-\",\"\",\"X\")","v":""},"LVS",null,null,null,null,null,null,"  Top:",null,null,null,null,null,null,null,null,null,null,null,null,null,null,null,null,null,null,null,null,null,null,null,null,null,null,null,null,null,null,null,null,{"$f":"IF('4.RPS'!N7=0,\"\",'4.RPS'!N7)","v":""}]
[]
[null,null,null,null,null,"LCI",null,null,null,"BioRecon"]
[null,null,null,null,null,null,null,null,{"$f":"IF('1.Sample_Info'!B20=\"Yes - BioRecon\",\"X\",\"\")","v":""},null,null,null,null,null,null,null,null,"INVERT #Times Sampled",null,null,null,null,"PERI #Times Sampled",null,null,null,null,"  Mid:"]
[null,null,null,null,null,null,null,null,null,null,null,null,"% Coverage",null,null,null,null,null,null,null,null,null,null,null,null,null,null,null,null,null,null,null,null,null,null,null,null,null,null,null,null,null,null,null,null,null,null,null,null,null,null,null,null,null,null,null,null,null,null,null,null,"VOB"]
[]
[null,null,null,null,null,null,null,null,null,null,null,null,null,null,null,null,null,null,null,null,null,null,null,null,null,null,null,"  Bottom:",null,null,null,null,null,null,null,null,null,null,null,null,null,null,null,null,null,null,null,null,null,null,null,null,null,null,null,null,null,null,null,null,"Total Depth"]
[null,null,null,null,"Woody Debris (Snags)"]
[]
[null,null,null,null,null,null,null,null,null,null,null,null,null,null,null,null,null,null,null,null,null,null,null,null,null,null,null,"Meter ID:"]
[null,null,null,null,"Undercut Banks / Roots"]
[]
[]
[null,null,null,null,"Leaf Packs or Mat…….............",null,null,null,null,null,null,null,null,null,null,null,null,null,null,null,null,null,null,null,null,null,null,"Water Odors",null,null,null,null,null,null,null,null,null,null,null,null,null,null,null,null,null,"Water Surface Oils"]
[null,null,null,null,null,null,null,null,null,null,null,null,null,null,null,null,null,null,null,null,null,null,null,null,null,null,null,null,null,null,null,null,null,"Normal",null,null,null,null,"Petroleum",null,null,null,null,null,null,null,null,null,null,null,null,null,"Normal",null,null,null,null,"Sheen"]
[]
[null,null,null,null,"Aquatic Vegetation…...............",null,null,null,null,null,null,null,null,null,null,null,null,null,null,null,null,null,null,null,null,null,null,"Sewage",null,null,null,null,null,"Chemical",null,null,null,null,null,"Other",null,null,null,null,null,"Globs",null,null,null,null,"Slick",null,null,null,"Other"]
[]
[null,null,null,null,null,null,null,null,null,null,null,null,null,null,null,null,null,null,null,null,null,null,null,null,null,null,null,null,null,null,null,null,null,null,null,null,null,null,null,null,null,null,null,null,null,"Color"]
[null,null,null,null,null,null,null,null,null,null,null,null,null,null,null,null,null,null,null,null,null,null,null,null,null,null,null,"  Water Sample Taken?",null,null,null,null,null,null,null,null,null,"Yes",null,null,null,null,"No",null,null,null,null,null,"Tannic",null,null,null,null,null,"Green (Algae)"]
[]
[null,null,null,null,"Rock or Shell Rubble…..............",null,null,null,null,null,null,null,null,null,null,null,null,null,null,null,null,null,null,null,null,null,null,"  Sample Preserved?",null,null,null,null,null,null,null,null,null,"Yes",null,null,null,null,"No",null,null,null,null,null,"Clear",null,null,null,null,null,"Other (Specify)"]
[]
[null,null,null,null,null,null,null,null,null,null,null,null,null,null,null,null,null,null,null,null,null,null,null,null,null,null,null,"  Lot Number:",null,null,null,null,null,null,null,null,null,null,"Exp:"]
[]
[null,null,null,null,"Sand…...........................................",null,null,null,null,null,null,null,null,null,null,null,null,null,null,null,null,null,null,null,null,null,null,null,null,null,null,null,null,null,null,null,null,null,null,null,null,null,null,null,null,"Clarity"]
[null,null,null,null,null,null,null,null,null,null,null,null,null,null,null,null,null,null,null,null,null,null,null,null,null,null,null,"  Algae Sample Taken?",null,null,null,null,null,null,null,null,null,"Yes",null,null,null,null,"No",null,null,null,null,null,"Clear",null,null,null,null,null,"  Slightly Turbid"]
[]
[]
[null,null,null,null,"Mud / Muck / Silt…............................",null,null,null,null,null,null,null,null,null,null,null,null,null,null,null,null,null,null,null,null,null,null,"  Sample Preserved?",null,null,null,null,null,null,null,null,null,"Yes",null,null,null,null,"No",null,null,null,null,null,"Turbid",null,null,null,null,null,"  Opaque"]
[]
[null,null,null,null,null,null,null,null,null,null,null,null,null,null,null,null,null,null,null,null,null,null,null,null,null,null,null,"  Lot Number:",null,null,null,null,null,null,null,null,null,null,"Exp:"]
[]
[null,null,null,null,"Other…........................................"]
[null,null,null,null,null,null,null,null,null,null,null,null,null,null,null,null,null,null,null,null,null,null,null,null,null,null,null,"System Type:",null,null,null,null," Stream",null,null,null,null,null,"    lake",null,null,null,null,null,"Estuary",null,null,null,null,null,"Other (Specify)"]
[]
[null,null,null,null,"Other…........................................"]
[]
[]
[null,null,null,"ABUNDANCE",null,null,null,null,null,null,null,null,null,null,null,null,null,null,null,null,null,null,null,null,null,null,null," AMBIENT FIELD CONDITIONS / NOTES:"]
[null,null,null,null,null,null,null,null,null,"Not Obs.",null,null,null,"Rare",null,null,null,"Common",null,null,null,"Abundant"]
[null,null,null,"  Periphyton:",null,null,null,null,null,null,null,null,null,null,null,null,null,null,null,null,null,null,null,null,null,null,null,null,null,null,null,null,null,null,null,null,null,null,null,null,null,null,null,null,null,null,null,null,null,null,null,null,null,null,null,null,null,null,null,null,null,null,null,null,null,null,null,null,null,null,null,null,null,null,null,null,null,null,null,null,null,{"$f":"AQ97","v":0}]
[]
[null,null,null,"  Fish:"]
[]
[null,null,null,"  Aquatic Plants:"]
[]
[null,null,null,"  Iron/Sulfur Bacteria:",null,null,null,null,null,null,null,null,null,null,null,null,null,null,null,null,null,null,null,null,null,null,null,null,null,"  The antecedent hydrologic conditions have been met to my best knowledge."]
[]
[null,null,null,"Sampling Team",null,null,null,null,null,null,null,null,null,null,null,null,null,null,null,null,null,null,null,null,null,null,null,null,null,null,null,null,null,null,null,null,null,null,null,null,null,null,null,null,null,null,null,null,null,null,null,null,null,null,null,"Date:"]
[null,null,null,null,null,null,null,null,null,{"$f":"IF('1.Sample_Info'!B4&\" \"&'1.Sample_Info'!B5=0,\"\",'1.Sample_Info'!B4&\" \"&'1.Sample_Info'!B5)","v":" "},null,null,null,null,null,null,null,null,null,null,null,null,null,null,null,null,null,null,null,null,null,null,null,null,null,null,null,null,null,null,null,null,null,null,null,null,null,null,null,null,null,null,null,null,null,null,null,null,{"$f":"IF('1.Sample_Info'!B7=0,\"\",'1.Sample_Info'!B7)","v":""}]
[]
[]
[]
[]
[null,null,null,"Data Entry",null,null,null,null,null,null,null,null,null,null,null,null,null,null,null,null,null,null,null,null,null,null,null,null,null,null,null,null,"Quality Check (QC)"]
[]
[null,null,null,"Observations Entered by (name):",null,null,null,null,null,null,null,null,null,null,null,null,null,null,null,null,null,null,null,null,null,null,null,null,null,null,null,null,"QC Performed by (name):"]
[]
[]
[]
[null,null,null,"Observations Entered On (date):",null,null,null,null,null,null,null,null,null,null,null,null,null,null,null,null,null,null,null,null,null,null,null,null,null,null,null,null,"QC Performed on (date):"]

{"sheet":"7.ExtenalBioFormat","index":6,"n_rows":46,"n_cols":16,"rows_kept":46,"cut":false,"hidden":false,"merged":[[21,5,21,14],[22,5,37,14],[21,0,37,3]]}
["WIN ORGANIZATION ID","WIN STATION NUMBER","STATION NAME","STATION DESCRIPTION","PRIMARY TYPE","WATERBODY NAME","LATITUDE","LONGITUDE","SAMPLE DATE","METRIC","RESULT","FIELD COMMENT","COLLECTOR","METRIC PROFICIENCY","SAMPLING ENTITY","LAB NAME"]
[{"$f":"IF('1.Sample_Info'!$B$3=0,\"\",'1.Sample_Info'!$B$3)","v":""},{"$f":"IF('1.Sample_Info'!$B$10=0,\"\",'1.Sample_Info'!$B$10)","v":""},{"$f":"D2","v":""},{"$f":"IF('1.Sample_Info'!$B$9=0,\"\",'1.Sample_Info'!$B$9)","v":""},"Stream",{"$f":"IF('1.Sample_Info'!$B$8=0,\"\",'1.Sample_Info'!$B$8)","v":""},{"$f":"IF('1.Sample_Info'!$B$11=0,\"\",'1.Sample_Info'!$B$11)","v":""},{"$f":"IF('1.Sample_Info'!$B$12=0,\"\",'1.Sample_Info'!$B$12)","v":""},{"$f":"IF('1.Sample_Info'!$B$7=0,\"\",'1.Sample_Info'!$B$7)","v":""},"HA (Substrate Diversity)",{"$f":"IF('5.HA_Stream_River'!H11<1,\"\",'5.HA_Stream_River'!H11)","v":15},null,{"$f":"IF('1.Sample_Info'!$B$16=0,\"\",'1.Sample_Info'!$B$16)","v":""},{"$f":"IF('1.Sample_Info'!$B$6=0,\"\",'1.Sample_Info'!$B$6)","v":""},{"$f":"IF('1.Sample_Info'!$B$2=0,\"\",'1.Sample_Info'!$B$2)","v":""}]
[{"$f":"IF('1.Sample_Info'!$B$3=0,\"\",'1.Sample_Info'!$B$3)","v":""},{"$f":"IF('1.Sample_Info'!$B$10=0,\"\",'1.Sample_Info'!$B$10)","v":""},{"$f":"D3","v":""},{"$f":"IF('1.Sample_Info'!$B$9=0,\"\",'1.Sample_Info'!$B$9)","v":""},"Stream",{"$f":"IF('1.Sample_Info'!$B$8=0,\"\",'1.Sample_Info'!$B$8)","v":""},{"$f":"IF('1.Sample_Info'!$B$11=0,\"\",'1.Sample_Info'!$B$11)","v":""},{"$f":"IF('1.Sample_Info'!$B$12=0,\"\",'1.Sample_Info'!$B$12)","v":""},{"$f":"IF('1.Sample_Info'!$B$7=0,\"\",'1.Sample_Info'!$B$7)","v":""},"HA (Substrate Availability)",{"$f":"IF('5.HA_Stream_River'!H14<1,\"\",'5.HA_Stream_River'!H14)","v":15},null,{"$f":"IF('1.Sample_Info'!$B$16=0,\"\",'1.Sample_Info'!$B$16)","v":""},{"$f":"IF('1.Sample_Info'!$B$6=0,\"\",'1.Sample_Info'!$B$6)","v":""},{"$f":"IF('1.Sample_Info'!$B$2=0,\"\",'1.Sample_Info'!$B$2)","v":""}]
[{"$f":"IF('1.Sample_Info'!$B$3=0,\"\",'1.Sample_Info'!$B$3)","v":""},{"$f":"IF('1.Sample_Info'!$B$10=0,\"\",'1.Sample_Info'!$B$10)","v":""},"",{"$f":"IF('1.Sample_Info'!$B$9=0,\"\",'1.Sample_Info'!$B$9)","v":""},"Stream",{"$f":"IF('1.Sample_Info'!$B$8=0,\"\",'1.Sample_Info'!$B$8)","v":""},{"$f":"IF('1.Sample_Info'!$B$11=0,\"\",'1.Sample_Info'!$B$11)","v":""},{"$f":"IF('1.Sample_Info'!$B$12=0,\"\",'1.Sample_Info'!$B$12)","v":""},{"$f":"IF('1.Sample_Info'!$B$7=0,\"\",'1.Sample_Info'!$B$7)","v":""},"HA (Water Velocity)",{"$f":"IF('5.HA_Stream_River'!H18<1,\"\",'5.HA_Stream_River'!H18)","v":15},null,{"$f":"IF('1.Sample_Info'!$B$16=0,\"\",'1.Sample_Info'!$B$16)","v":""},{"$f":"IF('1.Sample_Info'!$B$6=0,\"\",'1.Sample_Info'!$B$6)","v":""},{"$f":"IF('1.Sample_Info'!$B$2=0,\"\",'1.Sample_Info'!$B$2)","v":""}]
[{"$f":"IF('1.Sample_Info'!$B$3=0,\"\",'1.Sample_Info'!$B$3)","v":""},{"$f":"IF('1.Sample_Info'!$B$10=0,\"\",'1.Sample_Info'!$B$10)","v":""},"",{"$f":"IF('1.Sample_Info'!$B$9=0,\"\",'1.Sample_Info'!$B$9)","v":""},"Stream",{"$f":"IF('1.Sample_Info'!$B$8=0,\"\",'1.Sample_Info'!$B$8)","v":""},{"$f":"IF('1.Sample_Info'!$B$11=0,\"\",'1.Sample_Info'!$B$11)","v":""},{"$f":"IF('1.Sample_Info'!$B$12=0,\"\",'1.Sample_Info'!$B$12)","v":""},{"$f":"IF('1.Sample_Info'!$B$7=0,\"\",'1.Sample_Info'!$B$7)","v":""},"HA (Habitat Smothering)",{"$f":"IF('5.HA_Stream_River'!H21<1,\"\",'5.HA_Stream_River'!H21)","v":6},null,{"$f":"IF('1.Sample_Info'!$B$16=0,\"\",'1.Sample_Info'!$B$16)","v":""},{"$f":"IF('1.Sample_Info'!$B$6=0,\"\",'1.Sample_Info'!$B$6)","v":""},{"$f":"IF('1.Sample_Info'!$B$2=0,\"\",'1.Sample_Info'!$B$2)","v":""}]
[{"$f":"IF('1.Sample_Info'!$B$3=0,\"\",'1.Sample_Info'!$B$3)","v":""},{"$f":"IF('1.Sample_Info'!$B$10=0,\"\",'1.Sample_Info'!$B$10)","v":""},"",{"$f":"IF('1.Sample_Info'!$B$9=0,\"\",'1.Sample_Info'!$B$9)","v":""},"Stream",{"$f":"IF('1.Sample_Info'!$B$8=0,\"\",'1.Sample_Info'!$B$8)","v":""},{"$f":"IF('1.Sample_Info'!$B$11=0,\"\",'1.Sample_Info'!$B$11)","v":""},{"$f":"IF('1.Sample_Info'!$B$12=0,\"\",'1.Sample_Info'!$B$12)","v":""},{"$f":"IF('1.Sample_Info'!$B$7=0,\"\",'1.Sample_Info'!$B$7)","v":""},"HA (Primary Score)",{"$f":"IF('5.HA_Stream_River'!H22<1,\"\",'5.HA_Stream_River'!H22)","v":51},null,{"$f":"IF('1.Sample_Info'!$B$16=0,\"\",'1.Sample_Info'!$B$16)","v":""},{"$f":"IF('1.Sample_Info'!$B$6=0,\"\",'1.Sample_Info'!$B$6)","v":""},{"$f":"IF('1.Sample_Info'!$B$2=0,\"\",'1.Sample_Info'!$B$2)","v":""}]
[{"$f":"IF('1.Sample_Info'!$B$3=0,\"\",'1.Sample_Info'!$B$3)","v":""},{"$f":"IF('1.Sample_Info'!$B$10=0,\"\",'1.Sample_Info'!$B$10)","v":""},"",{"$f":"IF('1.Sample_Info'!$B$9=0,\"\",'1.Sample_Info'!$B$9)","v":""},"Stream",{"$f":"IF('1.Sample_Info'!$B$8=0,\"\",'1.Sample_Info'!$B$8)","v":""},{"$f":"IF('1.Sample_Info'!$B$11=0,\"\",'1.Sample_Info'!$B$11)","v":""},{"$f":"IF('1.Sample_Info'!$B$12=0,\"\",'1.Sample_Info'!$B$12)","v":""},{"$f":"IF('1.Sample_Info'!$B$7=0,\"\",'1.Sample_Info'!$B$7)","v":""},"HA (Artificial Channelization)",{"$f":"IF('5.HA_Stream_River'!H25<1,\"\",'5.HA_Stream_River'!H25)","v":6},null,{"$f":"IF('1.Sample_Info'!$B$16=0,\"\",'1.Sample_Info'!$B$16)","v":""},{"$f":"IF('1.Sample_Info'!$B$6=0,\"\",'1.Sample_Info'!$B$6)","v":""},{"$f":"IF('1.Sample_Info'!$B$2=0,\"\",'1.Sample_Info'!$B$2)","v":""}]
[{"$f":"IF('1.Sample_Info'!$B$3=0,\"\",'1.Sample_Info'!$B$3)","v":""},{"$f":"IF('1.Sample_Info'!$B$10=0,\"\",'1.Sample_Info'!$B$10)","v":""},"",{"$f":"IF('1.Sample_Info'!$B$9=0,\"\",'1.Sample_Info'!$B$9)","v":""},"Stream",{"$f":"IF('1.Sample_Info'!$B$8=0,\"\",'1.Sample_Info'!$B$8)","v":""},{"$f":"IF('1.Sample_Info'!$B$11=0,\"\",'1.Sample_Info'!$B$11)","v":""},{"$f":"IF('1.Sample_Info'!$B$12=0,\"\",'1.Sample_Info'!$B$12)","v":""},{"$f":"IF('1.Sample_Info'!$B$7=0,\"\",'1.Sample_Info'!$B$7)","v":""},"HA (Bank Stability - right bank)",{"$f":"IF('5.HA_Stream_River'!H28<1,\"\",'5.HA_Stream_River'!H28)","v":10},null,{"$f":"IF('1.Sample_Info'!$B$16=0,\"\",'1.Sample_Info'!$B$16)","v":""},{"$f":"IF('1.Sample_Info'!$B$6=0,\"\",'1.Sample_Info'!$B$6)","v":""},{"$f":"IF('1.Sample_Info'!$B$2=0,\"\",'1.Sample_Info'!$B$2)","v":""}]
[{"$f":"IF('1.Sample_Info'!$B$3=0,\"\",'1.Sample_Info'!$B$3)","v":""},{"$f":"IF('1.Sample_Info'!$B$10=0,\"\",'1.Sample_Info'!$B$10)","v":""},"",{"$f":"IF('1.Sample_Info'!$B$9=0,\"\",'1.Sample_Info'!$B$9)","v":""},"Stream",{"$f":"IF('1.Sample_Info'!$B$8=0,\"\",'1.Sample_Info'!$B$8)","v":""},{"$f":"IF('1.Sample_Info'!$B$11=0,\"\",'1.Sample_Info'!$B$11)","v":""},{"$f":"IF('1.Sample_Info'!$B$12=0,\"\",'1.Sample_Info'!$B$12)","v":""},{"$f":"IF('1.Sample_Info'!$B$7=0,\"\",'1.Sample_Info'!$B$7)","v":""},"HA (Bank Stability - left bank)",{"$f":"IF('5.HA_Stream_River'!H29<1,\"\",'5.HA_Stream_River'!H29)","v":6},null,{"$f":"IF('1.Sample_Info'!$B$16=0,\"\",'1.Sample_Info'!$B$16)","v":""},{"$f":"IF('1.Sample_Info'!$B$6=0,\"\",'1.Sample_Info'!$B$6)","v":""},{"$f":"IF('1.Sample_Info'!$B$2=0,\"\",'1.Sample_Info'!$B$2)","v":""}]
[{"$f":"IF('1.Sample_Info'!$B$3=0,\"\",'1.Sample_Info'!$B$3)","v":""},{"$f":"IF('1.Sample_Info'!$B$10=0,\"\",'1.Sample_Info'!$B$10)","v":""},"",{"$f":"IF('1.Sample_Info'!$B$9=0,\"\",'1.Sample_Info'!$B$9)","v":""},"Stream",{"$f":"IF('1.Sample_Info'!$B$8=0,\"\",'1.Sample_Info'!$B$8)","v":""},{"$f":"IF('1.Sample_Info'!$B$11=0,\"\",'1.Sample_Info'!$B$11)","v":""},{"$f":"IF('1.Sample_Info'!$B$12=0,\"\",'1.Sample_Info'!$B$12)","v":""},{"$f":"IF('1.Sample_Info'!$B$7=0,\"\",'1.Sample_Info'!$B$7)","v":""},"HA (Riparian Buffer Zone Width - right bank)",{"$f":"IF('5.HA_Stream_River'!H32<1,\"\",'5.HA_Stream_River'!H32)","v":5},null,{"$f":"IF('1.Sample_Info'!$B$16=0,\"\",'1.Sample_Info'!$B$16)","v":""},{"$f":"IF('1.Sample_Info'!$B$6=0,\"\",'1.Sample_Info'!$B$6)","v":""},{"$f":"IF('1.Sample_Info'!$B$2=0,\"\",'1.Sample_Info'!$B$2)","v":""}]
[{"$f":"IF('1.Sample_Info'!$B$3=0,\"\",'1.Sample_Info'!$B$3)","v":""},{"$f":"IF('1.Sample_Info'!$B$10=0,\"\",'1.Sample_Info'!$B$10)","v":""},"",{"$f":"IF('1.Sample_Info'!$B$9=0,\"\",'1.Sample_Info'!$B$9)","v":""},"Stream",{"$f":"IF('1.Sample_Info'!$B$8=0,\"\",'1.Sample_Info'!$B$8)","v":""},{"$f":"IF('1.Sample_Info'!$B$11=0,\"\",'1.Sample_Info'!$B$11)","v":""},{"$f":"IF('1.Sample_Info'!$B$12=0,\"\",'1.Sample_Info'!$B$12)","v":""},{"$f":"IF('1.Sample_Info'!$B$7=0,\"\",'1.Sample_Info'!$B$7)","v":""},"HA (Riparian Buffer Zone Width - left bank)",{"$f":"IF('5.HA_Stream_River'!H33<1,\"\",'5.HA_Stream_River'!H33)","v":3},null,{"$f":"IF('1.Sample_Info'!$B$16=0,\"\",'1.Sample_Info'!$B$16)","v":""},{"$f":"IF('1.Sample_Info'!$B$6=0,\"\",'1.Sample_Info'!$B$6)","v":""},{"$f":"IF('1.Sample_Info'!$B$2=0,\"\",'1.Sample_Info'!$B$2)","v":""}]
[{"$f":"IF('1.Sample_Info'!$B$3=0,\"\",'1.Sample_Info'!$B$3)","v":""},{"$f":"IF('1.Sample_Info'!$B$10=0,\"\",'1.Sample_Info'!$B$10)","v":""},"",{"$f":"IF('1.Sample_Info'!$B$9=0,\"\",'1.Sample_Info'!$B$9)","v":""},"Stream",{"$f":"IF('1.Sample_Info'!$B$8=0,\"\",'1.Sample_Info'!$B$8)","v":""},{"$f":"IF('1.Sample_Info'!$B$11=0,\"\",'1.Sample_Info'!$B$11)","v":""},{"$f":"IF('1.Sample_Info'!$B$12=0,\"\",'1.Sample_Info'!$B$12)","v":""},{"$f":"IF('1.Sample_Info'!$B$7=0,\"\",'1.Sample_Info'!$B$7)","v":""},"HA (Riparian Zone Vegetation Quality - right bank)",{"$f":"IF('5.HA_Stream_River'!H36<1,\"\",'5.HA_Stream_River'!H36)","v":8},null,{"$f":"IF('1.Sample_Info'!$B$16=0,\"\",'1.Sample_Info'!$B$16)","v":""},{"$f":"IF('1.Sample_Info'!$B$6=0,\"\",'1.Sample_Info'!$B$6)","v":""},{"$f":"IF('1.Sample_Info'!$B$2=0,\"\",'1.Sample_Info'!$B$2)","v":""}]
[{"$f":"IF('1.Sample_Info'!$B$3=0,\"\",'1.Sample_Info'!$B$3)","v":""},{"$f":"IF('1.Sample_Info'!$B$10=0,\"\",'1.Sample_Info'!$B$10)","v":""},"",{"$f":"IF('1.Sample_Info'!$B$9=0,\"\",'1.Sample_Info'!$B$9)","v":""},"Stream",{"$f":"IF('1.Sample_Info'!$B$8=0,\"\",'1.Sample_Info'!$B$8)","v":""},{"$f":"IF('1.Sample_Info'!$B$11=0,\"\",'1.Sample_Info'!$B$11)","v":""},{"$f":"IF('1.Sample_Info'!$B$12=0,\"\",'1.Sample_Info'!$B$12)","v":""},{"$f":"IF('1.Sample_Info'!$B$7=0,\"\",'1.Sample_Info'!$B$7)","v":""},"HA (Riparian Zone Vegetation Quality - left bank)",{"$f":"IF('5.HA_Stream_River'!H37<1,\"\",'5.HA_Stream_River'!H37)","v":4},null,{"$f":"IF('1.Sample_Info'!$B$16=0,\"\",'1.Sample_Info'!$B$16)","v":""},{"$f":"IF('1.Sample_Info'!$B$6=0,\"\",'1.Sample_Info'!$B$6)","v":""},{"$f":"IF('1.Sample_Info'!$B$2=0,\"\",'1.Sample_Info'!$B$2)","v":""}]
[{"$f":"IF('1.Sample_Info'!$B$3=0,\"\",'1.Sample_Info'!$B$3)","v":""},{"$f":"IF('1.Sample_Info'!$B$10=0,\"\",'1.Sample_Info'!$B$10)","v":""},"",{"$f":"IF('1.Sample_Info'!$B$9=0,\"\",'1.Sample_Info'!$B$9)","v":""},"Stream",{"$f":"IF('1.Sample_Info'!$B$8=0,\"\",'1.Sample_Info'!$B$8)","v":""},{"$f":"IF('1.Sample_Info'!$B$11=0,\"\",'1.Sample_Info'!$B$11)","v":""},{"$f":"IF('1.Sample_Info'!$B$12=0,\"\",'1.Sample_Info'!$B$12)","v":""},{"$f":"IF('1.Sample_Info'!$B$7=0,\"\",'1.Sample_Info'!$B$7)","v":""},"HA (Secondary Score)",{"$f":"IF('5.HA_Stream_River'!H41<1,\"\",'5.HA_Stream_River'!H41)","v":42},null,{"$f":"IF('1.Sample_Info'!$B$16=0,\"\",'1.Sample_Info'!$B$16)","v":""},{"$f":"IF('1.Sample_Info'!$B$6=0,\"\",'1.Sample_Info'!$B$6)","v":""},{"$f":"IF('1.Sample_Info'!$B$2=0,\"\",'1.Sample_Info'!$B$2)","v":""}]
[{"$f":"IF('1.Sample_Info'!$B$3=0,\"\",'1.Sample_Info'!$B$3)","v":""},{"$f":"IF('1.Sample_Info'!$B$10=0,\"\",'1.Sample_Info'!$B$10)","v":""},"",{"$f":"IF('1.Sample_Info'!$B$9=0,\"\",'1.Sample_Info'!$B$9)","v":""},"Stream",{"$f":"IF('1.Sample_Info'!$B$8=0,\"\",'1.Sample_Info'!$B$8)","v":""},{"$f":"IF('1.Sample_Info'!$B$11=0,\"\",'1.Sample_Info'!$B$11)","v":""},{"$f":"IF('1.Sample_Info'!$B$12=0,\"\",'1.Sample_Info'!$B$12)","v":""},{"$f":"IF('1.Sample_Info'!$B$7=0,\"\",'1.Sample_Info'!$B$7)","v":""},"Habitat Assessment Score",{"$f":"IF('5.HA_Stream_River'!B41=0,\"\",'5.HA_Stream_River'!B41)","v":93},null,{"$f":"IF('1.Sample_Info'!$B$16=0,\"\",'1.Sample_Info'!$B$16)","v":""},{"$f":"IF('1.Sample_Info'!$B$6=0,\"\",'1.Sample_Info'!$B$6)","v":""},{"$f":"IF('1.Sample_Info'!$B$2=0,\"\",'1.Sample_Info'!$B$2)","v":""}]
[{"$f":"IF('1.Sample_Info'!$B$3=0,\"\",'1.Sample_Info'!$B$3)","v":""},{"$f":"IF('1.Sample_Info'!$B$10=0,\"\",'1.Sample_Info'!$B$10)","v":""},"",{"$f":"IF('1.Sample_Info'!$B$9=0,\"\",'1.Sample_Info'!$B$9)","v":""},"Stream",{"$f":"IF('1.Sample_Info'!$B$8=0,\"\",'1.Sample_Info'!$B$8)","v":""},{"$f":"IF('1.Sample_Info'!$B$11=0,\"\",'1.Sample_Info'!$B$11)","v":""},{"$f":"IF('1.Sample_Info'!$B$12=0,\"\",'1.Sample_Info'!$B$12)","v":""},{"$f":"IF('1.Sample_Info'!$B$7=0,\"\",'1.Sample_Info'!$B$7)","v":""},"Avg_CofC_LVS",{"$f":"IF('2.LVS_Calculator'!AB1=\"See Cell B5\",\"No Observations\",IF('2.LVS_Calculator'!B5=\"No\",\"LVS < 2 SQM\",IF('2.LVS_Calculator'!V3=\"No Data\",\"\",ROUND('2.LVS_Calculator'!V3,2))))","v":"No Observations"},{"$f":"IF('2.LVS_Calculator'!B72=0,\"\",'2.LVS_Calculator'!B72)","v":""},{"$f":"IF('1.Sample_Info'!$B$15=0,\"\",'1.Sample_Info'!$B$15)","v":""},"N/A",{"$f":"IF('1.Sample_Info'!$B$2=0,\"\",'1.Sample_Info'!$B$2)","v":""}]
[{"$f":"IF('1.Sample_Info'!$B$3=0,\"\",'1.Sample_Info'!$B$3)","v":""},{"$f":"IF('1.Sample_Info'!$B$10=0,\"\",'1.Sample_Info'!$B$10)","v":""},"",{"$f":"IF('1.Sample_Info'!$B$9=0,\"\",'1.Sample_Info'!$B$9)","v":""},"Stream",{"$f":"IF('1.Sample_Info'!$B$8=0,\"\",'1.Sample_Info'!$B$8)","v":""},{"$f":"IF('1.Sample_Info'!$B$11=0,\"\",'1.Sample_Info'!$B$11)","v":""},{"$f":"IF('1.Sample_Info'!$B$12=0,\"\",'1.Sample_Info'!$B$12)","v":""},{"$f":"IF('1.Sample_Info'!$B$7=0,\"\",'1.Sample_Info'!$B$7)","v":""},"FLEPPCPct_LVS",{"$f":"IF('2.LVS_Calculator'!AB1=\"See Cell B5\",\"No Observations\",IF('2.LVS_Calculator'!B5=\"No\",\"LVS < 2 SQM\",IF('2.LVS_Calculator'!V4=\"No Data\",\"\",(100*ROUND('2.LVS_Calculator'!V4,3)))))","v":"No Observations"},null,{"$f":"IF('1.Sample_Info'!$B$15=0,\"\",'1.Sample_Info'!$B$15)","v":""},"N/A",{"$f":"IF('1.Sample_Info'!$B$2=0,\"\",'1.Sample_Info'!$B$2)","v":""}]
[{"$f":"IF('1.Sample_Info'!$B$3=0,\"\",'1.Sample_Info'!$B$3)","v":""},{"$f":"IF('1.Sample_Info'!$B$10=0,\"\",'1.Sample_Info'!$B$10)","v":""},"",{"$f":"IF('1.Sample_Info'!$B$9=0,\"\",'1.Sample_Info'!$B$9)","v":""},"Stream",{"$f":"IF('1.Sample_Info'!$B$8=0,\"\",'1.Sample_Info'!$B$8)","v":""},{"$f":"IF('1.Sample_Info'!$B$11=0,\"\",'1.Sample_Info'!$B$11)","v":""},{"$f":"IF('1.Sample_Info'!$B$12=0,\"\",'1.Sample_Info'!$B$12)","v":""},{"$f":"IF('1.Sample_Info'!$B$7=0,\"\",'1.Sample_Info'!$B$7)","v":""},"LVS_LESS_2SQM",{"$f":"IF('2.LVS_Calculator'!B5=\"No\",\"Y\",\"N\")","v":"N"},null,{"$f":"IF('1.Sample_Info'!$B$15=0,\"\",'1.Sample_Info'!$B$15)","v":""},"N/A",{"$f":"IF('1.Sample_Info'!$B$2=0,\"\",'1.Sample_Info'!$B$2)","v":""}]
[{"$f":"IF('1.Sample_Info'!$B$3=0,\"\",'1.Sample_Info'!$B$3)","v":""},{"$f":"IF('1.Sample_Info'!$B$10=0,\"\",'1.Sample_Info'!$B$10)","v":""},"",{"$f":"IF('1.Sample_Info'!$B$9=0,\"\",'1.Sample_Info'!$B$9)","v":""},"Stream",{"$f":"IF('1.Sample_Info'!$B$8=0,\"\",'1.Sample_Info'!$B$8)","v":""},{"$f":"IF('1.Sample_Info'!$B$11=0,\"\",'1.Sample_Info'!$B$11)","v":""},{"$f":"IF('1.Sample_Info'!$B$12=0,\"\",'1.Sample_Info'!$B$12)","v":""},{"$f":"IF('1.Sample_Info'!$B$7=0,\"\",'1.Sample_Info'!$B$7)","v":""},"RPS",{"$f":"IF('4.RPS'!N13=\"No Observations\",\"\",'4.RPS'!N12)","v":""},{"$f":"IF('4.RPS'!L36=0,\"\",'4.RPS'!L36)","v":""},{"$f":"IF('1.Sample_Info'!B17=0,\"\",'1.Sample_Info'!B17)","v":""},"N/A",{"$f":"IF('1.Sample_Info'!$B$2=0,\"\",'1.Sample_Info'!$B$2)","v":""}]
[{"$f":"A19","v":""},{"$f":"B19","v":""},"","","Stream","","","","",{"$f":"IF('1.Sample_Info'!B20=\"yes - SCI\",\"SCI\",IF('1.Sample_Info'!B20=\"Yes - BioRecon\",\"BioRecon\",\"\"))","v":""},null,null,null,null,{"$f":"O19","v":""}]
[]
["↑ Values in cells with no fill color above are referencing values in the other worksheets.\nThese cells auto populated so they do not need to be filled out manually. \nCell with BLUE fill color are editable",null,null,null,null,"Submitting Bioassessment Data\nData providers who would like to submit LVI data to help support the Department's Impaired Waters assessment can copy the auto calculated values in this worksheet into the Watershed Assessment Sections Bioassessment Data Template.\n\nThe department is requesting external data providers who would like to submit applicable bioassessment data to help support the department's Impaired Waters assessment. Please download and complete the Bioassessment Data Template, available as a Microsoft Excel worksheet (.xlsx). Once the template has been completed with the required information, please submit the worksheet and any supporting documentation (field sheets, photos, etc.) by email to Kevin O'Donnell.​​​​​​​​​​​​\n\nEntities submitting data to DEP must meet the applicable bioassessment proficiency demonstrations set forth on the Bioassessment Training, Evaluation and Quality Assurance Web Page, follow the department's Quality Assurance requirements for field activities as codified in Chapter 62-160, Florida Administrative Code (F.A.C.), and the incorporated DEP Standard Operating Procedures.  For external bioassessment data to be considered as part of the assessment, data providers must be in the applicable Active status for LVI, BioRecon, SCI and/or Habitat Assessment certification at the time of sample collection.  While the online RPS and LVS tests are not required, because there are currently no certifications for these methods, taking the online tests are highly recommended to show proficiency."]
[null,null,null,null,null,"Data providers who would like to submit LVI data to help support the Department's Impaired Waters assessment can copy the auto calculated values in this worksheet into the Watershed Assessment Sections Bioassessment Data Template.\n\nThe department is requesting external data providers who would like to submit applicable bioassessment data to help support the department's Impaired Waters assessment. Please download and complete the Bioassessment Data Template, available as a Microsoft Excel worksheet (.xlsx). Once the template has been completed with the required information, please submit the worksheet and any supporting documentation (field sheets, photos, etc.) by email to Jessica Mostyn.​​​​​​​​​​​​\n\nEntities submitting data to DEP must meet the applicable bioassessment proficiency demonstrations set forth on the Bioassessment Training, Evaluation and Quality Assurance Web Page, follow the department's Quality Assurance requirements for field activities as codified in Chapter 62-160, Florida Administrative Code (F.A.C.), and the incorporated DEP Standard Operating Procedures.  For external bioassessment data to be considered as part of the assessment, data providers must be in the applicable Active status for LVI, BioRecon, SCI and/or Habitat Assessment certification at the time of sample collection.  While the online RPS and LVS tests are not required, because there are currently no certifications for these methods, taking the online tests are highly recommended to show proficiency."]
[]
[]
[]
[]
[]
[]
[]
[]
[]
[]
[]
[]
[]
[]
[]
[null,null,null,null,null,"Bioassessment Data Template"]
[null,null,null,null,null,"https://publicfiles.dep.state.fl.us/DEAR/DEARweb/WAS/Bio_Data_Template_2.0.xlsx"]
[]
[null,null,null,null,null,"Jessica Mostyn"]
[null,null,null,null,null,"Jessica.Mostyn@dep.state.fl.us"]
[]
[null,null,null,null,null,"Bioassessment Training, Evaluation and Quality Assurance Web Page:"]
[null,null,null,null,null,"https://floridadep.gov/dear/bioassessment/content/bioassessment-training-evaluation-and-quality-assurance"]

{"sheet":"Version Log","index":7,"n_rows":2,"n_cols":3,"rows_kept":2,"cut":false,"hidden":true,"merged":[]}
["Version","Publish Date","Changes, Updates"]
[1,null,"First publication"]

{"sheet":"M code","index":8,"n_rows":157,"n_cols":1,"rows_kept":157,"cut":false,"hidden":true,"merged":[]}
["// LVS Taxa"]
["let"]
["    Source = Oracle.Database(\"dbprod.dep.state.fl.us:1530/fdep\", "]
["        [HierarchicalNavigation=true, "]
["        Query=\""]
["SELECT DISTINCT "]
["  SBIO.ET$TAXAMSTR.SCINAME AS \"\"Taxon\"\","]
["  'Add_In_Excel'                         AS \"\"Synonym(s)\"\","]
["  CASE"]
["    WHEN ("]
["      CASE"]
["        WHEN SBIO.ET$TAXAMSTR.PLANT_C_OF_C_2012 >= 0        THEN SBIO.ET$TAXAMSTR.PLANT_C_OF_C_2012        ELSE -9      END) = -9    THEN ''"]
["    ELSE CAST(SBIO.ET$TAXAMSTR.PLANT_C_OF_C_2012 AS VARCHAR(20))"]
["  END AS \"\"CofC Score\"\","]
["  CASE"]
["    WHEN SBIO.ET$TAXAMSTR.FLEPPC = '1'    THEN 'Category 1'"]
["    WHEN SBIO.ET$TAXAMSTR.FLEPPC = '2'    THEN 'Category 2'"]
["    ELSE '-'"]
["  END AS \"\"FLEPPC Status\"\","]
["  CASE"]
["    WHEN (SBIO.ET$TAXAMSTR.WETLANDSTATUS = '8'    OR SBIO.ET$TAXAMSTR.WETLANDSTATUS    = '5')    THEN 'OBL'"]
["    WHEN SBIO.ET$TAXAMSTR.WETLANDSTATUS = '4'    THEN 'FACW'"]
["    WHEN SBIO.ET$TAXAMSTR.WETLANDSTATUS = '2'    THEN 'UPL'"]
["    WHEN SBIO.ET$TAXAMSTR.WETLANDSTATUS = '3'    THEN 'FAC'"]
["    ELSE '-'"]
["  END AS \"\"Wetland Status\"\","]
["  CASE"]
["    WHEN SBIO.ET$TAXAMSTR.FLNATIVITY = '1'    THEN 'Native'"]
["    WHEN SBIO.ET$TAXAMSTR.FLNATIVITY = '2'    THEN 'Exotic'"]
["    ELSE '-'"]
["  END AS \"\"Nativity\"\","]
["  ''  AS \"\" 0-10\"\","]
["  ''  AS \"\" 10-20\"\","]
["  ''  AS \"\" 20-30\"\","]
["  ''  AS \"\" 30-40\"\","]
["  ''  AS \"\" 40-50\"\","]
["  ''  AS \"\" 50-60\"\","]
["  ''  AS \"\" 60-70\"\","]
["  ''  AS \"\" 70-80\"\","]
["  ''  AS \"\" 80-90\"\","]
["  ''  AS \"\" 90-100\"\","]
["  ''  AS \"\"Occurrence\"\","]
["  ''  AS \"\"Occurrence of Herbaceous Wetland Taxa\"\","]
["  ''  AS \"\"Taxa has CofC\"\","]
["  SBIO.ET$TAXAMSTR.PK$TAXAID,"]
["  CASE"]
["    WHEN SBIO.ET$TAXAMSTR.FLEPPC IS NULL    THEN -9"]
["    ELSE SBIO.ET$TAXAMSTR.FLEPPC"]
["  END AS PK$FLEPPC,"]
["  CASE"]
["    WHEN SBIO.ET$TAXAMSTR.WETLANDSTATUS IS NULL    THEN -9"]
["    ELSE SBIO.ET$TAXAMSTR.WETLANDSTATUS"]
["  END AS WETLANDSTATUS,"]
["  CASE"]
["    WHEN SBIO.ET$TAXAMSTR.HERBWOOD IS NULL    THEN -9"]
["    ELSE SBIO.ET$TAXAMSTR.HERBWOOD"]
["  END AS HERBWOOD,"]
["  ''  AS \"\"CofC x Occurance Herbaceous Wetlans Taxa\"\","]
["  ''  AS \"\"Quality Check (QC) Preformed By\"\""]
[]
["FROM SBIO.ET$TAXAMSTR"]
["  WHERE SBIO.ET$TAXAMSTR.REMOVE_FLAG = 'F'"]
["  AND SBIO.ET$TAXAMSTR.RANK_ID      >= '180'"]
["  AND (SBIO.ET$TAXAMSTR.COMMUNITY   IS NULL OR SBIO.ET$TAXAMSTR.COMMUNITY      = 'PM')"]
["  AND SBIO.ET$TAXAMSTR.REVISION     IS NULL"]
["  ORDER BY \"\"Taxon\"\""]
["            \"]),"]
["    #\"Sorted Rows\" = Table.Sort(Source,{{\"Taxon\", Order.Ascending}}),"]
["    #\"Merged Queries\" = Table.NestedJoin(#\"Sorted Rows\", {\"PK$TAXAID\"}, Synonym, {\"SYNTAXAID\"}, \"Synonym\", JoinKind.LeftOuter),"]
["    #\"Expanded Synonym\" = Table.ExpandTableColumn(#\"Merged Queries\", \"Synonym\", {\"Synonym(s)\"}, {\"Synonym(s).1\"}),"]
["    #\"Reordered Columns\" = Table.ReorderColumns(#\"Expanded Synonym\",{ \"Taxon\", \"Synonym(s).1\", \"Synonym(s)\", \"CofC Score\", \"FLEPPC Status\", \"Wetland Status\", \"Nativity\", \" 0-10\", \" 10-20\", \" 20-30\", \" 30-40\", \" 40-50\", \" 50-60\", \" 60-70\", \" 70-80\", \" 80-90\", \" 90-100\", \"Occurrence\", \"Occurrence of Herbaceous Wetland Taxa\", \"Taxa has CofC\", \"PK$TAXAID\", \"PK$FLEPPC\", \"WETLANDSTATUS\", \"HERBWOOD\", \"CofC x Occurance Herbaceous Wetlans Taxa\", \"Quality Check (QC) Preformed By\"}),"]
["    #\"Removed Columns\" = Table.RemoveColumns(#\"Reordered Columns\",{\"Synonym(s)\"}),"]
["    #\"Renamed Columns\" = Table.RenameColumns(#\"Removed Columns\",{{\"Synonym(s).1\", \"Synonym(s)\"}}),"]
["    #\"Sorted Rows1\" = Table.Sort(#\"Renamed Columns\",{{\"Taxon\", Order.Ascending}}),"]
["    #\"Changed Type\" = Table.TransformColumnTypes(#\"Sorted Rows1\",{{\"CofC Score\", type number}})"]
["in"]
["    #\"Changed Type\""]
[]
[]
["// LVS Fieldsheet taxa"]
["let"]
["    Source = Oracle.Database(\"dbprod.dep.state.fl.us:1530/fdep\", "]
["        [HierarchicalNavigation=true, "]
["        Query=\""]
["SELECT DISTINCT "]
["  SBIO.ET$TAXAMSTR.SCINAME AS \"\"Taxon\"\","]
["  'Add_In_Excel'                         AS \"\"Synonym(s)\"\","]
["  CASE"]
["    WHEN ("]
["      CASE"]
["        WHEN SBIO.ET$TAXAMSTR.PLANT_C_OF_C_2012 >= 0        THEN SBIO.ET$TAXAMSTR.PLANT_C_OF_C_2012        ELSE -9      END) = -9    THEN ''"]
["    ELSE CAST(SBIO.ET$TAXAMSTR.PLANT_C_OF_C_2012 AS VARCHAR(20))"]
["  END AS \"\"CofC Score\"\","]
["  CASE"]
["    WHEN SBIO.ET$TAXAMSTR.FLEPPC = '1'    THEN 'Category 1'"]
["    WHEN SBIO.ET$TAXAMSTR.FLEPPC = '2'    THEN 'Category 2'"]
["    ELSE '-'"]
["  END AS \"\"FLEPPC Status\"\","]
["  CASE"]
["    WHEN (SBIO.ET$TAXAMSTR.WETLANDSTATUS = '8'    OR SBIO.ET$TAXAMSTR.WETLANDSTATUS    = '5')    THEN 'OBL'"]
["    WHEN SBIO.ET$TAXAMSTR.WETLANDSTATUS = '4'    THEN 'FACW'"]
["    WHEN SBIO.ET$TAXAMSTR.WETLANDSTATUS = '2'    THEN 'UPL'"]
["    WHEN SBIO.ET$TAXAMSTR.WETLANDSTATUS = '3'    THEN 'FAC'"]
["    ELSE '-'"]
["  END AS \"\"Wetland Status\"\","]
["  CASE"]
["    WHEN SBIO.ET$TAXAMSTR.FLNATIVITY = '1'    THEN 'Native'"]
["    WHEN SBIO.ET$TAXAMSTR.FLNATIVITY = '2'    THEN 'Exotic'"]
["    ELSE '-'"]
["  END AS \"\"Nativity\"\","]
["  ''  AS \"\" 0-10\"\","]
["  ''  AS \"\" 10-20\"\","]
["  ''  AS \"\" 20-30\"\","]
["  ''  AS \"\" 30-40\"\","]
["  ''  AS \"\" 40-50\"\","]
["  ''  AS \"\" 50-60\"\","]
["  ''  AS \"\" 60-70\"\","]
["  ''  AS \"\" 70-80\"\","]
["  ''  AS \"\" 80-90\"\","]
["  ''  AS \"\" 90-100\"\","]
["  ''  AS \"\"Occurrence\"\","]
["  ''  AS \"\"Occurrence of Herbaceous Wetland Taxa\"\","]
["  ''  AS \"\"Taxa has CofC\"\","]
["  SBIO.ET$TAXAMSTR.PK$TAXAID,"]
["  CASE"]
["    WHEN SBIO.ET$TAXAMSTR.FLEPPC IS NULL    THEN -9"]
["    ELSE SBIO.ET$TAXAMSTR.FLEPPC"]
["  END AS PK$FLEPPC,"]
["  CASE"]
["    WHEN SBIO.ET$TAXAMSTR.WETLANDSTATUS IS NULL    THEN -9"]
["    ELSE SBIO.ET$TAXAMSTR.WETLANDSTATUS"]
["  END AS WETLANDSTATUS,"]
["  CASE"]
["    WHEN SBIO.ET$TAXAMSTR.HERBWOOD IS NULL    THEN -9"]
["    ELSE SBIO.ET$TAXAMSTR.HERBWOOD"]
["  END AS HERBWOOD,"]
["  ''  AS \"\"CofC x Occurance Herbaceous Wetlans Taxa\"\","]
["  ''  AS \"\"Quality Check (QC) Preformed By\"\""]
[]
["FROM SBIO.ET$TAXAMSTR"]
["  WHERE SBIO.ET$TAXAMSTR.REMOVE_FLAG = 'F'"]
["  AND SBIO.ET$TAXAMSTR.RANK_ID      >= '180'"]
["  AND (SBIO.ET$TAXAMSTR.COMMUNITY   IS NULL OR SBIO.ET$TAXAMSTR.COMMUNITY      = 'PM')"]
["  AND SBIO.ET$TAXAMSTR.REVISION     IS NULL"]
["  AND SBIO.ET$TAXAMSTR.LVS = 'Y'"]
["  ORDER BY \"\"Taxon\"\""]
["            \"]),"]
["    #\"Sorted Rows\" = Table.Sort(Source,{{\"Taxon\", Order.Ascending}}),"]
["    #\"Merged Queries\" = Table.NestedJoin(#\"Sorted Rows\", {\"PK$TAXAID\"}, Synonym, {\"SYNTAXAID\"}, \"Synonym\", JoinKind.LeftOuter),"]
["    #\"Expanded Synonym\" = Table.ExpandTableColumn(#\"Merged Queries\", \"Synonym\", {\"Synonym(s)\"}, {\"Synonym(s).1\"}),"]
["    #\"Reordered Columns\" = Table.ReorderColumns(#\"Expanded Synonym\",{ \"Taxon\", \"Synonym(s).1\", \"Synonym(s)\", \"CofC Score\", \"FLEPPC Status\", \"Wetland Status\", \"Nativity\", \" 0-10\", \" 10-20\", \" 20-30\", \" 30-40\", \" 40-50\", \" 50-60\", \" 60-70\", \" 70-80\", \" 80-90\", \" 90-100\", \"Occurrence\", \"Occurrence of Herbaceous Wetland Taxa\", \"Taxa has CofC\", \"PK$TAXAID\", \"PK$FLEPPC\", \"WETLANDSTATUS\", \"HERBWOOD\", \"CofC x Occurance Herbaceous Wetlans Taxa\", \"Quality Check (QC) Preformed By\"}),"]
["    #\"Removed Columns\" = Table.RemoveColumns(#\"Reordered Columns\",{\"Synonym(s)\"}),"]
["    #\"Renamed Columns\" = Table.RenameColumns(#\"Removed Columns\",{{\"Synonym(s).1\", \"Synonym(s)\"}}),"]
["    #\"Sorted Rows1\" = Table.Sort(#\"Renamed Columns\",{{\"Taxon\", Order.Ascending}}),"]
["    #\"Changed Type\" = Table.TransformColumnTypes(#\"Sorted Rows1\",{{\"CofC Score\", type number}})"]
["in"]
["    #\"Changed Type\""]